{"text_format":"1","workbook":"xlsx","n_sheets":3,"sheets":["Paramètres","Notes_Candidats","Notes_2nd_Gr"],"not_rendered":{"charts":0,"images":0,"macros":1,"external_links":0,"defined_names":36,"comments":1,"pivot_tables":0},"unopened":[],"bounds":{"document_bytes":16777216,"sheet_cells":100000,"rows_first":2000,"rows_last":500,"rows_between":2000,"halvings":0,"cell_chars":16384,"cell_head_chars":4096},"cells_cut":0,"cells_raw":0,"read":"whole","date_system":"1900"}

{"sheet":"Paramètres","index":0,"n_rows":423,"n_cols":51,"rows_kept":423,"cut":false,"hidden":false,"merged":[]}
[]
[null,"N° inscp","Prénoms","Nom","Date De Naissance","Lieu de Naissance","Sexe","Etablissement Fréquenté","Statut","Nombre de Points","MOYENNE","RANG","Résultats",null,0,"Echec",null,null,0,"Echec",null,null,null,null,null,null,null,null,null,null,null,null,null,null,null,null,null,null,null,"N° inscp","Prénoms","Nom","Date De Naissance","Lieu de Naissance","Sexe","Etablissement Fréquenté","Statut","Nombre de Points","MOYENNE","RANG","Résultats"]
[null,null,null,null,null,null,null,null,null,null,null,null,"Admis",null,8,"2ème Groupe",null,null,9.5,"Repêchable",null,null,null,null,null,null,null,null,null,null,null,null,null,null,null,null,null,null,null,null,null,null,null,null,null,null,null,null,null,null,"Admis"]
[null,null,null,null,null,null,null,null,null,null,null,null,null,null,9.5,"Repêchable",null,null,10,"Admis"]
[null,null,null,null,null,null,null,null,null,null,null,null,null,null,10,"Admis"]
[null,"N° inscp","Prénoms","Nom","Date De Naissance","Lieu de Naissance","Sexe","Etablissement Fréquenté","Statut","Nombre de Points","MOYENNE","RANG","Résultats"]
[null,null,null,null,null,null,null,null,null,null,null,null,"2ème Groupe"]
[null,null,null,null,null,null,null,null,null,null,null,null,"Repêchable"]
[]
["N° Ordre","N° inscp","Prénoms","Nom","Date De Naissance","Lieu de Naissance","Sexe","Etablissement Fréquenté","Statut","Nombre de Points","MOYENNE","RANG","Résultats",null,null,"N° inscp","Prénoms","Nom","Date De Naissance","Etablissement Fréquenté","Nombre De Points","MOYENNE",null,null,null,null,"N° inscp","Prénoms","Nom","Date De Naissance","Lieu de Naissance","Sexe","Etablissement Fréquenté","Statut",null,null,null,null,"N° Ordre","N° inscp","Prénoms","Nom","Date De Naissance","Lieu de Naissance","Sexe","Etablissement Fréquenté","Statut","Nombre de Points","MOYENNE","RANG","Résultats"]
[{"$f":"IF(B11<>0,ROW()-10,\"\")","v":""},{"$f":"Notes_Candidats!$C13","v":0},{"$f":"IFERROR(INDEX(Pnam_1,MATCH($B11,N°_inscp1,0)),\"\")","v":""},{"$f":"IFERROR(INDEX(Nam_1,MATCH($B11,N°_inscp1,0)),\"\")","v":""},{"$f":"IFERROR(INDEX(DNais_1,MATCH($B11,N°_inscp1,0)),\"\")","v":""},{"$f":"IFERROR(INDEX(LNais_1,MATCH($B11,N°_inscp1,0)),\"\")","v":""},{"$f":"IFERROR(INDEX(Se_xe1,MATCH($B11,N°_inscp1,0)),\"\")","v":""},{"$f":"IFERROR(INDEX(Etat_1,MATCH($B11,N°_inscp1,0)),\"\")","v":""},{"$f":"IFERROR(INDEX(PuPriLi1,MATCH($B11,N°_inscp1,0)),\"\")","v":""},{"$f":"IFERROR(INDEX(TOT_1,MATCH($B11,N°_inscp1,0)),\"\")","v":""},{"$f":"IFERROR(INDEX(MOY_1,MATCH($B11,N°_inscp1,0)),\"\")","v":""},{"$f":"IFERROR(INDEX(Rang_1,MATCH($B11,N°_inscp1,0)),\"\")","v":""},{"$f":"IFERROR(INDEX(Rsltt_1,MATCH($B11,N°_inscp1,0)),\"\")","v":""},null,null,null,null,null,null,null,null,null,null,null,null,null,null,null,null,null,null,null,null,null,null,null,null,null,{"$f":"IF(AN11<>0,ROW()-10,\"\")","v":""},{"$f":"Notes_2nd_Gr!$C11","v":0},{"$f":"IFERROR(INDEX(Pnam_2,MATCH($AN11,N°_inscp2,0)),\"\")","v":""},{"$f":"IFERROR(INDEX(Nam_2,MATCH($AN11,N°_inscp2,0)),\"\")","v":""},{"$f":"IFERROR(INDEX(Dnais_2,MATCH($AN11,N°_inscp2,0)),\"\")","v":""},{"$f":"IFERROR(INDEX(Lnais_2,MATCH($AN11,N°_inscp2,0)),\"\")","v":""},{"$f":"IFERROR(INDEX(Se_xe2,MATCH($AN11,N°_inscp2,0)),\"\")","v":""},{"$f":"IFERROR(INDEX(Etat_2,MATCH($AN11,N°_inscp2,0)),\"\")","v":""},{"$f":"IFERROR(INDEX(PuPriLi2,MATCH($AN11,N°_inscp2,0)),\"\")","v":""},{"$f":"IFERROR(INDEX(TOT_2,MATCH($AN11,N°_inscp2,0)),\"\")","v":""},{"$f":"IFERROR(INDEX(MOY_2,MATCH($AN11,N°_inscp2,0)),\"\")","v":""},{"$f":"IFERROR(INDEX(Rang_2,MATCH($AN11,N°_inscp2,0)),\"\")","v":""},{"$f":"IFERROR(INDEX(Rsltt_2,MATCH($AN11,N°_inscp2,0)),\"\")","v":""}]
["",{"$f":"Notes_Candidats!$C14","v":0},"","","","","","","","","","","",null,null,null,null,null,null,null,null,null,null,null,null,null,null,null,null,null,null,null,null,null,null,null,null,null,"",{"$f":"Notes_2nd_Gr!$C12","v":0},"","","","","","","","","","",""]
["",{"$f":"Notes_Candidats!$C15","v":0},"","","","","","","","","","","",null,null,null,null,null,null,null,null,null,null,null,null,null,null,null,null,null,null,null,null,null,null,null,null,null,"",{"$f":"Notes_2nd_Gr!$C13","v":0},"","","","","","","","","","",""]
["",{"$f":"Notes_Candidats!$C16","v":0},"","","","","","","","","","","",null,null,null,null,null,null,null,null,null,null,null,null,null,null,null,null,null,null,null,null,null,null,null,null,null,"",{"$f":"Notes_2nd_Gr!$C14","v":0},"","","","","","","","","","",""]
["",{"$f":"Notes_Candidats!$C17","v":0},"","","","","","","","","","","",null,null,null,null,null,null,null,null,null,null,null,null,null,null,null,null,null,null,null,null,null,null,null,null,null,"",{"$f":"Notes_2nd_Gr!$C15","v":0},"","","","","","","","","","",""]
["",{"$f":"Notes_Candidats!$C18","v":0},"","","","","","","","","","","",null,null,null,null,null,null,null,null,null,null,null,null,null,null,null,null,null,null,null,null,null,null,null,null,null,"",{"$f":"Notes_2nd_Gr!$C16","v":0},"","","","","","","","","","",""]
["",{"$f":"Notes_Candidats!$C19","v":0},"","","","","","","","","","","",null,null,null,null,null,null,null,null,null,null,null,null,null,null,null,null,null,null,null,null,null,null,null,null,null,"",{"$f":"Notes_2nd_Gr!$C17","v":0},"","","","","","","","","","",""]
["",{"$f":"Notes_Candidats!$C20","v":0},"","","","","","","","","","","",null,null,null,null,null,null,null,null,null,null,null,null,null,null,null,null,null,null,null,null,null,null,null,null,null,"",{"$f":"Notes_2nd_Gr!$C18","v":0},"","","","","","","","","","",""]
["",{"$f":"Notes_Candidats!$C21","v":0},"","","","","","","","","","","",null,null,null,null,null,null,null,null,null,null,null,null,null,null,null,null,null,null,null,null,null,null,null,null,null,"",{"$f":"Notes_2nd_Gr!$C19","v":0},"","","","","","","","","","",""]
["",{"$f":"Notes_Candidats!$C22","v":0},"","","","","","","","","","","",null,null,null,null,null,null,null,null,null,null,null,null,null,null,null,null,null,null,null,null,null,null,null,null,null,"",{"$f":"Notes_2nd_Gr!$C20","v":0},"","","","","","","","","","",""]
["",{"$f":"Notes_Candidats!$C23","v":0},"","","","","","","","","","","",null,null,null,null,null,null,null,null,null,null,null,null,null,null,null,null,null,null,null,null,null,null,null,null,null,"",{"$f":"Notes_2nd_Gr!$C21","v":0},"","","","","","","","","","",""]
["",{"$f":"Notes_Candidats!$C24","v":0},"","","","","","","","","","","",null,null,null,null,null,null,null,null,null,null,null,null,null,null,null,null,null,null,null,null,null,null,null,null,null,"",{"$f":"Notes_2nd_Gr!$C22","v":0},"","","","","","","","","","",""]
["",{"$f":"Notes_Candidats!$C25","v":0},"","","","","","","","","","","",null,null,null,null,null,null,null,null,null,null,null,null,null,null,null,null,null,null,null,null,null,null,null,null,null,"",{"$f":"Notes_2nd_Gr!$C23","v":0},"","","","","","","","","","",""]
["",{"$f":"Notes_Candidats!$C26","v":0},"","","","","","","","","","","",null,null,null,null,null,null,null,null,null,null,null,null,null,null,null,null,null,null,null,null,null,null,null,null,null,"",{"$f":"Notes_2nd_Gr!$C24","v":0},"","","","","","","","","","",""]
["",{"$f":"Notes_Candidats!$C27","v":0},"","","","","","","","","","","",null,null,null,null,null,null,null,null,null,null,null,null,null,null,null,null,null,null,null,null,null,null,null,null,null,"",{"$f":"Notes_2nd_Gr!$C25","v":0},"","","","","","","","","","",""]
["",{"$f":"Notes_Candidats!$C28","v":0},"","","","","","","","","","","",null,null,null,null,null,null,null,null,null,null,null,null,null,null,null,null,null,null,null,null,null,null,null,null,null,"",{"$f":"Notes_2nd_Gr!$C26","v":0},"","","","","","","","","","",""]
["",{"$f":"Notes_Candidats!$C29","v":0},"","","","","","","","","","","",null,null,null,null,null,null,null,null,null,null,null,null,null,null,null,null,null,null,null,null,null,null,null,null,null,"",{"$f":"Notes_2nd_Gr!$C27","v":0},"","","","","","","","","","",""]
["",{"$f":"Notes_Candidats!$C30","v":0},"","","","","","","","","","","",null,null,null,null,null,null,null,null,null,null,null,null,null,null,null,null,null,null,null,null,null,null,null,null,null,"",{"$f":"Notes_2nd_Gr!$C28","v":0},"","","","","","","","","","",""]
["",{"$f":"Notes_Candidats!$C31","v":0},"","","","","","","","","","","",null,null,null,null,null,null,null,null,null,null,null,null,null,null,null,null,null,null,null,null,null,null,null,null,null,"",{"$f":"Notes_2nd_Gr!$C29","v":0},"","","","","","","","","","",""]
["",{"$f":"Notes_Candidats!$C32","v":0},"","","","","","","","","","","",null,null,null,null,null,null,null,null,null,null,null,null,null,null,null,null,null,null,null,null,null,null,null,null,null,"",{"$f":"Notes_2nd_Gr!$C30","v":0},"","","","","","","","","","",""]
["",{"$f":"Notes_Candidats!$C33","v":0},"","","","","","","","","","","",null,null,null,null,null,null,null,null,null,null,null,null,null,null,null,null,null,null,null,null,null,null,null,null,null,"",{"$f":"Notes_2nd_Gr!$C31","v":0},"","","","","","","","","","",""]
["",{"$f":"Notes_Candidats!$C34","v":0},"","","","","","","","","","","",null,null,null,null,null,null,null,null,null,null,null,null,null,null,null,null,null,null,null,null,null,null,null,null,null,"",{"$f":"Notes_2nd_Gr!$C32","v":0},"","","","","","","","","","",""]
["",{"$f":"Notes_Candidats!$C35","v":0},"","","","","","","","","","","",null,null,null,null,null,null,null,null,null,null,null,null,null,null,null,null,null,null,null,null,null,null,null,null,null,"",{"$f":"Notes_2nd_Gr!$C33","v":0},"","","","","","","","","","",""]
["",{"$f":"Notes_Candidats!$C36","v":0},"","","","","","","","","","","",null,null,null,null,null,null,null,null,null,null,null,null,null,null,null,null,null,null,null,null,null,null,null,null,null,"",{"$f":"Notes_2nd_Gr!$C34","v":0},"","","","","","","","","","",""]
["",{"$f":"Notes_Candidats!$C37","v":0},"","","","","","","","","","","",null,null,null,null,null,null,null,null,null,null,null,null,null,null,null,null,null,null,null,null,null,null,null,null,null,"",{"$f":"Notes_2nd_Gr!$C35","v":0},"","","","","","","","","","",""]
["",{"$f":"Notes_Candidats!$C38","v":0},"","","","","","","","","","","",null,null,null,null,null,null,null,null,null,null,null,null,null,null,null,null,null,null,null,null,null,null,null,null,null,"",{"$f":"Notes_2nd_Gr!$C36","v":0},"","","","","","","","","","",""]
["",{"$f":"Notes_Candidats!$C39","v":0},"","","","","","","","","","","",null,null,null,null,null,null,null,null,null,null,null,null,null,null,null,null,null,null,null,null,null,null,null,null,null,"",{"$f":"Notes_2nd_Gr!$C37","v":0},"","","","","","","","","","",""]
["",{"$f":"Notes_Candidats!$C40","v":0},"","","","","","","","","","","",null,null,null,null,null,null,null,null,null,null,null,null,null,null,null,null,null,null,null,null,null,null,null,null,null,"",{"$f":"Notes_2nd_Gr!$C38","v":0},"","","","","","","","","","",""]
["",{"$f":"Notes_Candidats!$C41","v":0},"","","","","","","","","","","",null,null,null,null,null,null,null,null,null,null,null,null,null,null,null,null,null,null,null,null,null,null,null,null,null,"",{"$f":"Notes_2nd_Gr!$C39","v":0},"","","","","","","","","","",""]
["",{"$f":"Notes_Candidats!$C42","v":0},"","","","","","","","","","","",null,null,null,null,null,null,null,null,null,null,null,null,null,null,null,null,null,null,null,null,null,null,null,null,null,"",{"$f":"Notes_2nd_Gr!$C40","v":0},"","","","","","","","","","",""]
["",{"$f":"Notes_Candidats!$C43","v":0},"","","","","","","","","","","",null,null,null,null,null,null,null,null,null,null,null,null,null,null,null,null,null,null,null,null,null,null,null,null,null,"",{"$f":"Notes_2nd_Gr!$C41","v":0},"","","","","","","","","","",""]
["",{"$f":"Notes_Candidats!$C44","v":0},"","","","","","","","","","","",null,null,null,null,null,null,null,null,null,null,null,null,null,null,null,null,null,null,null,null,null,null,null,null,null,"",{"$f":"Notes_2nd_Gr!$C42","v":0},"","","","","","","","","","",""]
["",{"$f":"Notes_Candidats!$C45","v":0},"","","","","","","","","","","",null,null,null,null,null,null,null,null,null,null,null,null,null,null,null,null,null,null,null,null,null,null,null,null,null,"",{"$f":"Notes_2nd_Gr!$C43","v":0},"","","","","","","","","","",""]
["",{"$f":"Notes_Candidats!$C46","v":0},"","","","","","","","","","","",null,null,null,null,null,null,null,null,null,null,null,null,null,null,null,null,null,null,null,null,null,null,null,null,null,"",{"$f":"Notes_2nd_Gr!$C44","v":0},"","","","","","","","","","",""]
["",{"$f":"Notes_Candidats!$C47","v":0},"","","","","","","","","","","",null,null,null,null,null,null,null,null,null,null,null,null,null,null,null,null,null,null,null,null,null,null,null,null,null,"",{"$f":"Notes_2nd_Gr!$C45","v":0},"","","","","","","","","","",""]
["",{"$f":"Notes_Candidats!$C48","v":0},"","","","","","","","","","","",null,null,null,null,null,null,null,null,null,null,null,null,null,null,null,null,null,null,null,null,null,null,null,null,null,"",{"$f":"Notes_2nd_Gr!$C46","v":0},"","","","","","","","","","",""]
["",{"$f":"Notes_Candidats!$C49","v":0},"","","","","","","","","","","",null,null,null,null,null,null,null,null,null,null,null,null,null,null,null,null,null,null,null,null,null,null,null,null,null,"",{"$f":"Notes_2nd_Gr!$C47","v":0},"","","","","","","","","","",""]
["",{"$f":"Notes_Candidats!$C50","v":0},"","","","","","","","","","","",null,null,null,null,null,null,null,null,null,null,null,null,null,null,null,null,null,null,null,null,null,null,null,null,null,"",{"$f":"Notes_2nd_Gr!$C48","v":0},"","","","","","","","","","",""]
["",{"$f":"Notes_Candidats!$C51","v":0},"","","","","","","","","","","",null,null,null,null,null,null,null,null,null,null,null,null,null,null,null,null,null,null,null,null,null,null,null,null,null,"",{"$f":"Notes_2nd_Gr!$C49","v":0},"","","","","","","","","","",""]
["",{"$f":"Notes_Candidats!$C52","v":0},"","","","","","","","","","","",null,null,null,null,null,null,null,null,null,null,null,null,null,null,null,null,null,null,null,null,null,null,null,null,null,"",{"$f":"Notes_2nd_Gr!$C50","v":0},"","","","","","","","","","",""]
["",{"$f":"Notes_Candidats!$C53","v":0},"","","","","","","","","","","",null,null,null,null,null,null,null,null,null,null,null,null,null,null,null,null,null,null,null,null,null,null,null,null,null,"",{"$f":"Notes_2nd_Gr!$C51","v":0},"","","","","","","","","","",""]
["",{"$f":"Notes_Candidats!$C54","v":0},"","","","","","","","","","","",null,null,null,null,null,null,null,null,null,null,null,null,null,null,null,null,null,null,null,null,null,null,null,null,null,"",{"$f":"Notes_2nd_Gr!$C52","v":0},"","","","","","","","","","",""]
["",{"$f":"Notes_Candidats!$C55","v":0},"","","","","","","","","","","",null,null,null,null,null,null,null,null,null,null,null,null,null,null,null,null,null,null,null,null,null,null,null,null,null,"",{"$f":"Notes_2nd_Gr!$C53","v":0},"","","","","","","","","","",""]
["",{"$f":"Notes_Candidats!$C56","v":0},"","","","","","","","","","","",null,null,null,null,null,null,null,null,null,null,null,null,null,null,null,null,null,null,null,null,null,null,null,null,null,"",{"$f":"Notes_2nd_Gr!$C54","v":0},"","","","","","","","","","",""]
["",{"$f":"Notes_Candidats!$C57","v":0},"","","","","","","","","","","",null,null,null,null,null,null,null,null,null,null,null,null,null,null,null,null,null,null,null,null,null,null,null,null,null,"",{"$f":"Notes_2nd_Gr!$C55","v":0},"","","","","","","","","","",""]
["",{"$f":"Notes_Candidats!$C58","v":0},"","","","","","","","","","","",null,null,null,null,null,null,null,null,null,null,null,null,null,null,null,null,null,null,null,null,null,null,null,null,null,"",{"$f":"Notes_2nd_Gr!$C56","v":0},"","","","","","","","","","",""]
["",{"$f":"Notes_Candidats!$C59","v":0},"","","","","","","","","","","",null,null,null,null,null,null,null,null,null,null,null,null,null,null,null,null,null,null,null,null,null,null,null,null,null,"",{"$f":"Notes_2nd_Gr!$C57","v":0},"","","","","","","","","","",""]
["",{"$f":"Notes_Candidats!$C60","v":0},"","","","","","","","","","","",null,null,null,null,null,null,null,null,null,null,null,null,null,null,null,null,null,null,null,null,null,null,null,null,null,"",{"$f":"Notes_2nd_Gr!$C58","v":0},"","","","","","","","","","",""]
["",{"$f":"Notes_Candidats!$C61","v":0},"","","","","","","","","","","",null,null,null,null,null,null,null,null,null,null,null,null,null,null,null,null,null,null,null,null,null,null,null,null,null,"",{"$f":"Notes_2nd_Gr!$C59","v":0},"","","","","","","","","","",""]
["",{"$f":"Notes_Candidats!$C62","v":0},"","","","","","","","","","","",null,null,null,null,null,null,null,null,null,null,null,null,null,null,null,null,null,null,null,null,null,null,null,null,null,"",{"$f":"Notes_2nd_Gr!$C60","v":0},"","","","","","","","","","",""]
["",{"$f":"Notes_Candidats!$C63","v":0},"","","","","","","","","","","",null,null,null,null,null,null,null,null,null,null,null,null,null,null,null,null,null,null,null,null,null,null,null,null,null,"",{"$f":"Notes_2nd_Gr!$C61","v":0},"","","","","","","","","","",""]
["",{"$f":"Notes_Candidats!$C64","v":0},"","","","","","","","","","","",null,null,null,null,null,null,null,null,null,null,null,null,null,null,null,null,null,null,null,null,null,null,null,null,null,"",{"$f":"Notes_2nd_Gr!$C62","v":0},"","","","","","","","","","",""]
["",{"$f":"Notes_Candidats!$C65","v":0},"","","","","","","","","","","",null,null,null,null,null,null,null,null,null,null,null,null,null,null,null,null,null,null,null,null,null,null,null,null,null,"",{"$f":"Notes_2nd_Gr!$C63","v":0},"","","","","","","","","","",""]
["",{"$f":"Notes_Candidats!$C66","v":0},"","","","","","","","","","","",null,null,null,null,null,null,null,null,null,null,null,null,null,null,null,null,null,null,null,null,null,null,null,null,null,"",{"$f":"Notes_2nd_Gr!$C64","v":0},"","","","","","","","","","",""]
["",{"$f":"Notes_Candidats!$C67","v":0},"","","","","","","","","","","",null,null,null,null,null,null,null,null,null,null,null,null,null,null,null,null,null,null,null,null,null,null,null,null,null,"",{"$f":"Notes_2nd_Gr!$C65","v":0},"","","","","","","","","","",""]
["",{"$f":"Notes_Candidats!$C68","v":0},"","","","","","","","","","","",null,null,null,null,null,null,null,null,null,null,null,null,null,null,null,null,null,null,null,null,null,null,null,null,null,"",{"$f":"Notes_2nd_Gr!$C66","v":0},"","","","","","","","","","",""]
["",{"$f":"Notes_Candidats!$C69","v":0},"","","","","","","","","","","",null,null,null,null,null,null,null,null,null,null,null,null,null,null,null,null,null,null,null,null,null,null,null,null,null,"",{"$f":"Notes_2nd_Gr!$C67","v":0},"","","","","","","","","","",""]
["",{"$f":"Notes_Candidats!$C70","v":0},"","","","","","","","","","","",null,null,null,null,null,null,null,null,null,null,null,null,null,null,null,null,null,null,null,null,null,null,null,null,null,"",{"$f":"Notes_2nd_Gr!$C68","v":0},"","","","","","","","","","",""]
["",{"$f":"Notes_Candidats!$C71","v":0},"","","","","","","","","","","",null,null,null,null,null,null,null,null,null,null,null,null,null,null,null,null,null,null,null,null,null,null,null,null,null,"",{"$f":"Notes_2nd_Gr!$C69","v":0},"","","","","","","","","","",""]
["",{"$f":"Notes_Candidats!$C72","v":0},"","","","","","","","","","","",null,null,null,null,null,null,null,null,null,null,null,null,null,null,null,null,null,null,null,null,null,null,null,null,null,"",{"$f":"Notes_2nd_Gr!$C70","v":0},"","","","","","","","","","",""]
["",{"$f":"Notes_Candidats!$C73","v":0},"","","","","","","","","","","",null,null,null,null,null,null,null,null,null,null,null,null,null,null,null,null,null,null,null,null,null,null,null,null,null,"",{"$f":"Notes_2nd_Gr!$C71","v":0},"","","","","","","","","","",""]
["",{"$f":"Notes_Candidats!$C74","v":0},"","","","","","","","","","","",null,null,null,null,null,null,null,null,null,null,null,null,null,null,null,null,null,null,null,null,null,null,null,null,null,"",{"$f":"Notes_2nd_Gr!$C72","v":0},"","","","","","","","","","",""]
["",{"$f":"Notes_Candidats!$C75","v":0},"","","","","","","","","","","",null,null,null,null,null,null,null,null,null,null,null,null,null,null,null,null,null,null,null,null,null,null,null,null,null,"",{"$f":"Notes_2nd_Gr!$C73","v":0},"","","","","","","","","","",""]
["",{"$f":"Notes_Candidats!$C76","v":0},"","","","","","","","","","","",null,null,null,null,null,null,null,null,null,null,null,null,null,null,null,null,null,null,null,null,null,null,null,null,null,"",{"$f":"Notes_2nd_Gr!$C74","v":0},"","","","","","","","","","",""]
[{"$f":"IF(B75<>0,ROW()-10,\"\")","v":""},{"$f":"Notes_Candidats!$C77","v":0},{"$f":"IFERROR(INDEX(Pnam_1,MATCH($B75,N°_inscp1,0)),\"\")","v":""},{"$f":"IFERROR(INDEX(Nam_1,MATCH($B75,N°_inscp1,0)),\"\")","v":""},{"$f":"IFERROR(INDEX(DNais_1,MATCH($B75,N°_inscp1,0)),\"\")","v":""},{"$f":"IFERROR(INDEX(LNais_1,MATCH($B75,N°_inscp1,0)),\"\")","v":""},{"$f":"IFERROR(INDEX(Se_xe1,MATCH($B75,N°_inscp1,0)),\"\")","v":""},{"$f":"IFERROR(INDEX(Etat_1,MATCH($B75,N°_inscp1,0)),\"\")","v":""},{"$f":"IFERROR(INDEX(PuPriLi1,MATCH($B75,N°_inscp1,0)),\"\")","v":""},{"$f":"IFERROR(INDEX(TOT_1,MATCH($B75,N°_inscp1,0)),\"\")","v":""},{"$f":"IFERROR(INDEX(MOY_1,MATCH($B75,N°_inscp1,0)),\"\")","v":""},{"$f":"IFERROR(INDEX(Rang_1,MATCH($B75,N°_inscp1,0)),\"\")","v":""},{"$f":"IFERROR(INDEX(Rsltt_1,MATCH($B75,N°_inscp1,0)),\"\")","v":""},null,null,null,null,null,null,null,null,null,null,null,null,null,null,null,null,null,null,null,null,null,null,null,null,null,{"$f":"IF(AN75<>0,ROW()-10,\"\")","v":""},{"$f":"Notes_2nd_Gr!$C75","v":0},{"$f":"IFERROR(INDEX(Pnam_2,MATCH($AN75,N°_inscp2,0)),\"\")","v":""},{"$f":"IFERROR(INDEX(Nam_2,MATCH($AN75,N°_inscp2,0)),\"\")","v":""},{"$f":"IFERROR(INDEX(Dnais_2,MATCH($AN75,N°_inscp2,0)),\"\")","v":""},{"$f":"IFERROR(INDEX(Lnais_2,MATCH($AN75,N°_inscp2,0)),\"\")","v":""},{"$f":"IFERROR(INDEX(Se_xe2,MATCH($AN75,N°_inscp2,0)),\"\")","v":""},{"$f":"IFERROR(INDEX(Etat_2,MATCH($AN75,N°_inscp2,0)),\"\")","v":""},{"$f":"IFERROR(INDEX(PuPriLi2,MATCH($AN75,N°_inscp2,0)),\"\")","v":""},{"$f":"IFERROR(INDEX(TOT_2,MATCH($AN75,N°_inscp2,0)),\"\")","v":""},{"$f":"IFERROR(INDEX(MOY_2,MATCH($AN75,N°_inscp2,0)),\"\")","v":""},{"$f":"IFERROR(INDEX(Rang_2,MATCH($AN75,N°_inscp2,0)),\"\")","v":""},{"$f":"IFERROR(INDEX(Rsltt_2,MATCH($AN75,N°_inscp2,0)),\"\")","v":""}]
["",{"$f":"Notes_Candidats!$C78","v":0},"","","","","","","","","","","",null,null,null,null,null,null,null,null,null,null,null,null,null,null,null,null,null,null,null,null,null,null,null,null,null,"",{"$f":"Notes_2nd_Gr!$C76","v":0},"","","","","","","","","","",""]
["",{"$f":"Notes_Candidats!$C79","v":0},"","","","","","","","","","","",null,null,null,null,null,null,null,null,null,null,null,null,null,null,null,null,null,null,null,null,null,null,null,null,null,"",{"$f":"Notes_2nd_Gr!$C77","v":0},"","","","","","","","","","",""]
["",{"$f":"Notes_Candidats!$C80","v":0},"","","","","","","","","","","",null,null,null,null,null,null,null,null,null,null,null,null,null,null,null,null,null,null,null,null,null,null,null,null,null,"",{"$f":"Notes_2nd_Gr!$C78","v":0},"","","","","","","","","","",""]
["",{"$f":"Notes_Candidats!$C81","v":0},"","","","","","","","","","","",null,null,null,null,null,null,null,null,null,null,null,null,null,null,null,null,null,null,null,null,null,null,null,null,null,"",{"$f":"Notes_2nd_Gr!$C79","v":0},"","","","","","","","","","",""]
["",{"$f":"Notes_Candidats!$C82","v":0},"","","","","","","","","","","",null,null,null,null,null,null,null,null,null,null,null,null,null,null,null,null,null,null,null,null,null,null,null,null,null,"",{"$f":"Notes_2nd_Gr!$C80","v":0},"","","","","","","","","","",""]
["",{"$f":"Notes_Candidats!$C83","v":0},"","","","","","","","","","","",null,null,null,null,null,null,null,null,null,null,null,null,null,null,null,null,null,null,null,null,null,null,null,null,null,"",{"$f":"Notes_2nd_Gr!$C81","v":0},"","","","","","","","","","",""]
["",{"$f":"Notes_Candidats!$C84","v":0},"","","","","","","","","","","",null,null,null,null,null,null,null,null,null,null,null,null,null,null,null,null,null,null,null,null,null,null,null,null,null,"",{"$f":"Notes_2nd_Gr!$C82","v":0},"","","","","","","","","","",""]
["",{"$f":"Notes_Candidats!$C85","v":0},"","","","","","","","","","","",null,null,null,null,null,null,null,null,null,null,null,null,null,null,null,null,null,null,null,null,null,null,null,null,null,"",{"$f":"Notes_2nd_Gr!$C83","v":0},"","","","","","","","","","",""]
["",{"$f":"Notes_Candidats!$C86","v":0},"","","","","","","","","","","",null,null,null,null,null,null,null,null,null,null,null,null,null,null,null,null,null,null,null,null,null,null,null,null,null,"",{"$f":"Notes_2nd_Gr!$C84","v":0},"","","","","","","","","","",""]
["",{"$f":"Notes_Candidats!$C87","v":0},"","","","","","","","","","","",null,null,null,null,null,null,null,null,null,null,null,null,null,null,null,null,null,null,null,null,null,null,null,null,null,"",{"$f":"Notes_2nd_Gr!$C85","v":0},"","","","","","","","","","",""]
["",{"$f":"Notes_Candidats!$C88","v":0},"","","","","","","","","","","",null,null,null,null,null,null,null,null,null,null,null,null,null,null,null,null,null,null,null,null,null,null,null,null,null,"",{"$f":"Notes_2nd_Gr!$C86","v":0},"","","","","","","","","","",""]
["",{"$f":"Notes_Candidats!$C89","v":0},"","","","","","","","","","","",null,null,null,null,null,null,null,null,null,null,null,null,null,null,null,null,null,null,null,null,null,null,null,null,null,"",{"$f":"Notes_2nd_Gr!$C87","v":0},"","","","","","","","","","",""]
["",{"$f":"Notes_Candidats!$C90","v":0},"","","","","","","","","","","",null,null,null,null,null,null,null,null,null,null,null,null,null,null,null,null,null,null,null,null,null,null,null,null,null,"",{"$f":"Notes_2nd_Gr!$C88","v":0},"","","","","","","","","","",""]
["",{"$f":"Notes_Candidats!$C91","v":0},"","","","","","","","","","","",null,null,null,null,null,null,null,null,null,null,null,null,null,null,null,null,null,null,null,null,null,null,null,null,null,"",{"$f":"Notes_2nd_Gr!$C89","v":0},"","","","","","","","","","",""]
["",{"$f":"Notes_Candidats!$C92","v":0},"","","","","","","","","","","",null,null,null,null,null,null,null,null,null,null,null,null,null,null,null,null,null,null,null,null,null,null,null,null,null,"",{"$f":"Notes_2nd_Gr!$C90","v":0},"","","","","","","","","","",""]
["",{"$f":"Notes_Candidats!$C93","v":0},"","","","","","","","","","","",null,null,null,null,null,null,null,null,null,null,null,null,null,null,null,null,null,null,null,null,null,null,null,null,null,"",{"$f":"Notes_2nd_Gr!$C91","v":0},"","","","","","","","","","",""]
["",{"$f":"Notes_Candidats!$C94","v":0},"","","","","","","","","","","",null,null,null,null,null,null,null,null,null,null,null,null,null,null,null,null,null,null,null,null,null,null,null,null,null,"",{"$f":"Notes_2nd_Gr!$C92","v":0},"","","","","","","","","","",""]
["",{"$f":"Notes_Candidats!$C95","v":0},"","","","","","","","","","","",null,null,null,null,null,null,null,null,null,null,null,null,null,null,null,null,null,null,null,null,null,null,null,null,null,"",{"$f":"Notes_2nd_Gr!$C93","v":0},"","","","","","","","","","",""]
["",{"$f":"Notes_Candidats!$C96","v":0},"","","","","","","","","","","",null,null,null,null,null,null,null,null,null,null,null,null,null,null,null,null,null,null,null,null,null,null,null,null,null,"",{"$f":"Notes_2nd_Gr!$C94","v":0},"","","","","","","","","","",""]
["",{"$f":"Notes_Candidats!$C97","v":0},"","","","","","","","","","","",null,null,null,null,null,null,null,null,null,null,null,null,null,null,null,null,null,null,null,null,null,null,null,null,null,"",{"$f":"Notes_2nd_Gr!$C95","v":0},"","","","","","","","","","",""]
["",{"$f":"Notes_Candidats!$C98","v":0},"","","","","","","","","","","",null,null,null,null,null,null,null,null,null,null,null,null,null,null,null,null,null,null,null,null,null,null,null,null,null,"",{"$f":"Notes_2nd_Gr!$C96","v":0},"","","","","","","","","","",""]
["",{"$f":"Notes_Candidats!$C99","v":0},"","","","","","","","","","","",null,null,null,null,null,null,null,null,null,null,null,null,null,null,null,null,null,null,null,null,null,null,null,null,null,"",{"$f":"Notes_2nd_Gr!$C97","v":0},"","","","","","","","","","",""]
["",{"$f":"Notes_Candidats!$C100","v":0},"","","","","","","","","","","",null,null,null,null,null,null,null,null,null,null,null,null,null,null,null,null,null,null,null,null,null,null,null,null,null,"",{"$f":"Notes_2nd_Gr!$C98","v":0},"","","","","","","","","","",""]
["",{"$f":"Notes_Candidats!$C101","v":0},"","","","","","","","","","","",null,null,null,null,null,null,null,null,null,null,null,null,null,null,null,null,null,null,null,null,null,null,null,null,null,"",{"$f":"Notes_2nd_Gr!$C99","v":0},"","","","","","","","","","",""]
["",{"$f":"Notes_Candidats!$C102","v":0},"","","","","","","","","","","",null,null,null,null,null,null,null,null,null,null,null,null,null,null,null,null,null,null,null,null,null,null,null,null,null,"",{"$f":"Notes_2nd_Gr!$C100","v":0},"","","","","","","","","","",""]
["",{"$f":"Notes_Candidats!$C103","v":0},"","","","","","","","","","","",null,null,null,null,null,null,null,null,null,null,null,null,null,null,null,null,null,null,null,null,null,null,null,null,null,"",{"$f":"Notes_2nd_Gr!$C101","v":0},"","","","","","","","","","",""]
["",{"$f":"Notes_Candidats!$C104","v":0},"","","","","","","","","","","",null,null,null,null,null,null,null,null,null,null,null,null,null,null,null,null,null,null,null,null,null,null,null,null,null,"",{"$f":"Notes_2nd_Gr!$C102","v":0},"","","","","","","","","","",""]
["",{"$f":"Notes_Candidats!$C105","v":0},"","","","","","","","","","","",null,null,null,null,null,null,null,null,null,null,null,null,null,null,null,null,null,null,null,null,null,null,null,null,null,"",{"$f":"Notes_2nd_Gr!$C103","v":0},"","","","","","","","","","",""]
["",{"$f":"Notes_Candidats!$C106","v":0},"","","","","","","","","","","",null,null,null,null,null,null,null,null,null,null,null,null,null,null,null,null,null,null,null,null,null,null,null,null,null,"",{"$f":"Notes_2nd_Gr!$C104","v":0},"","","","","","","","","","",""]
["",{"$f":"Notes_Candidats!$C107","v":0},"","","","","","","","","","","",null,null,null,null,null,null,null,null,null,null,null,null,null,null,null,null,null,null,null,null,null,null,null,null,null,"",{"$f":"Notes_2nd_Gr!$C105","v":0},"","","","","","","","","","",""]
["",{"$f":"Notes_Candidats!$C108","v":0},"","","","","","","","","","","",null,null,null,null,null,null,null,null,null,null,null,null,null,null,null,null,null,null,null,null,null,null,null,null,null,"",{"$f":"Notes_2nd_Gr!$C106","v":0},"","","","","","","","","","",""]
["",{"$f":"Notes_Candidats!$C109","v":0},"","","","","","","","","","","",null,null,null,null,null,null,null,null,null,null,null,null,null,null,null,null,null,null,null,null,null,null,null,null,null,"",{"$f":"Notes_2nd_Gr!$C107","v":0},"","","","","","","","","","",""]
["",{"$f":"Notes_Candidats!$C110","v":0},"","","","","","","","","","","",null,null,null,null,null,null,null,null,null,null,null,null,null,null,null,null,null,null,null,null,null,null,null,null,null,"",{"$f":"Notes_2nd_Gr!$C108","v":0},"","","","","","","","","","",""]
["",{"$f":"Notes_Candidats!$C111","v":0},"","","","","","","","","","","",null,null,null,null,null,null,null,null,null,null,null,null,null,null,null,null,null,null,null,null,null,null,null,null,null,"",{"$f":"Notes_2nd_Gr!$C109","v":0},"","","","","","","","","","",""]
["",{"$f":"Notes_Candidats!$C112","v":0},"","","","","","","","","","","",null,null,null,null,null,null,null,null,null,null,null,null,null,null,null,null,null,null,null,null,null,null,null,null,null,"",{"$f":"Notes_2nd_Gr!$C110","v":0},"","","","","","","","","","",""]
["",{"$f":"Notes_Candidats!$C113","v":0},"","","","","","","","","","","",null,null,null,null,null,null,null,null,null,null,null,null,null,null,null,null,null,null,null,null,null,null,null,null,null,"",{"$f":"Notes_2nd_Gr!$C111","v":0},"","","","","","","","","","",""]
["",{"$f":"Notes_Candidats!$C114","v":0},"","","","","","","","","","","",null,null,null,null,null,null,null,null,null,null,null,null,null,null,null,null,null,null,null,null,null,null,null,null,null,"",{"$f":"Notes_2nd_Gr!$C112","v":0},"","","","","","","","","","",""]
["",{"$f":"Notes_Candidats!$C115","v":0},"","","","","","","","","","","",null,null,null,null,null,null,null,null,null,null,null,null,null,null,null,null,null,null,null,null,null,null,null,null,null,"",{"$f":"Notes_2nd_Gr!$C113","v":0},"","","","","","","","","","",""]
["",{"$f":"Notes_Candidats!$C116","v":0},"","","","","","","","","","","",null,null,null,null,null,null,null,null,null,null,null,null,null,null,null,null,null,null,null,null,null,null,null,null,null,"",{"$f":"Notes_2nd_Gr!$C114","v":0},"","","","","","","","","","",""]
["",{"$f":"Notes_Candidats!$C117","v":0},"","","","","","","","","","","",null,null,null,null,null,null,null,null,null,null,null,null,null,null,null,null,null,null,null,null,null,null,null,null,null,"",{"$f":"Notes_2nd_Gr!$C115","v":0},"","","","","","","","","","",""]
["",{"$f":"Notes_Candidats!$C118","v":0},"","","","","","","","","","","",null,null,null,null,null,null,null,null,null,null,null,null,null,null,null,null,null,null,null,null,null,null,null,null,null,"",{"$f":"Notes_2nd_Gr!$C116","v":0},"","","","","","","","","","",""]
["",{"$f":"Notes_Candidats!$C119","v":0},"","","","","","","","","","","",null,null,null,null,null,null,null,null,null,null,null,null,null,null,null,null,null,null,null,null,null,null,null,null,null,"",{"$f":"Notes_2nd_Gr!$C117","v":0},"","","","","","","","","","",""]
["",{"$f":"Notes_Candidats!$C120","v":0},"","","","","","","","","","","",null,null,null,null,null,null,null,null,null,null,null,null,null,null,null,null,null,null,null,null,null,null,null,null,null,"",{"$f":"Notes_2nd_Gr!$C118","v":0},"","","","","","","","","","",""]
["",{"$f":"Notes_Candidats!$C121","v":0},"","","","","","","","","","","",null,null,null,null,null,null,null,null,null,null,null,null,null,null,null,null,null,null,null,null,null,null,null,null,null,"",{"$f":"Notes_2nd_Gr!$C119","v":0},"","","","","","","","","","",""]
["",{"$f":"Notes_Candidats!$C122","v":0},"","","","","","","","","","","",null,null,null,null,null,null,null,null,null,null,null,null,null,null,null,null,null,null,null,null,null,null,null,null,null,"",{"$f":"Notes_2nd_Gr!$C120","v":0},"","","","","","","","","","",""]
["",{"$f":"Notes_Candidats!$C123","v":0},"","","","","","","","","","","",null,null,null,null,null,null,null,null,null,null,null,null,null,null,null,null,null,null,null,null,null,null,null,null,null,"",{"$f":"Notes_2nd_Gr!$C121","v":0},"","","","","","","","","","",""]
["",{"$f":"Notes_Candidats!$C124","v":0},"","","","","","","","","","","",null,null,null,null,null,null,null,null,null,null,null,null,null,null,null,null,null,null,null,null,null,null,null,null,null,"",{"$f":"Notes_2nd_Gr!$C122","v":0},"","","","","","","","","","",""]
["",{"$f":"Notes_Candidats!$C125","v":0},"","","","","","","","","","","",null,null,null,null,null,null,null,null,null,null,null,null,null,null,null,null,null,null,null,null,null,null,null,null,null,"",{"$f":"Notes_2nd_Gr!$C123","v":0},"","","","","","","","","","",""]
["",{"$f":"Notes_Candidats!$C126","v":0},"","","","","","","","","","","",null,null,null,null,null,null,null,null,null,null,null,null,null,null,null,null,null,null,null,null,null,null,null,null,null,"",{"$f":"Notes_2nd_Gr!$C124","v":0},"","","","","","","","","","",""]
["",{"$f":"Notes_Candidats!$C127","v":0},"","","","","","","","","","","",null,null,null,null,null,null,null,null,null,null,null,null,null,null,null,null,null,null,null,null,null,null,null,null,null,"",{"$f":"Notes_2nd_Gr!$C125","v":0},"","","","","","","","","","",""]
["",{"$f":"Notes_Candidats!$C128","v":0},"","","","","","","","","","","",null,null,null,null,null,null,null,null,null,null,null,null,null,null,null,null,null,null,null,null,null,null,null,null,null,"",{"$f":"Notes_2nd_Gr!$C126","v":0},"","","","","","","","","","",""]
["",{"$f":"Notes_Candidats!$C129","v":0},"","","","","","","","","","","",null,null,null,null,null,null,null,null,null,null,null,null,null,null,null,null,null,null,null,null,null,null,null,null,null,"",{"$f":"Notes_2nd_Gr!$C127","v":0},"","","","","","","","","","",""]
["",{"$f":"Notes_Candidats!$C130","v":0},"","","","","","","","","","","",null,null,null,null,null,null,null,null,null,null,null,null,null,null,null,null,null,null,null,null,null,null,null,null,null,"",{"$f":"Notes_2nd_Gr!$C128","v":0},"","","","","","","","","","",""]
["",{"$f":"Notes_Candidats!$C131","v":0},"","","","","","","","","","","",null,null,null,null,null,null,null,null,null,null,null,null,null,null,null,null,null,null,null,null,null,null,null,null,null,"",{"$f":"Notes_2nd_Gr!$C129","v":0},"","","","","","","","","","",""]
["",{"$f":"Notes_Candidats!$C132","v":0},"","","","","","","","","","","",null,null,null,null,null,null,null,null,null,null,null,null,null,null,null,null,null,null,null,null,null,null,null,null,null,"",{"$f":"Notes_2nd_Gr!$C130","v":0},"","","","","","","","","","",""]
["",{"$f":"Notes_Candidats!$C133","v":0},"","","","","","","","","","","",null,null,null,null,null,null,null,null,null,null,null,null,null,null,null,null,null,null,null,null,null,null,null,null,null,"",{"$f":"Notes_2nd_Gr!$C131","v":0},"","","","","","","","","","",""]
["",{"$f":"Notes_Candidats!$C134","v":0},"","","","","","","","","","","",null,null,null,null,null,null,null,null,null,null,null,null,null,null,null,null,null,null,null,null,null,null,null,null,null,"",{"$f":"Notes_2nd_Gr!$C132","v":0},"","","","","","","","","","",""]
["",{"$f":"Notes_Candidats!$C135","v":0},"","","","","","","","","","","",null,null,null,null,null,null,null,null,null,null,null,null,null,null,null,null,null,null,null,null,null,null,null,null,null,"",{"$f":"Notes_2nd_Gr!$C133","v":0},"","","","","","","","","","",""]
["",{"$f":"Notes_Candidats!$C136","v":0},"","","","","","","","","","","",null,null,null,null,null,null,null,null,null,null,null,null,null,null,null,null,null,null,null,null,null,null,null,null,null,"",{"$f":"Notes_2nd_Gr!$C134","v":0},"","","","","","","","","","",""]
["",{"$f":"Notes_Candidats!$C137","v":0},"","","","","","","","","","","",null,null,null,null,null,null,null,null,null,null,null,null,null,null,null,null,null,null,null,null,null,null,null,null,null,"",{"$f":"Notes_2nd_Gr!$C135","v":0},"","","","","","","","","","",""]
["",{"$f":"Notes_Candidats!$C138","v":0},"","","","","","","","","","","",null,null,null,null,null,null,null,null,null,null,null,null,null,null,null,null,null,null,null,null,null,null,null,null,null,"",{"$f":"Notes_2nd_Gr!$C136","v":0},"","","","","","","","","","",""]
["",{"$f":"Notes_Candidats!$C139","v":0},"","","","","","","","","","","",null,null,null,null,null,null,null,null,null,null,null,null,null,null,null,null,null,null,null,null,null,null,null,null,null,"",{"$f":"Notes_2nd_Gr!$C137","v":0},"","","","","","","","","","",""]
["",{"$f":"Notes_Candidats!$C140","v":0},"","","","","","","","","","","",null,null,null,null,null,null,null,null,null,null,null,null,null,null,null,null,null,null,null,null,null,null,null,null,null,"",{"$f":"Notes_2nd_Gr!$C138","v":0},"","","","","","","","","","",""]
[{"$f":"IF(B139<>0,ROW()-10,\"\")","v":""},{"$f":"Notes_Candidats!$C141","v":0},{"$f":"IFERROR(INDEX(Pnam_1,MATCH($B139,N°_inscp1,0)),\"\")","v":""},{"$f":"IFERROR(INDEX(Nam_1,MATCH($B139,N°_inscp1,0)),\"\")","v":""},{"$f":"IFERROR(INDEX(DNais_1,MATCH($B139,N°_inscp1,0)),\"\")","v":""},{"$f":"IFERROR(INDEX(LNais_1,MATCH($B139,N°_inscp1,0)),\"\")","v":""},{"$f":"IFERROR(INDEX(Se_xe1,MATCH($B139,N°_inscp1,0)),\"\")","v":""},{"$f":"IFERROR(INDEX(Etat_1,MATCH($B139,N°_inscp1,0)),\"\")","v":""},{"$f":"IFERROR(INDEX(PuPriLi1,MATCH($B139,N°_inscp1,0)),\"\")","v":""},{"$f":"IFERROR(INDEX(TOT_1,MATCH($B139,N°_inscp1,0)),\"\")","v":""},{"$f":"IFERROR(INDEX(MOY_1,MATCH($B139,N°_inscp1,0)),\"\")","v":""},{"$f":"IFERROR(INDEX(Rang_1,MATCH($B139,N°_inscp1,0)),\"\")","v":""},{"$f":"IFERROR(INDEX(Rsltt_1,MATCH($B139,N°_inscp1,0)),\"\")","v":""},null,null,null,null,null,null,null,null,null,null,null,null,null,null,null,null,null,null,null,null,null,null,null,null,null,{"$f":"IF(AN139<>0,ROW()-10,\"\")","v":""},{"$f":"Notes_2nd_Gr!$C139","v":0},{"$f":"IFERROR(INDEX(Pnam_2,MATCH($AN139,N°_inscp2,0)),\"\")","v":""},{"$f":"IFERROR(INDEX(Nam_2,MATCH($AN139,N°_inscp2,0)),\"\")","v":""},{"$f":"IFERROR(INDEX(Dnais_2,MATCH($AN139,N°_inscp2,0)),\"\")","v":""},{"$f":"IFERROR(INDEX(Lnais_2,MATCH($AN139,N°_inscp2,0)),\"\")","v":""},{"$f":"IFERROR(INDEX(Se_xe2,MATCH($AN139,N°_inscp2,0)),\"\")","v":""},{"$f":"IFERROR(INDEX(Etat_2,MATCH($AN139,N°_inscp2,0)),\"\")","v":""},{"$f":"IFERROR(INDEX(PuPriLi2,MATCH($AN139,N°_inscp2,0)),\"\")","v":""},{"$f":"IFERROR(INDEX(TOT_2,MATCH($AN139,N°_inscp2,0)),\"\")","v":""},{"$f":"IFERROR(INDEX(MOY_2,MATCH($AN139,N°_inscp2,0)),\"\")","v":""},{"$f":"IFERROR(INDEX(Rang_2,MATCH($AN139,N°_inscp2,0)),\"\")","v":""},{"$f":"IFERROR(INDEX(Rsltt_2,MATCH($AN139,N°_inscp2,0)),\"\")","v":""}]
["",{"$f":"Notes_Candidats!$C142","v":0},"","","","","","","","","","","",null,null,null,null,null,null,null,null,null,null,null,null,null,null,null,null,null,null,null,null,null,null,null,null,null,"",{"$f":"Notes_2nd_Gr!$C140","v":0},"","","","","","","","","","",""]
["",{"$f":"Notes_Candidats!$C143","v":0},"","","","","","","","","","","",null,null,null,null,null,null,null,null,null,null,null,null,null,null,null,null,null,null,null,null,null,null,null,null,null,"",{"$f":"Notes_2nd_Gr!$C141","v":0},"","","","","","","","","","",""]
["",{"$f":"Notes_Candidats!$C144","v":0},"","","","","","","","","","","",null,null,null,null,null,null,null,null,null,null,null,null,null,null,null,null,null,null,null,null,null,null,null,null,null,"",{"$f":"Notes_2nd_Gr!$C142","v":0},"","","","","","","","","","",""]
["",{"$f":"Notes_Candidats!$C145","v":0},"","","","","","","","","","","",null,null,null,null,null,null,null,null,null,null,null,null,null,null,null,null,null,null,null,null,null,null,null,null,null,"",{"$f":"Notes_2nd_Gr!$C143","v":0},"","","","","","","","","","",""]
["",{"$f":"Notes_Candidats!$C146","v":0},"","","","","","","","","","","",null,null,null,null,null,null,null,null,null,null,null,null,null,null,null,null,null,null,null,null,null,null,null,null,null,"",{"$f":"Notes_2nd_Gr!$C144","v":0},"","","","","","","","","","",""]
["",{"$f":"Notes_Candidats!$C147","v":0},"","","","","","","","","","","",null,null,null,null,null,null,null,null,null,null,null,null,null,null,null,null,null,null,null,null,null,null,null,null,null,"",{"$f":"Notes_2nd_Gr!$C145","v":0},"","","","","","","","","","",""]
["",{"$f":"Notes_Candidats!$C148","v":0},"","","","","","","","","","","",null,null,null,null,null,null,null,null,null,null,null,null,null,null,null,null,null,null,null,null,null,null,null,null,null,"",{"$f":"Notes_2nd_Gr!$C146","v":0},"","","","","","","","","","",""]
["",{"$f":"Notes_Candidats!$C149","v":0},"","","","","","","","","","","",null,null,null,null,null,null,null,null,null,null,null,null,null,null,null,null,null,null,null,null,null,null,null,null,null,"",{"$f":"Notes_2nd_Gr!$C147","v":0},"","","","","","","","","","",""]
["",{"$f":"Notes_Candidats!$C150","v":0},"","","","","","","","","","","",null,null,null,null,null,null,null,null,null,null,null,null,null,null,null,null,null,null,null,null,null,null,null,null,null,"",{"$f":"Notes_2nd_Gr!$C148","v":0},"","","","","","","","","","",""]
["",{"$f":"Notes_Candidats!$C151","v":0},"","","","","","","","","","","",null,null,null,null,null,null,null,null,null,null,null,null,null,null,null,null,null,null,null,null,null,null,null,null,null,"",{"$f":"Notes_2nd_Gr!$C149","v":0},"","","","","","","","","","",""]
["",{"$f":"Notes_Candidats!$C152","v":0},"","","","","","","","","","","",null,null,null,null,null,null,null,null,null,null,null,null,null,null,null,null,null,null,null,null,null,null,null,null,null,"",{"$f":"Notes_2nd_Gr!$C150","v":0},"","","","","","","","","","",""]
["",{"$f":"Notes_Candidats!$C153","v":0},"","","","","","","","","","","",null,null,null,null,null,null,null,null,null,null,null,null,null,null,null,null,null,null,null,null,null,null,null,null,null,"",{"$f":"Notes_2nd_Gr!$C151","v":0},"","","","","","","","","","",""]
["",{"$f":"Notes_Candidats!$C154","v":0},"","","","","","","","","","","",null,null,null,null,null,null,null,null,null,null,null,null,null,null,null,null,null,null,null,null,null,null,null,null,null,"",{"$f":"Notes_2nd_Gr!$C152","v":0},"","","","","","","","","","",""]
["",{"$f":"Notes_Candidats!$C155","v":0},"","","","","","","","","","","",null,null,null,null,null,null,null,null,null,null,null,null,null,null,null,null,null,null,null,null,null,null,null,null,null,"",{"$f":"Notes_2nd_Gr!$C153","v":0},"","","","","","","","","","",""]
["",{"$f":"Notes_Candidats!$C156","v":0},"","","","","","","","","","","",null,null,null,null,null,null,null,null,null,null,null,null,null,null,null,null,null,null,null,null,null,null,null,null,null,"",{"$f":"Notes_2nd_Gr!$C154","v":0},"","","","","","","","","","",""]
["",{"$f":"Notes_Candidats!$C157","v":0},"","","","","","","","","","","",null,null,null,null,null,null,null,null,null,null,null,null,null,null,null,null,null,null,null,null,null,null,null,null,null,"",{"$f":"Notes_2nd_Gr!$C155","v":0},"","","","","","","","","","",""]
["",{"$f":"Notes_Candidats!$C158","v":0},"","","","","","","","","","","",null,null,null,null,null,null,null,null,null,null,null,null,null,null,null,null,null,null,null,null,null,null,null,null,null,"",{"$f":"Notes_2nd_Gr!$C156","v":0},"","","","","","","","","","",""]
["",{"$f":"Notes_Candidats!$C159","v":0},"","","","","","","","","","","",null,null,null,null,null,null,null,null,null,null,null,null,null,null,null,null,null,null,null,null,null,null,null,null,null,"",{"$f":"Notes_2nd_Gr!$C157","v":0},"","","","","","","","","","",""]
["",{"$f":"Notes_Candidats!$C160","v":0},"","","","","","","","","","","",null,null,null,null,null,null,null,null,null,null,null,null,null,null,null,null,null,null,null,null,null,null,null,null,null,"",{"$f":"Notes_2nd_Gr!$C158","v":0},"","","","","","","","","","",""]
["",{"$f":"Notes_Candidats!$C161","v":0},"","","","","","","","","","","",null,null,null,null,null,null,null,null,null,null,null,null,null,null,null,null,null,null,null,null,null,null,null,null,null,"",{"$f":"Notes_2nd_Gr!$C159","v":0},"","","","","","","","","","",""]
["",{"$f":"Notes_Candidats!$C162","v":0},"","","","","","","","","","","",null,null,null,null,null,null,null,null,null,null,null,null,null,null,null,null,null,null,null,null,null,null,null,null,null,"",{"$f":"Notes_2nd_Gr!$C160","v":0},"","","","","","","","","","",""]
["",{"$f":"Notes_Candidats!$C163","v":0},"","","","","","","","","","","",null,null,null,null,null,null,null,null,null,null,null,null,null,null,null,null,null,null,null,null,null,null,null,null,null,"",{"$f":"Notes_2nd_Gr!$C161","v":0},"","","","","","","","","","",""]
["",{"$f":"Notes_Candidats!$C164","v":0},"","","","","","","","","","","",null,null,null,null,null,null,null,null,null,null,null,null,null,null,null,null,null,null,null,null,null,null,null,null,null,"",{"$f":"Notes_2nd_Gr!$C162","v":0},"","","","","","","","","","",""]
["",{"$f":"Notes_Candidats!$C165","v":0},"","","","","","","","","","","",null,null,null,null,null,null,null,null,null,null,null,null,null,null,null,null,null,null,null,null,null,null,null,null,null,"",{"$f":"Notes_2nd_Gr!$C163","v":0},"","","","","","","","","","",""]
["",{"$f":"Notes_Candidats!$C166","v":0},"","","","","","","","","","","",null,null,null,null,null,null,null,null,null,null,null,null,null,null,null,null,null,null,null,null,null,null,null,null,null,"",{"$f":"Notes_2nd_Gr!$C164","v":0},"","","","","","","","","","",""]
["",{"$f":"Notes_Candidats!$C167","v":0},"","","","","","","","","","","",null,null,null,null,null,null,null,null,null,null,null,null,null,null,null,null,null,null,null,null,null,null,null,null,null,"",{"$f":"Notes_2nd_Gr!$C165","v":0},"","","","","","","","","","",""]
["",{"$f":"Notes_Candidats!$C168","v":0},"","","","","","","","","","","",null,null,null,null,null,null,null,null,null,null,null,null,null,null,null,null,null,null,null,null,null,null,null,null,null,"",{"$f":"Notes_2nd_Gr!$C166","v":0},"","","","","","","","","","",""]
["",{"$f":"Notes_Candidats!$C169","v":0},"","","","","","","","","","","",null,null,null,null,null,null,null,null,null,null,null,null,null,null,null,null,null,null,null,null,null,null,null,null,null,"",{"$f":"Notes_2nd_Gr!$C167","v":0},"","","","","","","","","","",""]
["",{"$f":"Notes_Candidats!$C170","v":0},"","","","","","","","","","","",null,null,null,null,null,null,null,null,null,null,null,null,null,null,null,null,null,null,null,null,null,null,null,null,null,"",{"$f":"Notes_2nd_Gr!$C168","v":0},"","","","","","","","","","",""]
["",{"$f":"Notes_Candidats!$C171","v":0},"","","","","","","","","","","",null,null,null,null,null,null,null,null,null,null,null,null,null,null,null,null,null,null,null,null,null,null,null,null,null,"",{"$f":"Notes_2nd_Gr!$C169","v":0},"","","","","","","","","","",""]
["",{"$f":"Notes_Candidats!$C172","v":0},"","","","","","","","","","","",null,null,null,null,null,null,null,null,null,null,null,null,null,null,null,null,null,null,null,null,null,null,null,null,null,"",{"$f":"Notes_2nd_Gr!$C170","v":0},"","","","","","","","","","",""]
["",{"$f":"Notes_Candidats!$C173","v":0},"","","","","","","","","","","",null,null,null,null,null,null,null,null,null,null,null,null,null,null,null,null,null,null,null,null,null,null,null,null,null,"",{"$f":"Notes_2nd_Gr!$C171","v":0},"","","","","","","","","","",""]
["",{"$f":"Notes_Candidats!$C174","v":0},"","","","","","","","","","","",null,null,null,null,null,null,null,null,null,null,null,null,null,null,null,null,null,null,null,null,null,null,null,null,null,"",{"$f":"Notes_2nd_Gr!$C172","v":0},"","","","","","","","","","",""]
["",{"$f":"Notes_Candidats!$C175","v":0},"","","","","","","","","","","",null,null,null,null,null,null,null,null,null,null,null,null,null,null,null,null,null,null,null,null,null,null,null,null,null,"",{"$f":"Notes_2nd_Gr!$C173","v":0},"","","","","","","","","","",""]
["",{"$f":"Notes_Candidats!$C176","v":0},"","","","","","","","","","","",null,null,null,null,null,null,null,null,null,null,null,null,null,null,null,null,null,null,null,null,null,null,null,null,null,"",{"$f":"Notes_2nd_Gr!$C174","v":0},"","","","","","","","","","",""]
["",{"$f":"Notes_Candidats!$C177","v":0},"","","","","","","","","","","",null,null,null,null,null,null,null,null,null,null,null,null,null,null,null,null,null,null,null,null,null,null,null,null,null,"",{"$f":"Notes_2nd_Gr!$C175","v":0},"","","","","","","","","","",""]
["",{"$f":"Notes_Candidats!$C178","v":0},"","","","","","","","","","","",null,null,null,null,null,null,null,null,null,null,null,null,null,null,null,null,null,null,null,null,null,null,null,null,null,"",{"$f":"Notes_2nd_Gr!$C176","v":0},"","","","","","","","","","",""]
["",{"$f":"Notes_Candidats!$C179","v":0},"","","","","","","","","","","",null,null,null,null,null,null,null,null,null,null,null,null,null,null,null,null,null,null,null,null,null,null,null,null,null,"",{"$f":"Notes_2nd_Gr!$C177","v":0},"","","","","","","","","","",""]
["",{"$f":"Notes_Candidats!$C180","v":0},"","","","","","","","","","","",null,null,null,null,null,null,null,null,null,null,null,null,null,null,null,null,null,null,null,null,null,null,null,null,null,"",{"$f":"Notes_2nd_Gr!$C178","v":0},"","","","","","","","","","",""]
["",{"$f":"Notes_Candidats!$C181","v":0},"","","","","","","","","","","",null,null,null,null,null,null,null,null,null,null,null,null,null,null,null,null,null,null,null,null,null,null,null,null,null,"",{"$f":"Notes_2nd_Gr!$C179","v":0},"","","","","","","","","","",""]
["",{"$f":"Notes_Candidats!$C182","v":0},"","","","","","","","","","","",null,null,null,null,null,null,null,null,null,null,null,null,null,null,null,null,null,null,null,null,null,null,null,null,null,"",{"$f":"Notes_2nd_Gr!$C180","v":0},"","","","","","","","","","",""]
["",{"$f":"Notes_Candidats!$C183","v":0},"","","","","","","","","","","",null,null,null,null,null,null,null,null,null,null,null,null,null,null,null,null,null,null,null,null,null,null,null,null,null,"",{"$f":"Notes_2nd_Gr!$C181","v":0},"","","","","","","","","","",""]
["",{"$f":"Notes_Candidats!$C184","v":0},"","","","","","","","","","","",null,null,null,null,null,null,null,null,null,null,null,null,null,null,null,null,null,null,null,null,null,null,null,null,null,"",{"$f":"Notes_2nd_Gr!$C182","v":0},"","","","","","","","","","",""]
["",{"$f":"Notes_Candidats!$C185","v":0},"","","","","","","","","","","",null,null,null,null,null,null,null,null,null,null,null,null,null,null,null,null,null,null,null,null,null,null,null,null,null,"",{"$f":"Notes_2nd_Gr!$C183","v":0},"","","","","","","","","","",""]
["",{"$f":"Notes_Candidats!$C186","v":0},"","","","","","","","","","","",null,null,null,null,null,null,null,null,null,null,null,null,null,null,null,null,null,null,null,null,null,null,null,null,null,"",{"$f":"Notes_2nd_Gr!$C184","v":0},"","","","","","","","","","",""]
["",{"$f":"Notes_Candidats!$C187","v":0},"","","","","","","","","","","",null,null,null,null,null,null,null,null,null,null,null,null,null,null,null,null,null,null,null,null,null,null,null,null,null,"",{"$f":"Notes_2nd_Gr!$C185","v":0},"","","","","","","","","","",""]
["",{"$f":"Notes_Candidats!$C188","v":0},"","","","","","","","","","","",null,null,null,null,null,null,null,null,null,null,null,null,null,null,null,null,null,null,null,null,null,null,null,null,null,"",{"$f":"Notes_2nd_Gr!$C186","v":0},"","","","","","","","","","",""]
["",{"$f":"Notes_Candidats!$C189","v":0},"","","","","","","","","","","",null,null,null,null,null,null,null,null,null,null,null,null,null,null,null,null,null,null,null,null,null,null,null,null,null,"",{"$f":"Notes_2nd_Gr!$C187","v":0},"","","","","","","","","","",""]
["",{"$f":"Notes_Candidats!$C190","v":0},"","","","","","","","","","","",null,null,null,null,null,null,null,null,null,null,null,null,null,null,null,null,null,null,null,null,null,null,null,null,null,"",{"$f":"Notes_2nd_Gr!$C188","v":0},"","","","","","","","","","",""]
["",{"$f":"Notes_Candidats!$C191","v":0},"","","","","","","","","","","",null,null,null,null,null,null,null,null,null,null,null,null,null,null,null,null,null,null,null,null,null,null,null,null,null,"",{"$f":"Notes_2nd_Gr!$C189","v":0},"","","","","","","","","","",""]
["",{"$f":"Notes_Candidats!$C192","v":0},"","","","","","","","","","","",null,null,null,null,null,null,null,null,null,null,null,null,null,null,null,null,null,null,null,null,null,null,null,null,null,"",{"$f":"Notes_2nd_Gr!$C190","v":0},"","","","","","","","","","",""]
["",{"$f":"Notes_Candidats!$C193","v":0},"","","","","","","","","","","",null,null,null,null,null,null,null,null,null,null,null,null,null,null,null,null,null,null,null,null,null,null,null,null,null,"",{"$f":"Notes_2nd_Gr!$C191","v":0},"","","","","","","","","","",""]
["",{"$f":"Notes_Candidats!$C194","v":0},"","","","","","","","","","","",null,null,null,null,null,null,null,null,null,null,null,null,null,null,null,null,null,null,null,null,null,null,null,null,null,"",{"$f":"Notes_2nd_Gr!$C192","v":0},"","","","","","","","","","",""]
["",{"$f":"Notes_Candidats!$C195","v":0},"","","","","","","","","","","",null,null,null,null,null,null,null,null,null,null,null,null,null,null,null,null,null,null,null,null,null,null,null,null,null,"",{"$f":"Notes_2nd_Gr!$C193","v":0},"","","","","","","","","","",""]
["",{"$f":"Notes_Candidats!$C196","v":0},"","","","","","","","","","","",null,null,null,null,null,null,null,null,null,null,null,null,null,null,null,null,null,null,null,null,null,null,null,null,null,"",{"$f":"Notes_2nd_Gr!$C194","v":0},"","","","","","","","","","",""]
["",{"$f":"Notes_Candidats!$C197","v":0},"","","","","","","","","","","",null,null,null,null,null,null,null,null,null,null,null,null,null,null,null,null,null,null,null,null,null,null,null,null,null,"",{"$f":"Notes_2nd_Gr!$C195","v":0},"","","","","","","","","","",""]
["",{"$f":"Notes_Candidats!$C198","v":0},"","","","","","","","","","","",null,null,null,null,null,null,null,null,null,null,null,null,null,null,null,null,null,null,null,null,null,null,null,null,null,"",{"$f":"Notes_2nd_Gr!$C196","v":0},"","","","","","","","","","",""]
["",{"$f":"Notes_Candidats!$C199","v":0},"","","","","","","","","","","",null,null,null,null,null,null,null,null,null,null,null,null,null,null,null,null,null,null,null,null,null,null,null,null,null,"",{"$f":"Notes_2nd_Gr!$C197","v":0},"","","","","","","","","","",""]
["",{"$f":"Notes_Candidats!$C200","v":0},"","","","","","","","","","","",null,null,null,null,null,null,null,null,null,null,null,null,null,null,null,null,null,null,null,null,null,null,null,null,null,"",{"$f":"Notes_2nd_Gr!$C198","v":0},"","","","","","","","","","",""]
["",{"$f":"Notes_Candidats!$C201","v":0},"","","","","","","","","","","",null,null,null,null,null,null,null,null,null,null,null,null,null,null,null,null,null,null,null,null,null,null,null,null,null,"",{"$f":"Notes_2nd_Gr!$C199","v":0},"","","","","","","","","","",""]
["",{"$f":"Notes_Candidats!$C202","v":0},"","","","","","","","","","","",null,null,null,null,null,null,null,null,null,null,null,null,null,null,null,null,null,null,null,null,null,null,null,null,null,"",{"$f":"Notes_2nd_Gr!$C200","v":0},"","","","","","","","","","",""]
["",{"$f":"Notes_Candidats!$C203","v":0},"","","","","","","","","","","",null,null,null,null,null,null,null,null,null,null,null,null,null,null,null,null,null,null,null,null,null,null,null,null,null,"",{"$f":"Notes_2nd_Gr!$C201","v":0},"","","","","","","","","","",""]
["",{"$f":"Notes_Candidats!$C204","v":0},"","","","","","","","","","","",null,null,null,null,null,null,null,null,null,null,null,null,null,null,null,null,null,null,null,null,null,null,null,null,null,"",{"$f":"Notes_2nd_Gr!$C202","v":0},"","","","","","","","","","",""]
[{"$f":"IF(B203<>0,ROW()-10,\"\")","v":""},{"$f":"Notes_Candidats!$C205","v":0},{"$f":"IFERROR(INDEX(Pnam_1,MATCH($B203,N°_inscp1,0)),\"\")","v":""},{"$f":"IFERROR(INDEX(Nam_1,MATCH($B203,N°_inscp1,0)),\"\")","v":""},{"$f":"IFERROR(INDEX(DNais_1,MATCH($B203,N°_inscp1,0)),\"\")","v":""},{"$f":"IFERROR(INDEX(LNais_1,MATCH($B203,N°_inscp1,0)),\"\")","v":""},{"$f":"IFERROR(INDEX(Se_xe1,MATCH($B203,N°_inscp1,0)),\"\")","v":""},{"$f":"IFERROR(INDEX(Etat_1,MATCH($B203,N°_inscp1,0)),\"\")","v":""},{"$f":"IFERROR(INDEX(PuPriLi1,MATCH($B203,N°_inscp1,0)),\"\")","v":""},{"$f":"IFERROR(INDEX(TOT_1,MATCH($B203,N°_inscp1,0)),\"\")","v":""},{"$f":"IFERROR(INDEX(MOY_1,MATCH($B203,N°_inscp1,0)),\"\")","v":""},{"$f":"IFERROR(INDEX(Rang_1,MATCH($B203,N°_inscp1,0)),\"\")","v":""},{"$f":"IFERROR(INDEX(Rsltt_1,MATCH($B203,N°_inscp1,0)),\"\")","v":""},null,null,null,null,null,null,null,null,null,null,null,null,null,null,null,null,null,null,null,null,null,null,null,null,null,{"$f":"IF(AN203<>0,ROW()-10,\"\")","v":""},{"$f":"Notes_2nd_Gr!$C203","v":0},{"$f":"IFERROR(INDEX(Pnam_2,MATCH($AN203,N°_inscp2,0)),\"\")","v":""},{"$f":"IFERROR(INDEX(Nam_2,MATCH($AN203,N°_inscp2,0)),\"\")","v":""},{"$f":"IFERROR(INDEX(Dnais_2,MATCH($AN203,N°_inscp2,0)),\"\")","v":""},{"$f":"IFERROR(INDEX(Lnais_2,MATCH($AN203,N°_inscp2,0)),\"\")","v":""},{"$f":"IFERROR(INDEX(Se_xe2,MATCH($AN203,N°_inscp2,0)),\"\")","v":""},{"$f":"IFERROR(INDEX(Etat_2,MATCH($AN203,N°_inscp2,0)),\"\")","v":""},{"$f":"IFERROR(INDEX(PuPriLi2,MATCH($AN203,N°_inscp2,0)),\"\")","v":""},{"$f":"IFERROR(INDEX(TOT_2,MATCH($AN203,N°_inscp2,0)),\"\")","v":""},{"$f":"IFERROR(INDEX(MOY_2,MATCH($AN203,N°_inscp2,0)),\"\")","v":""},{"$f":"IFERROR(INDEX(Rang_2,MATCH($AN203,N°_inscp2,0)),\"\")","v":""},{"$f":"IFERROR(INDEX(Rsltt_2,MATCH($AN203,N°_inscp2,0)),\"\")","v":""}]
["",{"$f":"Notes_Candidats!$C206","v":0},"","","","","","","","","","","",null,null,null,null,null,null,null,null,null,null,null,null,null,null,null,null,null,null,null,null,null,null,null,null,null,"",{"$f":"Notes_2nd_Gr!$C204","v":0},"","","","","","","","","","",""]
["",{"$f":"Notes_Candidats!$C207","v":0},"","","","","","","","","","","",null,null,null,null,null,null,null,null,null,null,null,null,null,null,null,null,null,null,null,null,null,null,null,null,null,"",{"$f":"Notes_2nd_Gr!$C205","v":0},"","","","","","","","","","",""]
["",{"$f":"Notes_Candidats!$C208","v":0},"","","","","","","","","","","",null,null,null,null,null,null,null,null,null,null,null,null,null,null,null,null,null,null,null,null,null,null,null,null,null,"",{"$f":"Notes_2nd_Gr!$C206","v":0},"","","","","","","","","","",""]
["",{"$f":"Notes_Candidats!$C209","v":0},"","","","","","","","","","","",null,null,null,null,null,null,null,null,null,null,null,null,null,null,null,null,null,null,null,null,null,null,null,null,null,"",{"$f":"Notes_2nd_Gr!$C207","v":0},"","","","","","","","","","",""]
["",{"$f":"Notes_Candidats!$C210","v":0},"","","","","","","","","","","",null,null,null,null,null,null,null,null,null,null,null,null,null,null,null,null,null,null,null,null,null,null,null,null,null,"",{"$f":"Notes_2nd_Gr!$C208","v":0},"","","","","","","","","","",""]
["",{"$f":"Notes_Candidats!$C211","v":0},"","","","","","","","","","","",null,null,null,null,null,null,null,null,null,null,null,null,null,null,null,null,null,null,null,null,null,null,null,null,null,"",{"$f":"Notes_2nd_Gr!$C209","v":0},"","","","","","","","","","",""]
["",{"$f":"Notes_Candidats!$C212","v":0},"","","","","","","","","","","",null,null,null,null,null,null,null,null,null,null,null,null,null,null,null,null,null,null,null,null,null,null,null,null,null,"",{"$f":"Notes_2nd_Gr!$C210","v":0},"","","","","","","","","","",""]
["",{"$f":"Notes_Candidats!$C213","v":0},"","","","","","","","","","","",null,null,null,null,null,null,null,null,null,null,null,null,null,null,null,null,null,null,null,null,null,null,null,null,null,"",{"$f":"Notes_2nd_Gr!$C211","v":0},"","","","","","","","","","",""]
["",{"$f":"Notes_Candidats!$C214","v":0},"","","","","","","","","","","",null,null,null,null,null,null,null,null,null,null,null,null,null,null,null,null,null,null,null,null,null,null,null,null,null,"",{"$f":"Notes_2nd_Gr!$C212","v":0},"","","","","","","","","","",""]
["",{"$f":"Notes_Candidats!$C215","v":0},"","","","","","","","","","","",null,null,null,null,null,null,null,null,null,null,null,null,null,null,null,null,null,null,null,null,null,null,null,null,null,"",{"$f":"Notes_2nd_Gr!$C213","v":0},"","","","","","","","","","",""]
["",{"$f":"Notes_Candidats!$C216","v":0},"","","","","","","","","","","",null,null,null,null,null,null,null,null,null,null,null,null,null,null,null,null,null,null,null,null,null,null,null,null,null,"",{"$f":"Notes_2nd_Gr!$C214","v":0},"","","","","","","","","","",""]
["",{"$f":"Notes_Candidats!$C217","v":0},"","","","","","","","","","","",null,null,null,null,null,null,null,null,null,null,null,null,null,null,null,null,null,null,null,null,null,null,null,null,null,"",{"$f":"Notes_2nd_Gr!$C215","v":0},"","","","","","","","","","",""]
["",{"$f":"Notes_Candidats!$C218","v":0},"","","","","","","","","","","",null,null,null,null,null,null,null,null,null,null,null,null,null,null,null,null,null,null,null,null,null,null,null,null,null,"",{"$f":"Notes_2nd_Gr!$C216","v":0},"","","","","","","","","","",""]
["",{"$f":"Notes_Candidats!$C219","v":0},"","","","","","","","","","","",null,null,null,null,null,null,null,null,null,null,null,null,null,null,null,null,null,null,null,null,null,null,null,null,null,"",{"$f":"Notes_2nd_Gr!$C217","v":0},"","","","","","","","","","",""]
["",{"$f":"Notes_Candidats!$C220","v":0},"","","","","","","","","","","",null,null,null,null,null,null,null,null,null,null,null,null,null,null,null,null,null,null,null,null,null,null,null,null,null,"",{"$f":"Notes_2nd_Gr!$C218","v":0},"","","","","","","","","","",""]
["",{"$f":"Notes_Candidats!$C221","v":0},"","","","","","","","","","","",null,null,null,null,null,null,null,null,null,null,null,null,null,null,null,null,null,null,null,null,null,null,null,null,null,"",{"$f":"Notes_2nd_Gr!$C219","v":0},"","","","","","","","","","",""]
["",{"$f":"Notes_Candidats!$C222","v":0},"","","","","","","","","","","",null,null,null,null,null,null,null,null,null,null,null,null,null,null,null,null,null,null,null,null,null,null,null,null,null,"",{"$f":"Notes_2nd_Gr!$C220","v":0},"","","","","","","","","","",""]
["",{"$f":"Notes_Candidats!$C223","v":0},"","","","","","","","","","","",null,null,null,null,null,null,null,null,null,null,null,null,null,null,null,null,null,null,null,null,null,null,null,null,null,"",{"$f":"Notes_2nd_Gr!$C221","v":0},"","","","","","","","","","",""]
["",{"$f":"Notes_Candidats!$C224","v":0},"","","","","","","","","","","",null,null,null,null,null,null,null,null,null,null,null,null,null,null,null,null,null,null,null,null,null,null,null,null,null,"",{"$f":"Notes_2nd_Gr!$C222","v":0},"","","","","","","","","","",""]
["",{"$f":"Notes_Candidats!$C225","v":0},"","","","","","","","","","","",null,null,null,null,null,null,null,null,null,null,null,null,null,null,null,null,null,null,null,null,null,null,null,null,null,"",{"$f":"Notes_2nd_Gr!$C223","v":0},"","","","","","","","","","",""]
["",{"$f":"Notes_Candidats!$C226","v":0},"","","","","","","","","","","",null,null,null,null,null,null,null,null,null,null,null,null,null,null,null,null,null,null,null,null,null,null,null,null,null,"",{"$f":"Notes_2nd_Gr!$C224","v":0},"","","","","","","","","","",""]
["",{"$f":"Notes_Candidats!$C227","v":0},"","","","","","","","","","","",null,null,null,null,null,null,null,null,null,null,null,null,null,null,null,null,null,null,null,null,null,null,null,null,null,"",{"$f":"Notes_2nd_Gr!$C225","v":0},"","","","","","","","","","",""]
["",{"$f":"Notes_Candidats!$C228","v":0},"","","","","","","","","","","",null,null,null,null,null,null,null,null,null,null,null,null,null,null,null,null,null,null,null,null,null,null,null,null,null,"",{"$f":"Notes_2nd_Gr!$C226","v":0},"","","","","","","","","","",""]
["",{"$f":"Notes_Candidats!$C229","v":0},"","","","","","","","","","","",null,null,null,null,null,null,null,null,null,null,null,null,null,null,null,null,null,null,null,null,null,null,null,null,null,"",{"$f":"Notes_2nd_Gr!$C227","v":0},"","","","","","","","","","",""]
["",{"$f":"Notes_Candidats!$C230","v":0},"","","","","","","","","","","",null,null,null,null,null,null,null,null,null,null,null,null,null,null,null,null,null,null,null,null,null,null,null,null,null,"",{"$f":"Notes_2nd_Gr!$C228","v":0},"","","","","","","","","","",""]
["",{"$f":"Notes_Candidats!$C231","v":0},"","","","","","","","","","","",null,null,null,null,null,null,null,null,null,null,null,null,null,null,null,null,null,null,null,null,null,null,null,null,null,"",{"$f":"Notes_2nd_Gr!$C229","v":0},"","","","","","","","","","",""]
["",{"$f":"Notes_Candidats!$C232","v":0},"","","","","","","","","","","",null,null,null,null,null,null,null,null,null,null,null,null,null,null,null,null,null,null,null,null,null,null,null,null,null,"",{"$f":"Notes_2nd_Gr!$C230","v":0},"","","","","","","","","","",""]
["",{"$f":"Notes_Candidats!$C233","v":0},"","","","","","","","","","","",null,null,null,null,null,null,null,null,null,null,null,null,null,null,null,null,null,null,null,null,null,null,null,null,null,"",{"$f":"Notes_2nd_Gr!$C231","v":0},"","","","","","","","","","",""]
["",{"$f":"Notes_Candidats!$C234","v":0},"","","","","","","","","","","",null,null,null,null,null,null,null,null,null,null,null,null,null,null,null,null,null,null,null,null,null,null,null,null,null,"",{"$f":"Notes_2nd_Gr!$C232","v":0},"","","","","","","","","","",""]
["",{"$f":"Notes_Candidats!$C235","v":0},"","","","","","","","","","","",null,null,null,null,null,null,null,null,null,null,null,null,null,null,null,null,null,null,null,null,null,null,null,null,null,"",{"$f":"Notes_2nd_Gr!$C233","v":0},"","","","","","","","","","",""]
["",{"$f":"Notes_Candidats!$C236","v":0},"","","","","","","","","","","",null,null,null,null,null,null,null,null,null,null,null,null,null,null,null,null,null,null,null,null,null,null,null,null,null,"",{"$f":"Notes_2nd_Gr!$C234","v":0},"","","","","","","","","","",""]
["",{"$f":"Notes_Candidats!$C237","v":0},"","","","","","","","","","","",null,null,null,null,null,null,null,null,null,null,null,null,null,null,null,null,null,null,null,null,null,null,null,null,null,"",{"$f":"Notes_2nd_Gr!$C235","v":0},"","","","","","","","","","",""]
["",{"$f":"Notes_Candidats!$C238","v":0},"","","","","","","","","","","",null,null,null,null,null,null,null,null,null,null,null,null,null,null,null,null,null,null,null,null,null,null,null,null,null,"",{"$f":"Notes_2nd_Gr!$C236","v":0},"","","","","","","","","","",""]
["",{"$f":"Notes_Candidats!$C239","v":0},"","","","","","","","","","","",null,null,null,null,null,null,null,null,null,null,null,null,null,null,null,null,null,null,null,null,null,null,null,null,null,"",{"$f":"Notes_2nd_Gr!$C237","v":0},"","","","","","","","","","",""]
["",{"$f":"Notes_Candidats!$C240","v":0},"","","","","","","","","","","",null,null,null,null,null,null,null,null,null,null,null,null,null,null,null,null,null,null,null,null,null,null,null,null,null,"",{"$f":"Notes_2nd_Gr!$C238","v":0},"","","","","","","","","","",""]
["",{"$f":"Notes_Candidats!$C241","v":0},"","","","","","","","","","","",null,null,null,null,null,null,null,null,null,null,null,null,null,null,null,null,null,null,null,null,null,null,null,null,null,"",{"$f":"Notes_2nd_Gr!$C239","v":0},"","","","","","","","","","",""]
["",{"$f":"Notes_Candidats!$C242","v":0},"","","","","","","","","","","",null,null,null,null,null,null,null,null,null,null,null,null,null,null,null,null,null,null,null,null,null,null,null,null,null,"",{"$f":"Notes_2nd_Gr!$C240","v":0},"","","","","","","","","","",""]
["",{"$f":"Notes_Candidats!$C243","v":0},"","","","","","","","","","","",null,null,null,null,null,null,null,null,null,null,null,null,null,null,null,null,null,null,null,null,null,null,null,null,null,"",{"$f":"Notes_2nd_Gr!$C241","v":0},"","","","","","","","","","",""]
["",{"$f":"Notes_Candidats!$C244","v":0},"","","","","","","","","","","",null,null,null,null,null,null,null,null,null,null,null,null,null,null,null,null,null,null,null,null,null,null,null,null,null,"",{"$f":"Notes_2nd_Gr!$C242","v":0},"","","","","","","","","","",""]
["",{"$f":"Notes_Candidats!$C245","v":0},"","","","","","","","","","","",null,null,null,null,null,null,null,null,null,null,null,null,null,null,null,null,null,null,null,null,null,null,null,null,null,"",{"$f":"Notes_2nd_Gr!$C243","v":0},"","","","","","","","","","",""]
["",{"$f":"Notes_Candidats!$C246","v":0},"","","","","","","","","","","",null,null,null,null,null,null,null,null,null,null,null,null,null,null,null,null,null,null,null,null,null,null,null,null,null,"",{"$f":"Notes_2nd_Gr!$C244","v":0},"","","","","","","","","","",""]
["",{"$f":"Notes_Candidats!$C247","v":0},"","","","","","","","","","","",null,null,null,null,null,null,null,null,null,null,null,null,null,null,null,null,null,null,null,null,null,null,null,null,null,"",{"$f":"Notes_2nd_Gr!$C245","v":0},"","","","","","","","","","",""]
["",{"$f":"Notes_Candidats!$C248","v":0},"","","","","","","","","","","",null,null,null,null,null,null,null,null,null,null,null,null,null,null,null,null,null,null,null,null,null,null,null,null,null,"",{"$f":"Notes_2nd_Gr!$C246","v":0},"","","","","","","","","","",""]
["",{"$f":"Notes_Candidats!$C249","v":0},"","","","","","","","","","","",null,null,null,null,null,null,null,null,null,null,null,null,null,null,null,null,null,null,null,null,null,null,null,null,null,"",{"$f":"Notes_2nd_Gr!$C247","v":0},"","","","","","","","","","",""]
["",{"$f":"Notes_Candidats!$C250","v":0},"","","","","","","","","","","",null,null,null,null,null,null,null,null,null,null,null,null,null,null,null,null,null,null,null,null,null,null,null,null,null,"",{"$f":"Notes_2nd_Gr!$C248","v":0},"","","","","","","","","","",""]
["",{"$f":"Notes_Candidats!$C251","v":0},"","","","","","","","","","","",null,null,null,null,null,null,null,null,null,null,null,null,null,null,null,null,null,null,null,null,null,null,null,null,null,"",{"$f":"Notes_2nd_Gr!$C249","v":0},"","","","","","","","","","",""]
["",{"$f":"Notes_Candidats!$C252","v":0},"","","","","","","","","","","",null,null,null,null,null,null,null,null,null,null,null,null,null,null,null,null,null,null,null,null,null,null,null,null,null,"",{"$f":"Notes_2nd_Gr!$C250","v":0},"","","","","","","","","","",""]
["",{"$f":"Notes_Candidats!$C253","v":0},"","","","","","","","","","","",null,null,null,null,null,null,null,null,null,null,null,null,null,null,null,null,null,null,null,null,null,null,null,null,null,"",{"$f":"Notes_2nd_Gr!$C251","v":0},"","","","","","","","","","",""]
["",{"$f":"Notes_Candidats!$C254","v":0},"","","","","","","","","","","",null,null,null,null,null,null,null,null,null,null,null,null,null,null,null,null,null,null,null,null,null,null,null,null,null,"",{"$f":"Notes_2nd_Gr!$C252","v":0},"","","","","","","","","","",""]
["",{"$f":"Notes_Candidats!$C255","v":0},"","","","","","","","","","","",null,null,null,null,null,null,null,null,null,null,null,null,null,null,null,null,null,null,null,null,null,null,null,null,null,"",{"$f":"Notes_2nd_Gr!$C253","v":0},"","","","","","","","","","",""]
["",{"$f":"Notes_Candidats!$C256","v":0},"","","","","","","","","","","",null,null,null,null,null,null,null,null,null,null,null,null,null,null,null,null,null,null,null,null,null,null,null,null,null,"",{"$f":"Notes_2nd_Gr!$C254","v":0},"","","","","","","","","","",""]
["",{"$f":"Notes_Candidats!$C257","v":0},"","","","","","","","","","","",null,null,null,null,null,null,null,null,null,null,null,null,null,null,null,null,null,null,null,null,null,null,null,null,null,"",{"$f":"Notes_2nd_Gr!$C255","v":0},"","","","","","","","","","",""]
["",{"$f":"Notes_Candidats!$C258","v":0},"","","","","","","","","","","",null,null,null,null,null,null,null,null,null,null,null,null,null,null,null,null,null,null,null,null,null,null,null,null,null,"",{"$f":"Notes_2nd_Gr!$C256","v":0},"","","","","","","","","","",""]
["",{"$f":"Notes_Candidats!$C259","v":0},"","","","","","","","","","","",null,null,null,null,null,null,null,null,null,null,null,null,null,null,null,null,null,null,null,null,null,null,null,null,null,"",{"$f":"Notes_2nd_Gr!$C257","v":0},"","","","","","","","","","",""]
["",{"$f":"Notes_Candidats!$C260","v":0},"","","","","","","","","","","",null,null,null,null,null,null,null,null,null,null,null,null,null,null,null,null,null,null,null,null,null,null,null,null,null,"",{"$f":"Notes_2nd_Gr!$C258","v":0},"","","","","","","","","","",""]
["",{"$f":"Notes_Candidats!$C261","v":0},"","","","","","","","","","","",null,null,null,null,null,null,null,null,null,null,null,null,null,null,null,null,null,null,null,null,null,null,null,null,null,"",{"$f":"Notes_2nd_Gr!$C259","v":0},"","","","","","","","","","",""]
["",{"$f":"Notes_Candidats!$C262","v":0},"","","","","","","","","","","",null,null,null,null,null,null,null,null,null,null,null,null,null,null,null,null,null,null,null,null,null,null,null,null,null,"",{"$f":"Notes_2nd_Gr!$C260","v":0},"","","","","","","","","","",""]
["",{"$f":"Notes_Candidats!$C263","v":0},"","","","","","","","","","","",null,null,null,null,null,null,null,null,null,null,null,null,null,null,null,null,null,null,null,null,null,null,null,null,null,"",{"$f":"Notes_2nd_Gr!$C261","v":0},"","","","","","","","","","",""]
["",{"$f":"Notes_Candidats!$C264","v":0},"","","","","","","","","","","",null,null,null,null,null,null,null,null,null,null,null,null,null,null,null,null,null,null,null,null,null,null,null,null,null,"",{"$f":"Notes_2nd_Gr!$C262","v":0},"","","","","","","","","","",""]
["",{"$f":"Notes_Candidats!$C265","v":0},"","","","","","","","","","","",null,null,null,null,null,null,null,null,null,null,null,null,null,null,null,null,null,null,null,null,null,null,null,null,null,"",{"$f":"Notes_2nd_Gr!$C263","v":0},"","","","","","","","","","",""]
["",{"$f":"Notes_Candidats!$C266","v":0},"","","","","","","","","","","",null,null,null,null,null,null,null,null,null,null,null,null,null,null,null,null,null,null,null,null,null,null,null,null,null,"",{"$f":"Notes_2nd_Gr!$C264","v":0},"","","","","","","","","","",""]
["",{"$f":"Notes_Candidats!$C267","v":0},"","","","","","","","","","","",null,null,null,null,null,null,null,null,null,null,null,null,null,null,null,null,null,null,null,null,null,null,null,null,null,"",{"$f":"Notes_2nd_Gr!$C265","v":0},"","","","","","","","","","",""]
["",{"$f":"Notes_Candidats!$C268","v":0},"","","","","","","","","","","",null,null,null,null,null,null,null,null,null,null,null,null,null,null,null,null,null,null,null,null,null,null,null,null,null,"",{"$f":"Notes_2nd_Gr!$C266","v":0},"","","","","","","","","","",""]
[{"$f":"IF(B267<>0,ROW()-10,\"\")","v":""},{"$f":"Notes_Candidats!$C269","v":0},{"$f":"IFERROR(INDEX(Pnam_1,MATCH($B267,N°_inscp1,0)),\"\")","v":""},{"$f":"IFERROR(INDEX(Nam_1,MATCH($B267,N°_inscp1,0)),\"\")","v":""},{"$f":"IFERROR(INDEX(DNais_1,MATCH($B267,N°_inscp1,0)),\"\")","v":""},{"$f":"IFERROR(INDEX(LNais_1,MATCH($B267,N°_inscp1,0)),\"\")","v":""},{"$f":"IFERROR(INDEX(Se_xe1,MATCH($B267,N°_inscp1,0)),\"\")","v":""},{"$f":"IFERROR(INDEX(Etat_1,MATCH($B267,N°_inscp1,0)),\"\")","v":""},{"$f":"IFERROR(INDEX(PuPriLi1,MATCH($B267,N°_inscp1,0)),\"\")","v":""},{"$f":"IFERROR(INDEX(TOT_1,MATCH($B267,N°_inscp1,0)),\"\")","v":""},{"$f":"IFERROR(INDEX(MOY_1,MATCH($B267,N°_inscp1,0)),\"\")","v":""},{"$f":"IFERROR(INDEX(Rang_1,MATCH($B267,N°_inscp1,0)),\"\")","v":""},{"$f":"IFERROR(INDEX(Rsltt_1,MATCH($B267,N°_inscp1,0)),\"\")","v":""},null,null,null,null,null,null,null,null,null,null,null,null,null,null,null,null,null,null,null,null,null,null,null,null,null,{"$f":"IF(AN267<>0,ROW()-10,\"\")","v":""},{"$f":"Notes_2nd_Gr!$C267","v":0},{"$f":"IFERROR(INDEX(Pnam_2,MATCH($AN267,N°_inscp2,0)),\"\")","v":""},{"$f":"IFERROR(INDEX(Nam_2,MATCH($AN267,N°_inscp2,0)),\"\")","v":""},{"$f":"IFERROR(INDEX(Dnais_2,MATCH($AN267,N°_inscp2,0)),\"\")","v":""},{"$f":"IFERROR(INDEX(Lnais_2,MATCH($AN267,N°_inscp2,0)),\"\")","v":""},{"$f":"IFERROR(INDEX(Se_xe2,MATCH($AN267,N°_inscp2,0)),\"\")","v":""},{"$f":"IFERROR(INDEX(Etat_2,MATCH($AN267,N°_inscp2,0)),\"\")","v":""},{"$f":"IFERROR(INDEX(PuPriLi2,MATCH($AN267,N°_inscp2,0)),\"\")","v":""},{"$f":"IFERROR(INDEX(TOT_2,MATCH($AN267,N°_inscp2,0)),\"\")","v":""},{"$f":"IFERROR(INDEX(MOY_2,MATCH($AN267,N°_inscp2,0)),\"\")","v":""},{"$f":"IFERROR(INDEX(Rang_2,MATCH($AN267,N°_inscp2,0)),\"\")","v":""},{"$f":"IFERROR(INDEX(Rsltt_2,MATCH($AN267,N°_inscp2,0)),\"\")","v":""}]
["",{"$f":"Notes_Candidats!$C270","v":0},"","","","","","","","","","","",null,null,null,null,null,null,null,null,null,null,null,null,null,null,null,null,null,null,null,null,null,null,null,null,null,"",{"$f":"Notes_2nd_Gr!$C268","v":0},"","","","","","","","","","",""]
["",{"$f":"Notes_Candidats!$C271","v":0},"","","","","","","","","","","",null,null,null,null,null,null,null,null,null,null,null,null,null,null,null,null,null,null,null,null,null,null,null,null,null,"",{"$f":"Notes_2nd_Gr!$C269","v":0},"","","","","","","","","","",""]
["",{"$f":"Notes_Candidats!$C272","v":0},"","","","","","","","","","","",null,null,null,null,null,null,null,null,null,null,null,null,null,null,null,null,null,null,null,null,null,null,null,null,null,"",{"$f":"Notes_2nd_Gr!$C270","v":0},"","","","","","","","","","",""]
["",{"$f":"Notes_Candidats!$C273","v":0},"","","","","","","","","","","",null,null,null,null,null,null,null,null,null,null,null,null,null,null,null,null,null,null,null,null,null,null,null,null,null,"",{"$f":"Notes_2nd_Gr!$C271","v":0},"","","","","","","","","","",""]
["",{"$f":"Notes_Candidats!$C274","v":0},"","","","","","","","","","","",null,null,null,null,null,null,null,null,null,null,null,null,null,null,null,null,null,null,null,null,null,null,null,null,null,"",{"$f":"Notes_2nd_Gr!$C272","v":0},"","","","","","","","","","",""]
["",{"$f":"Notes_Candidats!$C275","v":0},"","","","","","","","","","","",null,null,null,null,null,null,null,null,null,null,null,null,null,null,null,null,null,null,null,null,null,null,null,null,null,"",{"$f":"Notes_2nd_Gr!$C273","v":0},"","","","","","","","","","",""]
["",{"$f":"Notes_Candidats!$C276","v":0},"","","","","","","","","","","",null,null,null,null,null,null,null,null,null,null,null,null,null,null,null,null,null,null,null,null,null,null,null,null,null,"",{"$f":"Notes_2nd_Gr!$C274","v":0},"","","","","","","","","","",""]
["",{"$f":"Notes_Candidats!$C277","v":0},"","","","","","","","","","","",null,null,null,null,null,null,null,null,null,null,null,null,null,null,null,null,null,null,null,null,null,null,null,null,null,"",{"$f":"Notes_2nd_Gr!$C275","v":0},"","","","","","","","","","",""]
["",{"$f":"Notes_Candidats!$C278","v":0},"","","","","","","","","","","",null,null,null,null,null,null,null,null,null,null,null,null,null,null,null,null,null,null,null,null,null,null,null,null,null,"",{"$f":"Notes_2nd_Gr!$C276","v":0},"","","","","","","","","","",""]
["",{"$f":"Notes_Candidats!$C279","v":0},"","","","","","","","","","","",null,null,null,null,null,null,null,null,null,null,null,null,null,null,null,null,null,null,null,null,null,null,null,null,null,"",{"$f":"Notes_2nd_Gr!$C277","v":0},"","","","","","","","","","",""]
["",{"$f":"Notes_Candidats!$C280","v":0},"","","","","","","","","","","",null,null,null,null,null,null,null,null,null,null,null,null,null,null,null,null,null,null,null,null,null,null,null,null,null,"",{"$f":"Notes_2nd_Gr!$C278","v":0},"","","","","","","","","","",""]
["",{"$f":"Notes_Candidats!$C281","v":0},"","","","","","","","","","","",null,null,null,null,null,null,null,null,null,null,null,null,null,null,null,null,null,null,null,null,null,null,null,null,null,"",{"$f":"Notes_2nd_Gr!$C279","v":0},"","","","","","","","","","",""]
["",{"$f":"Notes_Candidats!$C282","v":0},"","","","","","","","","","","",null,null,null,null,null,null,null,null,null,null,null,null,null,null,null,null,null,null,null,null,null,null,null,null,null,"",{"$f":"Notes_2nd_Gr!$C280","v":0},"","","","","","","","","","",""]
["",{"$f":"Notes_Candidats!$C283","v":0},"","","","","","","","","","","",null,null,null,null,null,null,null,null,null,null,null,null,null,null,null,null,null,null,null,null,null,null,null,null,null,"",{"$f":"Notes_2nd_Gr!$C281","v":0},"","","","","","","","","","",""]
["",{"$f":"Notes_Candidats!$C284","v":0},"","","","","","","","","","","",null,null,null,null,null,null,null,null,null,null,null,null,null,null,null,null,null,null,null,null,null,null,null,null,null,"",{"$f":"Notes_2nd_Gr!$C282","v":0},"","","","","","","","","","",""]
["",{"$f":"Notes_Candidats!$C285","v":0},"","","","","","","","","","","",null,null,null,null,null,null,null,null,null,null,null,null,null,null,null,null,null,null,null,null,null,null,null,null,null,"",{"$f":"Notes_2nd_Gr!$C283","v":0},"","","","","","","","","","",""]
["",{"$f":"Notes_Candidats!$C286","v":0},"","","","","","","","","","","",null,null,null,null,null,null,null,null,null,null,null,null,null,null,null,null,null,null,null,null,null,null,null,null,null,"",{"$f":"Notes_2nd_Gr!$C284","v":0},"","","","","","","","","","",""]
["",{"$f":"Notes_Candidats!$C287","v":0},"","","","","","","","","","","",null,null,null,null,null,null,null,null,null,null,null,null,null,null,null,null,null,null,null,null,null,null,null,null,null,"",{"$f":"Notes_2nd_Gr!$C285","v":0},"","","","","","","","","","",""]
["",{"$f":"Notes_Candidats!$C288","v":0},"","","","","","","","","","","",null,null,null,null,null,null,null,null,null,null,null,null,null,null,null,null,null,null,null,null,null,null,null,null,null,"",{"$f":"Notes_2nd_Gr!$C286","v":0},"","","","","","","","","","",""]
["",{"$f":"Notes_Candidats!$C289","v":0},"","","","","","","","","","","",null,null,null,null,null,null,null,null,null,null,null,null,null,null,null,null,null,null,null,null,null,null,null,null,null,"",{"$f":"Notes_2nd_Gr!$C287","v":0},"","","","","","","","","","",""]
["",{"$f":"Notes_Candidats!$C290","v":0},"","","","","","","","","","","",null,null,null,null,null,null,null,null,null,null,null,null,null,null,null,null,null,null,null,null,null,null,null,null,null,"",{"$f":"Notes_2nd_Gr!$C288","v":0},"","","","","","","","","","",""]
["",{"$f":"Notes_Candidats!$C291","v":0},"","","","","","","","","","","",null,null,null,null,null,null,null,null,null,null,null,null,null,null,null,null,null,null,null,null,null,null,null,null,null,"",{"$f":"Notes_2nd_Gr!$C289","v":0},"","","","","","","","","","",""]
["",{"$f":"Notes_Candidats!$C292","v":0},"","","","","","","","","","","",null,null,null,null,null,null,null,null,null,null,null,null,null,null,null,null,null,null,null,null,null,null,null,null,null,"",{"$f":"Notes_2nd_Gr!$C290","v":0},"","","","","","","","","","",""]
["",{"$f":"Notes_Candidats!$C293","v":0},"","","","","","","","","","","",null,null,null,null,null,null,null,null,null,null,null,null,null,null,null,null,null,null,null,null,null,null,null,null,null,"",{"$f":"Notes_2nd_Gr!$C291","v":0},"","","","","","","","","","",""]
["",{"$f":"Notes_Candidats!$C294","v":0},"","","","","","","","","","","",null,null,null,null,null,null,null,null,null,null,null,null,null,null,null,null,null,null,null,null,null,null,null,null,null,"",{"$f":"Notes_2nd_Gr!$C292","v":0},"","","","","","","","","","",""]
["",{"$f":"Notes_Candidats!$C295","v":0},"","","","","","","","","","","",null,null,null,null,null,null,null,null,null,null,null,null,null,null,null,null,null,null,null,null,null,null,null,null,null,"",{"$f":"Notes_2nd_Gr!$C293","v":0},"","","","","","","","","","",""]
["",{"$f":"Notes_Candidats!$C296","v":0},"","","","","","","","","","","",null,null,null,null,null,null,null,null,null,null,null,null,null,null,null,null,null,null,null,null,null,null,null,null,null,"",{"$f":"Notes_2nd_Gr!$C294","v":0},"","","","","","","","","","",""]
["",{"$f":"Notes_Candidats!$C297","v":0},"","","","","","","","","","","",null,null,null,null,null,null,null,null,null,null,null,null,null,null,null,null,null,null,null,null,null,null,null,null,null,"",{"$f":"Notes_2nd_Gr!$C295","v":0},"","","","","","","","","","",""]
["",{"$f":"Notes_Candidats!$C298","v":0},"","","","","","","","","","","",null,null,null,null,null,null,null,null,null,null,null,null,null,null,null,null,null,null,null,null,null,null,null,null,null,"",{"$f":"Notes_2nd_Gr!$C296","v":0},"","","","","","","","","","",""]
["",{"$f":"Notes_Candidats!$C299","v":0},"","","","","","","","","","","",null,null,null,null,null,null,null,null,null,null,null,null,null,null,null,null,null,null,null,null,null,null,null,null,null,"",{"$f":"Notes_2nd_Gr!$C297","v":0},"","","","","","","","","","",""]
["",{"$f":"Notes_Candidats!$C300","v":0},"","","","","","","","","","","",null,null,null,null,null,null,null,null,null,null,null,null,null,null,null,null,null,null,null,null,null,null,null,null,null,"",{"$f":"Notes_2nd_Gr!$C298","v":0},"","","","","","","","","","",""]
["",{"$f":"Notes_Candidats!$C301","v":0},"","","","","","","","","","","",null,null,null,null,null,null,null,null,null,null,null,null,null,null,null,null,null,null,null,null,null,null,null,null,null,"",{"$f":"Notes_2nd_Gr!$C299","v":0},"","","","","","","","","","",""]
["",{"$f":"Notes_Candidats!$C302","v":0},"","","","","","","","","","","",null,null,null,null,null,null,null,null,null,null,null,null,null,null,null,null,null,null,null,null,null,null,null,null,null,"",{"$f":"Notes_2nd_Gr!$C300","v":0},"","","","","","","","","","",""]
["",{"$f":"Notes_Candidats!$C303","v":0},"","","","","","","","","","","",null,null,null,null,null,null,null,null,null,null,null,null,null,null,null,null,null,null,null,null,null,null,null,null,null,"",{"$f":"Notes_2nd_Gr!$C301","v":0},"","","","","","","","","","",""]
["",{"$f":"Notes_Candidats!$C304","v":0},"","","","","","","","","","","",null,null,null,null,null,null,null,null,null,null,null,null,null,null,null,null,null,null,null,null,null,null,null,null,null,"",{"$f":"Notes_2nd_Gr!$C302","v":0},"","","","","","","","","","",""]
["",{"$f":"Notes_Candidats!$C305","v":0},"","","","","","","","","","","",null,null,null,null,null,null,null,null,null,null,null,null,null,null,null,null,null,null,null,null,null,null,null,null,null,"",{"$f":"Notes_2nd_Gr!$C303","v":0},"","","","","","","","","","",""]
["",{"$f":"Notes_Candidats!$C306","v":0},"","","","","","","","","","","",null,null,null,null,null,null,null,null,null,null,null,null,null,null,null,null,null,null,null,null,null,null,null,null,null,"",{"$f":"Notes_2nd_Gr!$C304","v":0},"","","","","","","","","","",""]
["",{"$f":"Notes_Candidats!$C307","v":0},"","","","","","","","","","","",null,null,null,null,null,null,null,null,null,null,null,null,null,null,null,null,null,null,null,null,null,null,null,null,null,"",{"$f":"Notes_2nd_Gr!$C305","v":0},"","","","","","","","","","",""]
["",{"$f":"Notes_Candidats!$C308","v":0},"","","","","","","","","","","",null,null,null,null,null,null,null,null,null,null,null,null,null,null,null,null,null,null,null,null,null,null,null,null,null,"",{"$f":"Notes_2nd_Gr!$C306","v":0},"","","","","","","","","","",""]
["",{"$f":"Notes_Candidats!$C309","v":0},"","","","","","","","","","","",null,null,null,null,null,null,null,null,null,null,null,null,null,null,null,null,null,null,null,null,null,null,null,null,null,"",{"$f":"Notes_2nd_Gr!$C307","v":0},"","","","","","","","","","",""]
["",{"$f":"Notes_Candidats!$C310","v":0},"","","","","","","","","","","",null,null,null,null,null,null,null,null,null,null,null,null,null,null,null,null,null,null,null,null,null,null,null,null,null,"",{"$f":"Notes_2nd_Gr!$C308","v":0},"","","","","","","","","","",""]
["",{"$f":"Notes_Candidats!$C311","v":0},"","","","","","","","","","","",null,null,null,null,null,null,null,null,null,null,null,null,null,null,null,null,null,null,null,null,null,null,null,null,null,"",{"$f":"Notes_2nd_Gr!$C309","v":0},"","","","","","","","","","",""]
["",{"$f":"Notes_Candidats!$C312","v":0},"","","","","","","","","","","",null,null,null,null,null,null,null,null,null,null,null,null,null,null,null,null,null,null,null,null,null,null,null,null,null,"",{"$f":"Notes_2nd_Gr!$C310","v":0},"","","","","","","","","","",""]
["",{"$f":"Notes_Candidats!$C313","v":0},"","","","","","","","","","","",null,null,null,null,null,null,null,null,null,null,null,null,null,null,null,null,null,null,null,null,null,null,null,null,null,"",{"$f":"Notes_2nd_Gr!$C311","v":0},"","","","","","","","","","",""]
["",{"$f":"Notes_Candidats!$C314","v":0},"","","","","","","","","","","",null,null,null,null,null,null,null,null,null,null,null,null,null,null,null,null,null,null,null,null,null,null,null,null,null,"",{"$f":"Notes_2nd_Gr!$C312","v":0},"","","","","","","","","","",""]
["",{"$f":"Notes_Candidats!$C315","v":0},"","","","","","","","","","","",null,null,null,null,null,null,null,null,null,null,null,null,null,null,null,null,null,null,null,null,null,null,null,null,null,"",{"$f":"Notes_2nd_Gr!$C313","v":0},"","","","","","","","","","",""]
["",{"$f":"Notes_Candidats!$C316","v":0},"","","","","","","","","","","",null,null,null,null,null,null,null,null,null,null,null,null,null,null,null,null,null,null,null,null,null,null,null,null,null,"",{"$f":"Notes_2nd_Gr!$C314","v":0},"","","","","","","","","","",""]
["",{"$f":"Notes_Candidats!$C317","v":0},"","","","","","","","","","","",null,null,null,null,null,null,null,null,null,null,null,null,null,null,null,null,null,null,null,null,null,null,null,null,null,"",{"$f":"Notes_2nd_Gr!$C315","v":0},"","","","","","","","","","",""]
[{"$f":"IF(B316<>0,ROW()-10,\"\")","v":""},{"$f":"Notes_Candidats!$C318","v":0},"","","","","","","","","","","",null,null,null,null,null,null,null,null,null,null,null,null,null,null,null,null,null,null,null,null,null,null,null,null,null,{"$f":"IF(AN316<>0,ROW()-10,\"\")","v":""},{"$f":"Notes_2nd_Gr!$C316","v":0},"","","","","","","","","","",""]
["",{"$f":"Notes_Candidats!$C319","v":0},"","","","","","","","","","","",null,null,null,null,null,null,null,null,null,null,null,null,null,null,null,null,null,null,null,null,null,null,null,null,null,"",{"$f":"Notes_2nd_Gr!$C317","v":0},"","","","","","","","","","",""]
["",{"$f":"Notes_Candidats!$C320","v":0},"","","","","","","","","","","",null,null,null,null,null,null,null,null,null,null,null,null,null,null,null,null,null,null,null,null,null,null,null,null,null,"",{"$f":"Notes_2nd_Gr!$C318","v":0},"","","","","","","","","","",""]
["",{"$f":"Notes_Candidats!$C321","v":0},"","","","","","","","","","","",null,null,null,null,null,null,null,null,null,null,null,null,null,null,null,null,null,null,null,null,null,null,null,null,null,"",{"$f":"Notes_2nd_Gr!$C319","v":0},"","","","","","","","","","",""]
["",{"$f":"Notes_Candidats!$C322","v":0},"","","","","","","","","","","",null,null,null,null,null,null,null,null,null,null,null,null,null,null,null,null,null,null,null,null,null,null,null,null,null,"",{"$f":"Notes_2nd_Gr!$C320","v":0},"","","","","","","","","","",""]
["",{"$f":"Notes_Candidats!$C323","v":0},"","","","","","","","","","","",null,null,null,null,null,null,null,null,null,null,null,null,null,null,null,null,null,null,null,null,null,null,null,null,null,"",{"$f":"Notes_2nd_Gr!$C321","v":0},"","","","","","","","","","",""]
["",{"$f":"Notes_Candidats!$C324","v":0},"","","","","","","","","","","",null,null,null,null,null,null,null,null,null,null,null,null,null,null,null,null,null,null,null,null,null,null,null,null,null,"",{"$f":"Notes_2nd_Gr!$C322","v":0},"","","","","","","","","","",""]
["",{"$f":"Notes_Candidats!$C325","v":0},"","","","","","","","","","","",null,null,null,null,null,null,null,null,null,null,null,null,null,null,null,null,null,null,null,null,null,null,null,null,null,"",{"$f":"Notes_2nd_Gr!$C323","v":0},"","","","","","","","","","",""]
["",{"$f":"Notes_Candidats!$C326","v":0},"","","","","","","","","","","",null,null,null,null,null,null,null,null,null,null,null,null,null,null,null,null,null,null,null,null,null,null,null,null,null,"",{"$f":"Notes_2nd_Gr!$C324","v":0},"","","","","","","","","","",""]
["",{"$f":"Notes_Candidats!$C327","v":0},"","","","","","","","","","","",null,null,null,null,null,null,null,null,null,null,null,null,null,null,null,null,null,null,null,null,null,null,null,null,null,"",{"$f":"Notes_2nd_Gr!$C325","v":0},"","","","","","","","","","",""]
["",{"$f":"Notes_Candidats!$C328","v":0},"","","","","","","","","","","",null,null,null,null,null,null,null,null,null,null,null,null,null,null,null,null,null,null,null,null,null,null,null,null,null,"",{"$f":"Notes_2nd_Gr!$C326","v":0},"","","","","","","","","","",""]
["",{"$f":"Notes_Candidats!$C329","v":0},"","","","","","","","","","","",null,null,null,null,null,null,null,null,null,null,null,null,null,null,null,null,null,null,null,null,null,null,null,null,null,"",{"$f":"Notes_2nd_Gr!$C327","v":0},"","","","","","","","","","",""]
["",{"$f":"Notes_Candidats!$C330","v":0},"","","","","","","","","","","",null,null,null,null,null,null,null,null,null,null,null,null,null,null,null,null,null,null,null,null,null,null,null,null,null,"",{"$f":"Notes_2nd_Gr!$C328","v":0},"","","","","","","","","","",""]
["",{"$f":"Notes_Candidats!$C331","v":0},"","","","","","","","","","","",null,null,null,null,null,null,null,null,null,null,null,null,null,null,null,null,null,null,null,null,null,null,null,null,null,"",{"$f":"Notes_2nd_Gr!$C329","v":0},"","","","","","","","","","",""]
["",{"$f":"Notes_Candidats!$C332","v":0},"","","","","","","","","","","",null,null,null,null,null,null,null,null,null,null,null,null,null,null,null,null,null,null,null,null,null,null,null,null,null,"",{"$f":"Notes_2nd_Gr!$C330","v":0},"","","","","","","","","","",""]
["",{"$f":"Notes_Candidats!$C333","v":0},{"$f":"IFERROR(INDEX(Pnam_1,MATCH($B331,N°_inscp1,0)),\"\")","v":""},{"$f":"IFERROR(INDEX(Nam_1,MATCH($B331,N°_inscp1,0)),\"\")","v":""},{"$f":"IFERROR(INDEX(DNais_1,MATCH($B331,N°_inscp1,0)),\"\")","v":""},{"$f":"IFERROR(INDEX(LNais_1,MATCH($B331,N°_inscp1,0)),\"\")","v":""},{"$f":"IFERROR(INDEX(Se_xe1,MATCH($B331,N°_inscp1,0)),\"\")","v":""},{"$f":"IFERROR(INDEX(Etat_1,MATCH($B331,N°_inscp1,0)),\"\")","v":""},{"$f":"IFERROR(INDEX(PuPriLi1,MATCH($B331,N°_inscp1,0)),\"\")","v":""},{"$f":"IFERROR(INDEX(TOT_1,MATCH($B331,N°_inscp1,0)),\"\")","v":""},{"$f":"IFERROR(INDEX(MOY_1,MATCH($B331,N°_inscp1,0)),\"\")","v":""},{"$f":"IFERROR(INDEX(Rang_1,MATCH($B331,N°_inscp1,0)),\"\")","v":""},{"$f":"IFERROR(INDEX(Rsltt_1,MATCH($B331,N°_inscp1,0)),\"\")","v":""},null,null,null,null,null,null,null,null,null,null,null,null,null,null,null,null,null,null,null,null,null,null,null,null,null,"",{"$f":"Notes_2nd_Gr!$C331","v":0},{"$f":"IFERROR(INDEX(Pnam_2,MATCH($AN331,N°_inscp2,0)),\"\")","v":""},{"$f":"IFERROR(INDEX(Nam_2,MATCH($AN331,N°_inscp2,0)),\"\")","v":""},{"$f":"IFERROR(INDEX(Dnais_2,MATCH($AN331,N°_inscp2,0)),\"\")","v":""},{"$f":"IFERROR(INDEX(Lnais_2,MATCH($AN331,N°_inscp2,0)),\"\")","v":""},{"$f":"IFERROR(INDEX(Se_xe2,MATCH($AN331,N°_inscp2,0)),\"\")","v":""},{"$f":"IFERROR(INDEX(Etat_2,MATCH($AN331,N°_inscp2,0)),\"\")","v":""},{"$f":"IFERROR(INDEX(PuPriLi2,MATCH($AN331,N°_inscp2,0)),\"\")","v":""},{"$f":"IFERROR(INDEX(TOT_2,MATCH($AN331,N°_inscp2,0)),\"\")","v":""},{"$f":"IFERROR(INDEX(MOY_2,MATCH($AN331,N°_inscp2,0)),\"\")","v":""},{"$f":"IFERROR(INDEX(Rang_2,MATCH($AN331,N°_inscp2,0)),\"\")","v":""},{"$f":"IFERROR(INDEX(Rsltt_2,MATCH($AN331,N°_inscp2,0)),\"\")","v":""}]
["",{"$f":"Notes_Candidats!$C334","v":0},"","","","","","","","","","","",null,null,null,null,null,null,null,null,null,null,null,null,null,null,null,null,null,null,null,null,null,null,null,null,null,"",{"$f":"Notes_2nd_Gr!$C332","v":0},"","","","","","","","","","",""]
["",{"$f":"Notes_Candidats!$C335","v":0},"","","","","","","","","","","",null,null,null,null,null,null,null,null,null,null,null,null,null,null,null,null,null,null,null,null,null,null,null,null,null,"",{"$f":"Notes_2nd_Gr!$C333","v":0},"","","","","","","","","","",""]
["",{"$f":"Notes_Candidats!$C336","v":0},"","","","","","","","","","","",null,null,null,null,null,null,null,null,null,null,null,null,null,null,null,null,null,null,null,null,null,null,null,null,null,"",{"$f":"Notes_2nd_Gr!$C334","v":0},"","","","","","","","","","",""]
["",{"$f":"Notes_Candidats!$C337","v":0},"","","","","","","","","","","",null,null,null,null,null,null,null,null,null,null,null,null,null,null,null,null,null,null,null,null,null,null,null,null,null,"",{"$f":"Notes_2nd_Gr!$C335","v":0},"","","","","","","","","","",""]
["",{"$f":"Notes_Candidats!$C338","v":0},"","","","","","","","","","","",null,null,null,null,null,null,null,null,null,null,null,null,null,null,null,null,null,null,null,null,null,null,null,null,null,"",{"$f":"Notes_2nd_Gr!$C336","v":0},"","","","","","","","","","",""]
["",{"$f":"Notes_Candidats!$C339","v":0},"","","","","","","","","","","",null,null,null,null,null,null,null,null,null,null,null,null,null,null,null,null,null,null,null,null,null,null,null,null,null,"",{"$f":"Notes_2nd_Gr!$C337","v":0},"","","","","","","","","","",""]
["",{"$f":"Notes_Candidats!$C340","v":0},"","","","","","","","","","","",null,null,null,null,null,null,null,null,null,null,null,null,null,null,null,null,null,null,null,null,null,null,null,null,null,"",{"$f":"Notes_2nd_Gr!$C338","v":0},"","","","","","","","","","",""]
["",{"$f":"Notes_Candidats!$C341","v":0},"","","","","","","","","","","",null,null,null,null,null,null,null,null,null,null,null,null,null,null,null,null,null,null,null,null,null,null,null,null,null,"",{"$f":"Notes_2nd_Gr!$C339","v":0},"","","","","","","","","","",""]
["",{"$f":"Notes_Candidats!$C342","v":0},"","","","","","","","","","","",null,null,null,null,null,null,null,null,null,null,null,null,null,null,null,null,null,null,null,null,null,null,null,null,null,"",{"$f":"Notes_2nd_Gr!$C340","v":0},"","","","","","","","","","",""]
["",{"$f":"Notes_Candidats!$C343","v":0},"","","","","","","","","","","",null,null,null,null,null,null,null,null,null,null,null,null,null,null,null,null,null,null,null,null,null,null,null,null,null,"",{"$f":"Notes_2nd_Gr!$C341","v":0},"","","","","","","","","","",""]
["",{"$f":"Notes_Candidats!$C344","v":0},"","","","","","","","","","","",null,null,null,null,null,null,null,null,null,null,null,null,null,null,null,null,null,null,null,null,null,null,null,null,null,"",{"$f":"Notes_2nd_Gr!$C342","v":0},"","","","","","","","","","",""]
["",{"$f":"Notes_Candidats!$C345","v":0},"","","","","","","","","","","",null,null,null,null,null,null,null,null,null,null,null,null,null,null,null,null,null,null,null,null,null,null,null,null,null,"",{"$f":"Notes_2nd_Gr!$C343","v":0},"","","","","","","","","","",""]
["",{"$f":"Notes_Candidats!$C346","v":0},"","","","","","","","","","","",null,null,null,null,null,null,null,null,null,null,null,null,null,null,null,null,null,null,null,null,null,null,null,null,null,"",{"$f":"Notes_2nd_Gr!$C344","v":0},"","","","","","","","","","",""]
["",{"$f":"Notes_Candidats!$C347","v":0},"","","","","","","","","","","",null,null,null,null,null,null,null,null,null,null,null,null,null,null,null,null,null,null,null,null,null,null,null,null,null,"",{"$f":"Notes_2nd_Gr!$C345","v":0},"","","","","","","","","","",""]
["",{"$f":"Notes_Candidats!$C348","v":0},"","","","","","","","","","","",null,null,null,null,null,null,null,null,null,null,null,null,null,null,null,null,null,null,null,null,null,null,null,null,null,"",{"$f":"Notes_2nd_Gr!$C346","v":0},"","","","","","","","","","",""]
["",{"$f":"Notes_Candidats!$C349","v":0},"","","","","","","","","","","",null,null,null,null,null,null,null,null,null,null,null,null,null,null,null,null,null,null,null,null,null,null,null,null,null,"",{"$f":"Notes_2nd_Gr!$C347","v":0},"","","","","","","","","","",""]
["",{"$f":"Notes_Candidats!$C350","v":0},"","","","","","","","","","","",null,null,null,null,null,null,null,null,null,null,null,null,null,null,null,null,null,null,null,null,null,null,null,null,null,"",{"$f":"Notes_2nd_Gr!$C348","v":0},"","","","","","","","","","",""]
["",{"$f":"Notes_Candidats!$C351","v":0},"","","","","","","","","","","",null,null,null,null,null,null,null,null,null,null,null,null,null,null,null,null,null,null,null,null,null,null,null,null,null,"",{"$f":"Notes_2nd_Gr!$C349","v":0},"","","","","","","","","","",""]
["",{"$f":"Notes_Candidats!$C352","v":0},"","","","","","","","","","","",null,null,null,null,null,null,null,null,null,null,null,null,null,null,null,null,null,null,null,null,null,null,null,null,null,"",{"$f":"Notes_2nd_Gr!$C350","v":0},"","","","","","","","","","",""]
["",{"$f":"Notes_Candidats!$C353","v":0},"","","","","","","","","","","",null,null,null,null,null,null,null,null,null,null,null,null,null,null,null,null,null,null,null,null,null,null,null,null,null,"",{"$f":"Notes_2nd_Gr!$C351","v":0},"","","","","","","","","","",""]
["",{"$f":"Notes_Candidats!$C354","v":0},"","","","","","","","","","","",null,null,null,null,null,null,null,null,null,null,null,null,null,null,null,null,null,null,null,null,null,null,null,null,null,"",{"$f":"Notes_2nd_Gr!$C352","v":0},"","","","","","","","","","",""]
["",{"$f":"Notes_Candidats!$C355","v":0},"","","","","","","","","","","",null,null,null,null,null,null,null,null,null,null,null,null,null,null,null,null,null,null,null,null,null,null,null,null,null,"",{"$f":"Notes_2nd_Gr!$C353","v":0},"","","","","","","","","","",""]
["",{"$f":"Notes_Candidats!$C356","v":0},"","","","","","","","","","","",null,null,null,null,null,null,null,null,null,null,null,null,null,null,null,null,null,null,null,null,null,null,null,null,null,"",{"$f":"Notes_2nd_Gr!$C354","v":0},"","","","","","","","","","",""]
["",{"$f":"Notes_Candidats!$C357","v":0},"","","","","","","","","","","",null,null,null,null,null,null,null,null,null,null,null,null,null,null,null,null,null,null,null,null,null,null,null,null,null,"",{"$f":"Notes_2nd_Gr!$C355","v":0},"","","","","","","","","","",""]
["",{"$f":"Notes_Candidats!$C358","v":0},"","","","","","","","","","","",null,null,null,null,null,null,null,null,null,null,null,null,null,null,null,null,null,null,null,null,null,null,null,null,null,"",{"$f":"Notes_2nd_Gr!$C356","v":0},"","","","","","","","","","",""]
["",{"$f":"Notes_Candidats!$C359","v":0},"","","","","","","","","","","",null,null,null,null,null,null,null,null,null,null,null,null,null,null,null,null,null,null,null,null,null,null,null,null,null,"",{"$f":"Notes_2nd_Gr!$C357","v":0},"","","","","","","","","","",""]
["",{"$f":"Notes_Candidats!$C360","v":0},"","","","","","","","","","","",null,null,null,null,null,null,null,null,null,null,null,null,null,null,null,null,null,null,null,null,null,null,null,null,null,"",{"$f":"Notes_2nd_Gr!$C358","v":0},"","","","","","","","","","",""]
["",{"$f":"Notes_Candidats!$C361","v":0},"","","","","","","","","","","",null,null,null,null,null,null,null,null,null,null,null,null,null,null,null,null,null,null,null,null,null,null,null,null,null,"",{"$f":"Notes_2nd_Gr!$C359","v":0},"","","","","","","","","","",""]
["",{"$f":"Notes_Candidats!$C362","v":0},"","","","","","","","","","","",null,null,null,null,null,null,null,null,null,null,null,null,null,null,null,null,null,null,null,null,null,null,null,null,null,"",{"$f":"Notes_2nd_Gr!$C360","v":0},"","","","","","","","","","",""]
["",{"$f":"Notes_Candidats!$C363","v":0},"","","","","","","","","","","",null,null,null,null,null,null,null,null,null,null,null,null,null,null,null,null,null,null,null,null,null,null,null,null,null,"",{"$f":"Notes_2nd_Gr!$C361","v":0},"","","","","","","","","","",""]
["",{"$f":"Notes_Candidats!$C364","v":0},"","","","","","","","","","","",null,null,null,null,null,null,null,null,null,null,null,null,null,null,null,null,null,null,null,null,null,null,null,null,null,"",{"$f":"Notes_2nd_Gr!$C362","v":0},"","","","","","","","","","",""]
["",{"$f":"Notes_Candidats!$C365","v":0},"","","","","","","","","","","",null,null,null,null,null,null,null,null,null,null,null,null,null,null,null,null,null,null,null,null,null,null,null,null,null,"",{"$f":"Notes_2nd_Gr!$C363","v":0},"","","","","","","","","","",""]
["",{"$f":"Notes_Candidats!$C366","v":0},"","","","","","","","","","","",null,null,null,null,null,null,null,null,null,null,null,null,null,null,null,null,null,null,null,null,null,null,null,null,null,"",{"$f":"Notes_2nd_Gr!$C364","v":0},"","","","","","","","","","",""]
["",{"$f":"Notes_Candidats!$C367","v":0},"","","","","","","","","","","",null,null,null,null,null,null,null,null,null,null,null,null,null,null,null,null,null,null,null,null,null,null,null,null,null,"",{"$f":"Notes_2nd_Gr!$C365","v":0},"","","","","","","","","","",""]
["",{"$f":"Notes_Candidats!$C368","v":0},"","","","","","","","","","","",null,null,null,null,null,null,null,null,null,null,null,null,null,null,null,null,null,null,null,null,null,null,null,null,null,"",{"$f":"Notes_2nd_Gr!$C366","v":0},"","","","","","","","","","",""]
["",{"$f":"Notes_Candidats!$C369","v":0},"","","","","","","","","","","",null,null,null,null,null,null,null,null,null,null,null,null,null,null,null,null,null,null,null,null,null,null,null,null,null,"",{"$f":"Notes_2nd_Gr!$C367","v":0},"","","","","","","","","","",""]
["",{"$f":"Notes_Candidats!$C370","v":0},"","","","","","","","","","","",null,null,null,null,null,null,null,null,null,null,null,null,null,null,null,null,null,null,null,null,null,null,null,null,null,"",{"$f":"Notes_2nd_Gr!$C368","v":0},"","","","","","","","","","",""]
["",{"$f":"Notes_Candidats!$C371","v":0},"","","","","","","","","","","",null,null,null,null,null,null,null,null,null,null,null,null,null,null,null,null,null,null,null,null,null,null,null,null,null,"",{"$f":"Notes_2nd_Gr!$C369","v":0},"","","","","","","","","","",""]
["",{"$f":"Notes_Candidats!$C372","v":0},"","","","","","","","","","","",null,null,null,null,null,null,null,null,null,null,null,null,null,null,null,null,null,null,null,null,null,null,null,null,null,"",{"$f":"Notes_2nd_Gr!$C370","v":0},"","","","","","","","","","",""]
["",{"$f":"Notes_Candidats!$C373","v":0},"","","","","","","","","","","",null,null,null,null,null,null,null,null,null,null,null,null,null,null,null,null,null,null,null,null,null,null,null,null,null,"",{"$f":"Notes_2nd_Gr!$C371","v":0},"","","","","","","","","","",""]
["",{"$f":"Notes_Candidats!$C374","v":0},"","","","","","","","","","","",null,null,null,null,null,null,null,null,null,null,null,null,null,null,null,null,null,null,null,null,null,null,null,null,null,"",{"$f":"Notes_2nd_Gr!$C372","v":0},"","","","","","","","","","",""]
["",{"$f":"Notes_Candidats!$C375","v":0},"","","","","","","","","","","",null,null,null,null,null,null,null,null,null,null,null,null,null,null,null,null,null,null,null,null,null,null,null,null,null,"",{"$f":"Notes_2nd_Gr!$C373","v":0},"","","","","","","","","","",""]
["",{"$f":"Notes_Candidats!$C376","v":0},"","","","","","","","","","","",null,null,null,null,null,null,null,null,null,null,null,null,null,null,null,null,null,null,null,null,null,null,null,null,null,"",{"$f":"Notes_2nd_Gr!$C374","v":0},"","","","","","","","","","",""]
["",{"$f":"Notes_Candidats!$C377","v":0},"","","","","","","","","","","",null,null,null,null,null,null,null,null,null,null,null,null,null,null,null,null,null,null,null,null,null,null,null,null,null,"",{"$f":"Notes_2nd_Gr!$C375","v":0},"","","","","","","","","","",""]
["",{"$f":"Notes_Candidats!$C378","v":0},"","","","","","","","","","","",null,null,null,null,null,null,null,null,null,null,null,null,null,null,null,null,null,null,null,null,null,null,null,null,null,"",{"$f":"Notes_2nd_Gr!$C376","v":0},"","","","","","","","","","",""]
["",{"$f":"Notes_Candidats!$C379","v":0},"","","","","","","","","","","",null,null,null,null,null,null,null,null,null,null,null,null,null,null,null,null,null,null,null,null,null,null,null,null,null,"",{"$f":"Notes_2nd_Gr!$C377","v":0},"","","","","","","","","","",""]
["",{"$f":"Notes_Candidats!$C380","v":0},"","","","","","","","","","","",null,null,null,null,null,null,null,null,null,null,null,null,null,null,null,null,null,null,null,null,null,null,null,null,null,"",{"$f":"Notes_2nd_Gr!$C378","v":0},"","","","","","","","","","",""]
["",{"$f":"Notes_Candidats!$C381","v":0},"","","","","","","","","","","",null,null,null,null,null,null,null,null,null,null,null,null,null,null,null,null,null,null,null,null,null,null,null,null,null,"",{"$f":"Notes_2nd_Gr!$C379","v":0},"","","","","","","","","","",""]
[{"$f":"IF(B380<>0,ROW()-10,\"\")","v":""},{"$f":"Notes_Candidats!$C382","v":0},"","","","","","","","","","","",null,null,null,null,null,null,null,null,null,null,null,null,null,null,null,null,null,null,null,null,null,null,null,null,null,{"$f":"IF(AN380<>0,ROW()-10,\"\")","v":""},{"$f":"Notes_2nd_Gr!$C380","v":0},"","","","","","","","","","",""]
["",{"$f":"Notes_Candidats!$C383","v":0},"","","","","","","","","","","",null,null,null,null,null,null,null,null,null,null,null,null,null,null,null,null,null,null,null,null,null,null,null,null,null,"",{"$f":"Notes_2nd_Gr!$C381","v":0},"","","","","","","","","","",""]
["",{"$f":"Notes_Candidats!$C384","v":0},"","","","","","","","","","","",null,null,null,null,null,null,null,null,null,null,null,null,null,null,null,null,null,null,null,null,null,null,null,null,null,"",{"$f":"Notes_2nd_Gr!$C382","v":0},"","","","","","","","","","",""]
["",{"$f":"Notes_Candidats!$C385","v":0},"","","","","","","","","","","",null,null,null,null,null,null,null,null,null,null,null,null,null,null,null,null,null,null,null,null,null,null,null,null,null,"",{"$f":"Notes_2nd_Gr!$C383","v":0},"","","","","","","","","","",""]
["",{"$f":"Notes_Candidats!$C386","v":0},"","","","","","","","","","","",null,null,null,null,null,null,null,null,null,null,null,null,null,null,null,null,null,null,null,null,null,null,null,null,null,"",{"$f":"Notes_2nd_Gr!$C384","v":0},"","","","","","","","","","",""]
["",{"$f":"Notes_Candidats!$C387","v":0},"","","","","","","","","","","",null,null,null,null,null,null,null,null,null,null,null,null,null,null,null,null,null,null,null,null,null,null,null,null,null,"",{"$f":"Notes_2nd_Gr!$C385","v":0},"","","","","","","","","","",""]
["",{"$f":"Notes_Candidats!$C388","v":0},"","","","","","","","","","","",null,null,null,null,null,null,null,null,null,null,null,null,null,null,null,null,null,null,null,null,null,null,null,null,null,"",{"$f":"Notes_2nd_Gr!$C386","v":0},"","","","","","","","","","",""]
["",{"$f":"Notes_Candidats!$C389","v":0},"","","","","","","","","","","",null,null,null,null,null,null,null,null,null,null,null,null,null,null,null,null,null,null,null,null,null,null,null,null,null,"",{"$f":"Notes_2nd_Gr!$C387","v":0},"","","","","","","","","","",""]
["",{"$f":"Notes_Candidats!$C390","v":0},"","","","","","","","","","","",null,null,null,null,null,null,null,null,null,null,null,null,null,null,null,null,null,null,null,null,null,null,null,null,null,"",{"$f":"Notes_2nd_Gr!$C388","v":0},"","","","","","","","","","",""]
["",{"$f":"Notes_Candidats!$C391","v":0},"","","","","","","","","","","",null,null,null,null,null,null,null,null,null,null,null,null,null,null,null,null,null,null,null,null,null,null,null,null,null,"",{"$f":"Notes_2nd_Gr!$C389","v":0},"","","","","","","","","","",""]
["",{"$f":"Notes_Candidats!$C392","v":0},"","","","","","","","","","","",null,null,null,null,null,null,null,null,null,null,null,null,null,null,null,null,null,null,null,null,null,null,null,null,null,"",{"$f":"Notes_2nd_Gr!$C390","v":0},"","","","","","","","","","",""]
["",{"$f":"Notes_Candidats!$C393","v":0},"","","","","","","","","","","",null,null,null,null,null,null,null,null,null,null,null,null,null,null,null,null,null,null,null,null,null,null,null,null,null,"",{"$f":"Notes_2nd_Gr!$C391","v":0},"","","","","","","","","","",""]
["",{"$f":"Notes_Candidats!$C394","v":0},"","","","","","","","","","","",null,null,null,null,null,null,null,null,null,null,null,null,null,null,null,null,null,null,null,null,null,null,null,null,null,"",{"$f":"Notes_2nd_Gr!$C392","v":0},"","","","","","","","","","",""]
["",{"$f":"Notes_Candidats!$C395","v":0},"","","","","","","","","","","",null,null,null,null,null,null,null,null,null,null,null,null,null,null,null,null,null,null,null,null,null,null,null,null,null,"",{"$f":"Notes_2nd_Gr!$C393","v":0},"","","","","","","","","","",""]
["",{"$f":"Notes_Candidats!$C396","v":0},"","","","","","","","","","","",null,null,null,null,null,null,null,null,null,null,null,null,null,null,null,null,null,null,null,null,null,null,null,null,null,"",{"$f":"Notes_2nd_Gr!$C394","v":0},"","","","","","","","","","",""]
["",{"$f":"Notes_Candidats!$C397","v":0},{"$f":"IFERROR(INDEX(Pnam_1,MATCH($B395,N°_inscp1,0)),\"\")","v":""},{"$f":"IFERROR(INDEX(Nam_1,MATCH($B395,N°_inscp1,0)),\"\")","v":""},{"$f":"IFERROR(INDEX(DNais_1,MATCH($B395,N°_inscp1,0)),\"\")","v":""},{"$f":"IFERROR(INDEX(LNais_1,MATCH($B395,N°_inscp1,0)),\"\")","v":""},{"$f":"IFERROR(INDEX(Se_xe1,MATCH($B395,N°_inscp1,0)),\"\")","v":""},{"$f":"IFERROR(INDEX(Etat_1,MATCH($B395,N°_inscp1,0)),\"\")","v":""},{"$f":"IFERROR(INDEX(PuPriLi1,MATCH($B395,N°_inscp1,0)),\"\")","v":""},{"$f":"IFERROR(INDEX(TOT_1,MATCH($B395,N°_inscp1,0)),\"\")","v":""},{"$f":"IFERROR(INDEX(MOY_1,MATCH($B395,N°_inscp1,0)),\"\")","v":""},{"$f":"IFERROR(INDEX(Rang_1,MATCH($B395,N°_inscp1,0)),\"\")","v":""},{"$f":"IFERROR(INDEX(Rsltt_1,MATCH($B395,N°_inscp1,0)),\"\")","v":""},null,null,null,null,null,null,null,null,null,null,null,null,null,null,null,null,null,null,null,null,null,null,null,null,null,"",{"$f":"Notes_2nd_Gr!$C395","v":0},{"$f":"IFERROR(INDEX(Pnam_2,MATCH($AN395,N°_inscp2,0)),\"\")","v":""},{"$f":"IFERROR(INDEX(Nam_2,MATCH($AN395,N°_inscp2,0)),\"\")","v":""},{"$f":"IFERROR(INDEX(Dnais_2,MATCH($AN395,N°_inscp2,0)),\"\")","v":""},{"$f":"IFERROR(INDEX(Lnais_2,MATCH($AN395,N°_inscp2,0)),\"\")","v":""},{"$f":"IFERROR(INDEX(Se_xe2,MATCH($AN395,N°_inscp2,0)),\"\")","v":""},{"$f":"IFERROR(INDEX(Etat_2,MATCH($AN395,N°_inscp2,0)),\"\")","v":""},{"$f":"IFERROR(INDEX(PuPriLi2,MATCH($AN395,N°_inscp2,0)),\"\")","v":""},{"$f":"IFERROR(INDEX(TOT_2,MATCH($AN395,N°_inscp2,0)),\"\")","v":""},{"$f":"IFERROR(INDEX(MOY_2,MATCH($AN395,N°_inscp2,0)),\"\")","v":""},{"$f":"IFERROR(INDEX(Rang_2,MATCH($AN395,N°_inscp2,0)),\"\")","v":""},{"$f":"IFERROR(INDEX(Rsltt_2,MATCH($AN395,N°_inscp2,0)),\"\")","v":""}]
["",{"$f":"Notes_Candidats!$C398","v":0},"","","","","","","","","","","",null,null,null,null,null,null,null,null,null,null,null,null,null,null,null,null,null,null,null,null,null,null,null,null,null,"",{"$f":"Notes_2nd_Gr!$C396","v":0},"","","","","","","","","","",""]
["",{"$f":"Notes_Candidats!$C399","v":0},"","","","","","","","","","","",null,null,null,null,null,null,null,null,null,null,null,null,null,null,null,null,null,null,null,null,null,null,null,null,null,"",{"$f":"Notes_2nd_Gr!$C397","v":0},"","","","","","","","","","",""]
["",{"$f":"Notes_Candidats!$C400","v":0},"","","","","","","","","","","",null,null,null,null,null,null,null,null,null,null,null,null,null,null,null,null,null,null,null,null,null,null,null,null,null,"",{"$f":"Notes_2nd_Gr!$C398","v":0},"","","","","","","","","","",""]
["",{"$f":"Notes_Candidats!$C401","v":0},"","","","","","","","","","","",null,null,null,null,null,null,null,null,null,null,null,null,null,null,null,null,null,null,null,null,null,null,null,null,null,"",{"$f":"Notes_2nd_Gr!$C399","v":0},"","","","","","","","","","",""]
["",{"$f":"Notes_Candidats!$C402","v":0},"","","","","","","","","","","",null,null,null,null,null,null,null,null,null,null,null,null,null,null,null,null,null,null,null,null,null,null,null,null,null,"",{"$f":"Notes_2nd_Gr!$C400","v":0},"","","","","","","","","","",""]
["",{"$f":"Notes_Candidats!$C403","v":0},"","","","","","","","","","","",null,null,null,null,null,null,null,null,null,null,null,null,null,null,null,null,null,null,null,null,null,null,null,null,null,"",{"$f":"Notes_2nd_Gr!$C401","v":0},"","","","","","","","","","",""]
["",{"$f":"Notes_Candidats!$C404","v":0},"","","","","","","","","","","",null,null,null,null,null,null,null,null,null,null,null,null,null,null,null,null,null,null,null,null,null,null,null,null,null,"",{"$f":"Notes_2nd_Gr!$C402","v":0},"","","","","","","","","","",""]
["",{"$f":"Notes_Candidats!$C405","v":0},"","","","","","","","","","","",null,null,null,null,null,null,null,null,null,null,null,null,null,null,null,null,null,null,null,null,null,null,null,null,null,"",{"$f":"Notes_2nd_Gr!$C403","v":0},"","","","","","","","","","",""]
["",{"$f":"Notes_Candidats!$C406","v":0},"","","","","","","","","","","",null,null,null,null,null,null,null,null,null,null,null,null,null,null,null,null,null,null,null,null,null,null,null,null,null,"",{"$f":"Notes_2nd_Gr!$C404","v":0},"","","","","","","","","","",""]
["",{"$f":"Notes_Candidats!$C407","v":0},"","","","","","","","","","","",null,null,null,null,null,null,null,null,null,null,null,null,null,null,null,null,null,null,null,null,null,null,null,null,null,"",{"$f":"Notes_2nd_Gr!$C405","v":0},"","","","","","","","","","",""]
["",{"$f":"Notes_Candidats!$C408","v":0},"","","","","","","","","","","",null,null,null,null,null,null,null,null,null,null,null,null,null,null,null,null,null,null,null,null,null,null,null,null,null,"",{"$f":"Notes_2nd_Gr!$C406","v":0},"","","","","","","","","","",""]
["",{"$f":"Notes_Candidats!$C409","v":0},"","","","","","","","","","","",null,null,null,null,null,null,null,null,null,null,null,null,null,null,null,null,null,null,null,null,null,null,null,null,null,"",{"$f":"Notes_2nd_Gr!$C407","v":0},"","","","","","","","","","",""]
["",{"$f":"Notes_Candidats!$C410","v":0},"","","","","","","","","","","",null,null,null,null,null,null,null,null,null,null,null,null,null,null,null,null,null,null,null,null,null,null,null,null,null,"",{"$f":"Notes_2nd_Gr!$C408","v":0},"","","","","","","","","","",""]
["",{"$f":"Notes_Candidats!$C411","v":0},"","","","","","","","","","","",null,null,null,null,null,null,null,null,null,null,null,null,null,null,null,null,null,null,null,null,null,null,null,null,null,"",{"$f":"Notes_2nd_Gr!$C409","v":0},"","","","","","","","","","",""]
["",{"$f":"Notes_Candidats!$C412","v":0},"","","","","","","","","","","",null,null,null,null,null,null,null,null,null,null,null,null,null,null,null,null,null,null,null,null,null,null,null,null,null,"",{"$f":"Notes_2nd_Gr!$C410","v":0},"","","","","","","","","","",""]
["",{"$f":"Notes_Candidats!$C413","v":0},"","","","","","","","","","","",null,null,null,null,null,null,null,null,null,null,null,null,null,null,null,null,null,null,null,null,null,null,null,null,null,"",{"$f":"Notes_2nd_Gr!$C411","v":0},"","","","","","","","","","",""]
["",{"$f":"Notes_Candidats!$C414","v":0},"","","","","","","","","","","",null,null,null,null,null,null,null,null,null,null,null,null,null,null,null,null,null,null,null,null,null,null,null,null,null,"",{"$f":"Notes_2nd_Gr!$C412","v":0},"","","","","","","","","","",""]
["",{"$f":"Notes_Candidats!$C415","v":0},"","","","","","","","","","","",null,null,null,null,null,null,null,null,null,null,null,null,null,null,null,null,null,null,null,null,null,null,null,null,null,"",{"$f":"Notes_2nd_Gr!$C413","v":0},"","","","","","","","","","",""]
["",{"$f":"Notes_Candidats!$C416","v":0},"","","","","","","","","","","",null,null,null,null,null,null,null,null,null,null,null,null,null,null,null,null,null,null,null,null,null,null,null,null,null,"",{"$f":"Notes_2nd_Gr!$C414","v":0},"","","","","","","","","","",""]
["",{"$f":"Notes_Candidats!$C417","v":0},"","","","","","","","","","","",null,null,null,null,null,null,null,null,null,null,null,null,null,null,null,null,null,null,null,null,null,null,null,null,null,"",{"$f":"Notes_2nd_Gr!$C415","v":0},"","","","","","","","","","",""]
["",{"$f":"Notes_Candidats!$C418","v":0},"","","","","","","","","","","",null,null,null,null,null,null,null,null,null,null,null,null,null,null,null,null,null,null,null,null,null,null,null,null,null,"",{"$f":"Notes_2nd_Gr!$C416","v":0},"","","","","","","","","","",""]
["",{"$f":"Notes_Candidats!$C419","v":0},"","","","","","","","","","","",null,null,null,null,null,null,null,null,null,null,null,null,null,null,null,null,null,null,null,null,null,null,null,null,null,"",{"$f":"Notes_2nd_Gr!$C417","v":0},"","","","","","","","","","",""]
["",{"$f":"Notes_Candidats!$C420","v":0},"","","","","","","","","","","",null,null,null,null,null,null,null,null,null,null,null,null,null,null,null,null,null,null,null,null,null,null,null,null,null,"",{"$f":"Notes_2nd_Gr!$C418","v":0},"","","","","","","","","","",""]
["",{"$f":"Notes_Candidats!$C421","v":0},"","","","","","","","","","","",null,null,null,null,null,null,null,null,null,null,null,null,null,null,null,null,null,null,null,null,null,null,null,null,null,"",{"$f":"Notes_2nd_Gr!$C419","v":0},"","","","","","","","","","",""]
["",{"$f":"Notes_Candidats!$C422","v":0},"","","","","","","","","","","",null,null,null,null,null,null,null,null,null,null,null,null,null,null,null,null,null,null,null,null,null,null,null,null,null,"",{"$f":"Notes_2nd_Gr!$C420","v":0},"","","","","","","","","","",""]
["",{"$f":"Notes_Candidats!$C423","v":0},"","","","","","","","","","","",null,null,null,null,null,null,null,null,null,null,null,null,null,null,null,null,null,null,null,null,null,null,null,null,null,"",{"$f":"Notes_2nd_Gr!$C421","v":0},"","","","","","","","","","",""]
[null,null,null,null,null,null,null,null,null,null,null,null,null,null,null,null,null,null,null,null,null,null,null,null,null,null,null,null,null,null,null,null,null,null,null,null,null,null,"",{"$f":"Notes_2nd_Gr!$C422","v":0},"","","","","","","","","","",""]
[null,null,null,null,null,null,null,null,null,null,null,null,null,null,null,null,null,null,null,null,null,null,null,null,null,null,null,null,null,null,null,null,null,null,null,null,null,null,"",{"$f":"Notes_2nd_Gr!$C423","v":0},"","","","","","","","","","",""]

{"sheet":"Notes_Candidats","index":1,"n_rows":423,"n_cols":27,"rows_kept":423,"cut":false,"hidden":false,"merged":[[3,0,4,6],[9,10,9,21],[10,10,10,19],[7,10,7,21]]}
["REPUBLIQUE DU SENEGAL",null,null,null,"ACADEMIE DE"]
["MINISTERE DE L'EDUCATION NATIONALE"]
["DIRECTION DES EXAMENS ET CONCOURS"]
["EXAMEN DU B.F.E.M."]
[null,null,null,null,null,null,null,null,null,null,null,null,null,null,"Admis 1er Groupe",null,{"$f":"COUNTIF(Rsltt_1,\"Admis\")","v":0},"Echecs",null,{"$f":"COUNTIF(Rsltt_1,\"Echec\")","v":0}]
["CENTRE",null,null,null,null,"SESSION DE",null,null,null,null,null,null,null,null,"Repêchables",null,{"$f":"COUNTIF(Rsltt_1,\"Repêchable\")","v":0},"2ème Groupe",null,{"$f":"COUNTIF(Rsltt_1,\"2ème Groupe\")","v":0},"Pourcentage",null,{"$f":"IFERROR(Q5/Q7,\"\")","v":""}]
["SECTION",null,null,null,null,"JURY",null,null,null,null,null,null,null,null,"Total",null,{"$f":"Q5+Q6+T5+T6","v":0}]
[null,null,null,null,null,null,null,null,null,null,"Coefficients"]
[null,null,null,null,null,null,null,null,null,null,2,1,1,2,2,1,2,4,2,1,2,2,{"$f":"SUM(K9:V9)","v":22}]
[null,null,null,null,null,null,null,null,null,null,"EXAMEN DU 1er GROUPE: EPREUVES OBLIGATOIRES"]
[null,null,null,null,null,null,null,null,null,null,"Epreuves Ecrites Communes"]
["N° Ordre","N° Anony","N° inscp","Prénoms","Nom","Date De Naissance","Lieu de Naissance","Sexe","Etablissement Fréquenté","Statut","Comp Franç","Dictée","TSQ","SVT","LV1 (Ecrit)","LV1 (Oral)","LV2","Maths","Hist-géo","Educ Civiq","EPS","Epr E Part","Epr Fac Bonus","TOTAL","MOYENNE","RANG","Résultats"]
[{"$f":"IF(C13<>\"\",ROW()-12,\"\")","v":""},null,null,null,null,null,null,null,null,null,null,null,null,null,null,null,null,null,null,null,null,null,null,{"$f":"IF(N°_inscp1=\"\",\"\",SUMPRODUCT(Coeff1,K13:V13)+Bonus)","v":""},{"$f":"IF(N°_inscp1=\"\",\"\",IF(AND(Sport=\"Inapte\",EEE=\"\"),TOT_1/(SUM(Coeff1)-4),IF(OR(Sport=\"Inapte\",EEE=\"\"),TOT_1/(SUM(Coeff1)-2),TOT_1/SUM(Coeff1))))","v":""},{"$f":"IF(N°_inscp1=\"\",\"\",IF(ISNA(IF(RANK(Y13,MOY_1,0)=1,RANK(Y13,MOY_1,0)&\"er\",RANK(Y13,MOY_1,0)&\"ème\")),\"\",IF(RANK(Y13,MOY_1,0)=1,RANK(Y13,MOY_1,0)&\"er\",RANK(Y13,MOY_1,0)&\"ème\")))","v":""},{"$f":"IF(N°_inscp1=\"\",\"\",VLOOKUP(MOY_1,App_1,2,TRUE))","v":""}]
[{"$f":"IF(C14<>\"\",ROW()-12,\"\")","v":""},null,null,null,null,null,null,null,null,null,null,null,null,null,null,null,null,null,null,null,null,null,null,{"$f":"IF(N°_inscp1=\"\",\"\",SUMPRODUCT(Coeff1,K14:V14)+Bonus)","v":""},"","",""]
["",null,null,null,null,null,null,null,null,null,null,null,null,null,null,null,null,null,null,null,null,null,null,"","","",""]
["",null,null,null,null,null,null,null,null,null,null,null,null,null,null,null,null,null,null,null,null,null,null,"","","",""]
["",null,null,null,null,null,null,null,null,null,null,null,null,null,null,null,null,null,null,null,null,null,null,"","","",""]
["",null,null,null,null,null,null,null,null,null,null,null,null,null,null,null,null,null,null,null,null,null,null,"","","",""]
["",null,null,null,null,null,null,null,null,null,null,null,null,null,null,null,null,null,null,null,null,null,null,"","","",""]
["",null,null,null,null,null,null,null,null,null,null,null,null,null,null,null,null,null,null,null,null,null,null,"","","",""]
["",null,null,null,null,null,null,null,null,null,null,null,null,null,null,null,null,null,null,null,null,null,null,"","","",""]
["",null,null,null,null,null,null,null,null,null,null,null,null,null,null,null,null,null,null,null,null,null,null,"","","",""]
["",null,null,null,null,null,null,null,null,null,null,null,null,null,null,null,null,null,null,null,null,null,null,"","","",""]
["",null,null,null,null,null,null,null,null,null,null,null,null,null,null,null,null,null,null,null,null,null,null,"","","",""]
["",null,null,null,null,null,null,null,null,null,null,null,null,null,null,null,null,null,null,null,null,null,null,"","","",""]
["",null,null,null,null,null,null,null,null,null,null,null,null,null,null,null,null,null,null,null,null,null,null,"","","",""]
["",null,null,null,null,null,null,null,null,null,null,null,null,null,null,null,null,null,null,null,null,null,null,"","","",""]
["",null,null,null,null,null,null,null,null,null,null,null,null,null,null,null,null,null,null,null,null,null,null,"","","",""]
["",null,null,null,null,null,null,null,null,null,null,null,null,null,null,null,null,null,null,null,null,null,null,"","","",""]
["",null,null,null,null,null,null,null,null,null,null,null,null,null,null,null,null,null,null,null,null,null,null,"","","",""]
["",null,null,null,null,null,null,null,null,null,null,null,null,null,null,null,null,null,null,null,null,null,null,"","","",""]
["",null,null,null,null,null,null,null,null,null,null,null,null,null,null,null,null,null,null,null,null,null,null,"","","",""]
["",null,null,null,null,null,null,null,null,null,null,null,null,null,null,null,null,null,null,null,null,null,null,"","","",""]
["",null,null,null,null,null,null,null,null,null,null,null,null,null,null,null,null,null,null,null,null,null,null,"","","",""]
["",null,null,null,null,null,null,null,null,null,null,null,null,null,null,null,null,null,null,null,null,null,null,"","","",""]
["",null,null,null,null,null,null,null,null,null,null,null,null,null,null,null,null,null,null,null,null,null,null,"","","",""]
["",null,null,null,null,null,null,null,null,null,null,null,null,null,null,null,null,null,null,null,null,null,null,"","","",""]
["",null,null,null,null,null,null,null,null,null,null,null,null,null,null,null,null,null,null,null,null,null,null,"","","",""]
["",null,null,null,null,null,null,null,null,null,null,null,null,null,null,null,null,null,null,null,null,null,null,"","","",""]
["",null,null,null,null,null,null,null,null,null,null,null,null,null,null,null,null,null,null,null,null,null,null,"","","",""]
["",null,null,null,null,null,null,null,null,null,null,null,null,null,null,null,null,null,null,null,null,null,null,"","","",""]
["",null,null,null,null,null,null,null,null,null,null,null,null,null,null,null,null,null,null,null,null,null,null,"","","",""]
["",null,null,null,null,null,null,null,null,null,null,null,null,null,null,null,null,null,null,null,null,null,null,"","","",""]
["",null,null,null,null,null,null,null,null,null,null,null,null,null,null,null,null,null,null,null,null,null,null,"","","",""]
["",null,null,null,null,null,null,null,null,null,null,null,null,null,null,null,null,null,null,null,null,null,null,"","","",""]
["",null,null,null,null,null,null,null,null,null,null,null,null,null,null,null,null,null,null,null,null,null,null,"","","",""]
["",null,null,null,null,null,null,null,null,null,null,null,null,null,null,null,null,null,null,null,null,null,null,"","","",""]
["",null,null,null,null,null,null,null,null,null,null,null,null,null,null,null,null,null,null,null,null,null,null,"","","",""]
["",null,null,null,null,null,null,null,null,null,null,null,null,null,null,null,null,null,null,null,null,null,null,"","","",""]
["",null,null,null,null,null,null,null,null,null,null,null,null,null,null,null,null,null,null,null,null,null,null,"","","",""]
["",null,null,null,null,null,null,null,null,null,null,null,null,null,null,null,null,null,null,null,null,null,null,"","","",""]
["",null,null,null,null,null,null,null,null,null,null,null,null,null,null,null,null,null,null,null,null,null,null,"","","",""]
["",null,null,null,null,null,null,null,null,null,null,null,null,null,null,null,null,null,null,null,null,null,null,"","","",""]
["",null,null,null,null,null,null,null,null,null,null,null,null,null,null,null,null,null,null,null,null,null,null,"","","",""]
["",null,null,null,null,null,null,null,null,null,null,null,null,null,null,null,null,null,null,null,null,null,null,"","","",""]
["",null,null,null,null,null,null,null,null,null,null,null,null,null,null,null,null,null,null,null,null,null,null,"","","",""]
["",null,null,null,null,null,null,null,null,null,null,null,null,null,null,null,null,null,null,null,null,null,null,"","","",""]
["",null,null,null,null,null,null,null,null,null,null,null,null,null,null,null,null,null,null,null,null,null,null,"","","",""]
["",null,null,null,null,null,null,null,null,null,null,null,null,null,null,null,null,null,null,null,null,null,null,"","","",""]
["",null,null,null,null,null,null,null,null,null,null,null,null,null,null,null,null,null,null,null,null,null,null,"","","",""]
["",null,null,null,null,null,null,null,null,null,null,null,null,null,null,null,null,null,null,null,null,null,null,"","","",""]
["",null,null,null,null,null,null,null,null,null,null,null,null,null,null,null,null,null,null,null,null,null,null,"","","",""]
["",null,null,null,null,null,null,null,null,null,null,null,null,null,null,null,null,null,null,null,null,null,null,"","","",""]
["",null,null,null,null,null,null,null,null,null,null,null,null,null,null,null,null,null,null,null,null,null,null,"","","",""]
["",null,null,null,null,null,null,null,null,null,null,null,null,null,null,null,null,null,null,null,null,null,null,"","","",""]
["",null,null,null,null,null,null,null,null,null,null,null,null,null,null,null,null,null,null,null,null,null,null,"","","",""]
["",null,null,null,null,null,null,null,null,null,null,null,null,null,null,null,null,null,null,null,null,null,null,"","","",""]
["",null,null,null,null,null,null,null,null,null,null,null,null,null,null,null,null,null,null,null,null,null,null,"","","",""]
["",null,null,null,null,null,null,null,null,null,null,null,null,null,null,null,null,null,null,null,null,null,null,"","","",""]
["",null,null,null,null,null,null,null,null,null,null,null,null,null,null,null,null,null,null,null,null,null,null,"","","",""]
["",null,null,null,null,null,null,null,null,null,null,null,null,null,null,null,null,null,null,null,null,null,null,"","","",""]
["",null,null,null,null,null,null,null,null,null,null,null,null,null,null,null,null,null,null,null,null,null,null,"","","",""]
["",null,null,null,null,null,null,null,null,null,null,null,null,null,null,null,null,null,null,null,null,null,null,"","","",""]
["",null,null,null,null,null,null,null,null,null,null,null,null,null,null,null,null,null,null,null,null,null,null,"","","",""]
["",null,null,null,null,null,null,null,null,null,null,null,null,null,null,null,null,null,null,null,null,null,null,"","","",""]
["",null,null,null,null,null,null,null,null,null,null,null,null,null,null,null,null,null,null,null,null,null,null,"","","",""]
["",null,null,null,null,null,null,null,null,null,null,null,null,null,null,null,null,null,null,null,null,null,null,{"$f":"IF(N°_inscp1=\"\",\"\",SUMPRODUCT(Coeff1,K77:V77)+Bonus)","v":""},{"$f":"IF(N°_inscp1=\"\",\"\",IF(AND(Sport=\"Inapte\",EEE=\"\"),TOT_1/(SUM(Coeff1)-4),IF(OR(Sport=\"Inapte\",EEE=\"\"),TOT_1/(SUM(Coeff1)-2),TOT_1/SUM(Coeff1))))","v":""},{"$f":"IF(N°_inscp1=\"\",\"\",IF(ISNA(IF(RANK(Y77,MOY_1,0)=1,RANK(Y77,MOY_1,0)&\"er\",RANK(Y77,MOY_1,0)&\"ème\")),\"\",IF(RANK(Y77,MOY_1,0)=1,RANK(Y77,MOY_1,0)&\"er\",RANK(Y77,MOY_1,0)&\"ème\")))","v":""},{"$f":"IF(N°_inscp1=\"\",\"\",VLOOKUP(MOY_1,App_1,2,TRUE))","v":""}]
[{"$f":"IF(C78<>\"\",ROW()-12,\"\")","v":""},null,null,null,null,null,null,null,null,null,null,null,null,null,null,null,null,null,null,null,null,null,null,"","","",""]
["",null,null,null,null,null,null,null,null,null,null,null,null,null,null,null,null,null,null,null,null,null,null,"","","",""]
["",null,null,null,null,null,null,null,null,null,null,null,null,null,null,null,null,null,null,null,null,null,null,"","","",""]
["",null,null,null,null,null,null,null,null,null,null,null,null,null,null,null,null,null,null,null,null,null,null,"","","",""]
["",null,null,null,null,null,null,null,null,null,null,null,null,null,null,null,null,null,null,null,null,null,null,"","","",""]
["",null,null,null,null,null,null,null,null,null,null,null,null,null,null,null,null,null,null,null,null,null,null,"","","",""]
["",null,null,null,null,null,null,null,null,null,null,null,null,null,null,null,null,null,null,null,null,null,null,"","","",""]
["",null,null,null,null,null,null,null,null,null,null,null,null,null,null,null,null,null,null,null,null,null,null,"","","",""]
["",null,null,null,null,null,null,null,null,null,null,null,null,null,null,null,null,null,null,null,null,null,null,"","","",""]
["",null,null,null,null,null,null,null,null,null,null,null,null,null,null,null,null,null,null,null,null,null,null,"","","",""]
["",null,null,null,null,null,null,null,null,null,null,null,null,null,null,null,null,null,null,null,null,null,null,"","","",""]
["",null,null,null,null,null,null,null,null,null,null,null,null,null,null,null,null,null,null,null,null,null,null,"","","",""]
["",null,null,null,null,null,null,null,null,null,null,null,null,null,null,null,null,null,null,null,null,null,null,"","","",""]
["",null,null,null,null,null,null,null,null,null,null,null,null,null,null,null,null,null,null,null,null,null,null,"","","",""]
["",null,null,null,null,null,null,null,null,null,null,null,null,null,null,null,null,null,null,null,null,null,null,"","","",""]
["",null,null,null,null,null,null,null,null,null,null,null,null,null,null,null,null,null,null,null,null,null,null,"","","",""]
["",null,null,null,null,null,null,null,null,null,null,null,null,null,null,null,null,null,null,null,null,null,null,"","","",""]
["",null,null,null,null,null,null,null,null,null,null,null,null,null,null,null,null,null,null,null,null,null,null,"","","",""]
["",null,null,null,null,null,null,null,null,null,null,null,null,null,null,null,null,null,null,null,null,null,null,"","","",""]
["",null,null,null,null,null,null,null,null,null,null,null,null,null,null,null,null,null,null,null,null,null,null,"","","",""]
["",null,null,null,null,null,null,null,null,null,null,null,null,null,null,null,null,null,null,null,null,null,null,"","","",""]
["",null,null,null,null,null,null,null,null,null,null,null,null,null,null,null,null,null,null,null,null,null,null,"","","",""]
["",null,null,null,null,null,null,null,null,null,null,null,null,null,null,null,null,null,null,null,null,null,null,"","","",""]
["",null,null,null,null,null,null,null,null,null,null,null,null,null,null,null,null,null,null,null,null,null,null,"","","",""]
["",null,null,null,null,null,null,null,null,null,null,null,null,null,null,null,null,null,null,null,null,null,null,"","","",""]
["",null,null,null,null,null,null,null,null,null,null,null,null,null,null,null,null,null,null,null,null,null,null,"","","",""]
["",null,null,null,null,null,null,null,null,null,null,null,null,null,null,null,null,null,null,null,null,null,null,"","","",""]
["",null,null,null,null,null,null,null,null,null,null,null,null,null,null,null,null,null,null,null,null,null,null,"","","",""]
["",null,null,null,null,null,null,null,null,null,null,null,null,null,null,null,null,null,null,null,null,null,null,"","","",""]
["",null,null,null,null,null,null,null,null,null,null,null,null,null,null,null,null,null,null,null,null,null,null,"","","",""]
["",null,null,null,null,null,null,null,null,null,null,null,null,null,null,null,null,null,null,null,null,null,null,"","","",""]
["",null,null,null,null,null,null,null,null,null,null,null,null,null,null,null,null,null,null,null,null,null,null,"","","",""]
["",null,null,null,null,null,null,null,null,null,null,null,null,null,null,null,null,null,null,null,null,null,null,"","","",""]
["",null,null,null,null,null,null,null,null,null,null,null,null,null,null,null,null,null,null,null,null,null,null,"","","",""]
["",null,null,null,null,null,null,null,null,null,null,null,null,null,null,null,null,null,null,null,null,null,null,"","","",""]
["",null,null,null,null,null,null,null,null,null,null,null,null,null,null,null,null,null,null,null,null,null,null,"","","",""]
["",null,null,null,null,null,null,null,null,null,null,null,null,null,null,null,null,null,null,null,null,null,null,"","","",""]
["",null,null,null,null,null,null,null,null,null,null,null,null,null,null,null,null,null,null,null,null,null,null,"","","",""]
["",null,null,null,null,null,null,null,null,null,null,null,null,null,null,null,null,null,null,null,null,null,null,"","","",""]
["",null,null,null,null,null,null,null,null,null,null,null,null,null,null,null,null,null,null,null,null,null,null,"","","",""]
["",null,null,null,null,null,null,null,null,null,null,null,null,null,null,null,null,null,null,null,null,null,null,"","","",""]
["",null,null,null,null,null,null,null,null,null,null,null,null,null,null,null,null,null,null,null,null,null,null,"","","",""]
["",null,null,null,null,null,null,null,null,null,null,null,null,null,null,null,null,null,null,null,null,null,null,"","","",""]
["",null,null,null,null,null,null,null,null,null,null,null,null,null,null,null,null,null,null,null,null,null,null,"","","",""]
["",null,null,null,null,null,null,null,null,null,null,null,null,null,null,null,null,null,null,null,null,null,null,"","","",""]
["",null,null,null,null,null,null,null,null,null,null,null,null,null,null,null,null,null,null,null,null,null,null,"","","",""]
["",null,null,null,null,null,null,null,null,null,null,null,null,null,null,null,null,null,null,null,null,null,null,"","","",""]
["",null,null,null,null,null,null,null,null,null,null,null,null,null,null,null,null,null,null,null,null,null,null,"","","",""]
["",null,null,null,null,null,null,null,null,null,null,null,null,null,null,null,null,null,null,null,null,null,null,"","","",""]
["",null,null,null,null,null,null,null,null,null,null,null,null,null,null,null,null,null,null,null,null,null,null,"","","",""]
["",null,null,null,null,null,null,null,null,null,null,null,null,null,null,null,null,null,null,null,null,null,null,"","","",""]
["",null,null,null,null,null,null,null,null,null,null,null,null,null,null,null,null,null,null,null,null,null,null,"","","",""]
["",null,null,null,null,null,null,null,null,null,null,null,null,null,null,null,null,null,null,null,null,null,null,"","","",""]
["",null,null,null,null,null,null,null,null,null,null,null,null,null,null,null,null,null,null,null,null,null,null,"","","",""]
["",null,null,null,null,null,null,null,null,null,null,null,null,null,null,null,null,null,null,null,null,null,null,"","","",""]
["",null,null,null,null,null,null,null,null,null,null,null,null,null,null,null,null,null,null,null,null,null,null,"","","",""]
["",null,null,null,null,null,null,null,null,null,null,null,null,null,null,null,null,null,null,null,null,null,null,"","","",""]
["",null,null,null,null,null,null,null,null,null,null,null,null,null,null,null,null,null,null,null,null,null,null,"","","",""]
["",null,null,null,null,null,null,null,null,null,null,null,null,null,null,null,null,null,null,null,null,null,null,"","","",""]
["",null,null,null,null,null,null,null,null,null,null,null,null,null,null,null,null,null,null,null,null,null,null,"","","",""]
["",null,null,null,null,null,null,null,null,null,null,null,null,null,null,null,null,null,null,null,null,null,null,"","","",""]
["",null,null,null,null,null,null,null,null,null,null,null,null,null,null,null,null,null,null,null,null,null,null,"","","",""]
["",null,null,null,null,null,null,null,null,null,null,null,null,null,null,null,null,null,null,null,null,null,null,"","","",""]
["",null,null,null,null,null,null,null,null,null,null,null,null,null,null,null,null,null,null,null,null,null,null,{"$f":"IF(N°_inscp1=\"\",\"\",SUMPRODUCT(Coeff1,K141:V141)+Bonus)","v":""},{"$f":"IF(N°_inscp1=\"\",\"\",IF(AND(Sport=\"Inapte\",EEE=\"\"),TOT_1/(SUM(Coeff1)-4),IF(OR(Sport=\"Inapte\",EEE=\"\"),TOT_1/(SUM(Coeff1)-2),TOT_1/SUM(Coeff1))))","v":""},{"$f":"IF(N°_inscp1=\"\",\"\",IF(ISNA(IF(RANK(Y141,MOY_1,0)=1,RANK(Y141,MOY_1,0)&\"er\",RANK(Y141,MOY_1,0)&\"ème\")),\"\",IF(RANK(Y141,MOY_1,0)=1,RANK(Y141,MOY_1,0)&\"er\",RANK(Y141,MOY_1,0)&\"ème\")))","v":""},{"$f":"IF(N°_inscp1=\"\",\"\",VLOOKUP(MOY_1,App_1,2,TRUE))","v":""}]
[{"$f":"IF(C142<>\"\",ROW()-12,\"\")","v":""},null,null,null,null,null,null,null,null,null,null,null,null,null,null,null,null,null,null,null,null,null,null,"","","",""]
["",null,null,null,null,null,null,null,null,null,null,null,null,null,null,null,null,null,null,null,null,null,null,"","","",""]
["",null,null,null,null,null,null,null,null,null,null,null,null,null,null,null,null,null,null,null,null,null,null,"","","",""]
["",null,null,null,null,null,null,null,null,null,null,null,null,null,null,null,null,null,null,null,null,null,null,"","","",""]
["",null,null,null,null,null,null,null,null,null,null,null,null,null,null,null,null,null,null,null,null,null,null,"","","",""]
["",null,null,null,null,null,null,null,null,null,null,null,null,null,null,null,null,null,null,null,null,null,null,"","","",""]
["",null,null,null,null,null,null,null,null,null,null,null,null,null,null,null,null,null,null,null,null,null,null,"","","",""]
["",null,null,null,null,null,null,null,null,null,null,null,null,null,null,null,null,null,null,null,null,null,null,"","","",""]
["",null,null,null,null,null,null,null,null,null,null,null,null,null,null,null,null,null,null,null,null,null,null,"","","",""]
["",null,null,null,null,null,null,null,null,null,null,null,null,null,null,null,null,null,null,null,null,null,null,"","","",""]
["",null,null,null,null,null,null,null,null,null,null,null,null,null,null,null,null,null,null,null,null,null,null,"","","",""]
["",null,null,null,null,null,null,null,null,null,null,null,null,null,null,null,null,null,null,null,null,null,null,"","","",""]
["",null,null,null,null,null,null,null,null,null,null,null,null,null,null,null,null,null,null,null,null,null,null,"","","",""]
["",null,null,null,null,null,null,null,null,null,null,null,null,null,null,null,null,null,null,null,null,null,null,"","","",""]
["",null,null,null,null,null,null,null,null,null,null,null,null,null,null,null,null,null,null,null,null,null,null,"","","",""]
["",null,null,null,null,null,null,null,null,null,null,null,null,null,null,null,null,null,null,null,null,null,null,"","","",""]
["",null,null,null,null,null,null,null,null,null,null,null,null,null,null,null,null,null,null,null,null,null,null,"","","",""]
["",null,null,null,null,null,null,null,null,null,null,null,null,null,null,null,null,null,null,null,null,null,null,"","","",""]
["",null,null,null,null,null,null,null,null,null,null,null,null,null,null,null,null,null,null,null,null,null,null,"","","",""]
["",null,null,null,null,null,null,null,null,null,null,null,null,null,null,null,null,null,null,null,null,null,null,"","","",""]
["",null,null,null,null,null,null,null,null,null,null,null,null,null,null,null,null,null,null,null,null,null,null,"","","",""]
["",null,null,null,null,null,null,null,null,null,null,null,null,null,null,null,null,null,null,null,null,null,null,"","","",""]
["",null,null,null,null,null,null,null,null,null,null,null,null,null,null,null,null,null,null,null,null,null,null,"","","",""]
["",null,null,null,null,null,null,null,null,null,null,null,null,null,null,null,null,null,null,null,null,null,null,"","","",""]
["",null,null,null,null,null,null,null,null,null,null,null,null,null,null,null,null,null,null,null,null,null,null,"","","",""]
["",null,null,null,null,null,null,null,null,null,null,null,null,null,null,null,null,null,null,null,null,null,null,"","","",""]
["",null,null,null,null,null,null,null,null,null,null,null,null,null,null,null,null,null,null,null,null,null,null,"","","",""]
["",null,null,null,null,null,null,null,null,null,null,null,null,null,null,null,null,null,null,null,null,null,null,"","","",""]
["",null,null,null,null,null,null,null,null,null,null,null,null,null,null,null,null,null,null,null,null,null,null,"","","",""]
["",null,null,null,null,null,null,null,null,null,null,null,null,null,null,null,null,null,null,null,null,null,null,"","","",""]
["",null,null,null,null,null,null,null,null,null,null,null,null,null,null,null,null,null,null,null,null,null,null,"","","",""]
["",null,null,null,null,null,null,null,null,null,null,null,null,null,null,null,null,null,null,null,null,null,null,"","","",""]
["",null,null,null,null,null,null,null,null,null,null,null,null,null,null,null,null,null,null,null,null,null,null,"","","",""]
["",null,null,null,null,null,null,null,null,null,null,null,null,null,null,null,null,null,null,null,null,null,null,"","","",""]
["",null,null,null,null,null,null,null,null,null,null,null,null,null,null,null,null,null,null,null,null,null,null,"","","",""]
["",null,null,null,null,null,null,null,null,null,null,null,null,null,null,null,null,null,null,null,null,null,null,"","","",""]
["",null,null,null,null,null,null,null,null,null,null,null,null,null,null,null,null,null,null,null,null,null,null,"","","",""]
["",null,null,null,null,null,null,null,null,null,null,null,null,null,null,null,null,null,null,null,null,null,null,"","","",""]
["",null,null,null,null,null,null,null,null,null,null,null,null,null,null,null,null,null,null,null,null,null,null,"","","",""]
["",null,null,null,null,null,null,null,null,null,null,null,null,null,null,null,null,null,null,null,null,null,null,"","","",""]
["",null,null,null,null,null,null,null,null,null,null,null,null,null,null,null,null,null,null,null,null,null,null,"","","",""]
["",null,null,null,null,null,null,null,null,null,null,null,null,null,null,null,null,null,null,null,null,null,null,"","","",""]
["",null,null,null,null,null,null,null,null,null,null,null,null,null,null,null,null,null,null,null,null,null,null,"","","",""]
["",null,null,null,null,null,null,null,null,null,null,null,null,null,null,null,null,null,null,null,null,null,null,"","","",""]
["",null,null,null,null,null,null,null,null,null,null,null,null,null,null,null,null,null,null,null,null,null,null,"","","",""]
["",null,null,null,null,null,null,null,null,null,null,null,null,null,null,null,null,null,null,null,null,null,null,"","","",""]
["",null,null,null,null,null,null,null,null,null,null,null,null,null,null,null,null,null,null,null,null,null,null,"","","",""]
["",null,null,null,null,null,null,null,null,null,null,null,null,null,null,null,null,null,null,null,null,null,null,"","","",""]
["",null,null,null,null,null,null,null,null,null,null,null,null,null,null,null,null,null,null,null,null,null,null,"","","",""]
["",null,null,null,null,null,null,null,null,null,null,null,null,null,null,null,null,null,null,null,null,null,null,"","","",""]
["",null,null,null,null,null,null,null,null,null,null,null,null,null,null,null,null,null,null,null,null,null,null,"","","",""]
["",null,null,null,null,null,null,null,null,null,null,null,null,null,null,null,null,null,null,null,null,null,null,"","","",""]
["",null,null,null,null,null,null,null,null,null,null,null,null,null,null,null,null,null,null,null,null,null,null,"","","",""]
["",null,null,null,null,null,null,null,null,null,null,null,null,null,null,null,null,null,null,null,null,null,null,"","","",""]
["",null,null,null,null,null,null,null,null,null,null,null,null,null,null,null,null,null,null,null,null,null,null,"","","",""]
["",null,null,null,null,null,null,null,null,null,null,null,null,null,null,null,null,null,null,null,null,null,null,"","","",""]
["",null,null,null,null,null,null,null,null,null,null,null,null,null,null,null,null,null,null,null,null,null,null,"","","",""]
["",null,null,null,null,null,null,null,null,null,null,null,null,null,null,null,null,null,null,null,null,null,null,"","","",""]
["",null,null,null,null,null,null,null,null,null,null,null,null,null,null,null,null,null,null,null,null,null,null,"","","",""]
["",null,null,null,null,null,null,null,null,null,null,null,null,null,null,null,null,null,null,null,null,null,null,"","","",""]
["",null,null,null,null,null,null,null,null,null,null,null,null,null,null,null,null,null,null,null,null,null,null,"","","",""]
["",null,null,null,null,null,null,null,null,null,null,null,null,null,null,null,null,null,null,null,null,null,null,"","","",""]
["",null,null,null,null,null,null,null,null,null,null,null,null,null,null,null,null,null,null,null,null,null,null,"","","",""]
["",null,null,null,null,null,null,null,null,null,null,null,null,null,null,null,null,null,null,null,null,null,null,{"$f":"IF(N°_inscp1=\"\",\"\",SUMPRODUCT(Coeff1,K205:V205)+Bonus)","v":""},{"$f":"IF(N°_inscp1=\"\",\"\",IF(AND(Sport=\"Inapte\",EEE=\"\"),TOT_1/(SUM(Coeff1)-4),IF(OR(Sport=\"Inapte\",EEE=\"\"),TOT_1/(SUM(Coeff1)-2),TOT_1/SUM(Coeff1))))","v":""},{"$f":"IF(N°_inscp1=\"\",\"\",IF(ISNA(IF(RANK(Y205,MOY_1,0)=1,RANK(Y205,MOY_1,0)&\"er\",RANK(Y205,MOY_1,0)&\"ème\")),\"\",IF(RANK(Y205,MOY_1,0)=1,RANK(Y205,MOY_1,0)&\"er\",RANK(Y205,MOY_1,0)&\"ème\")))","v":""},{"$f":"IF(N°_inscp1=\"\",\"\",VLOOKUP(MOY_1,App_1,2,TRUE))","v":""}]
[{"$f":"IF(C206<>\"\",ROW()-12,\"\")","v":""},null,null,null,null,null,null,null,null,null,null,null,null,null,null,null,null,null,null,null,null,null,null,"","","",""]
["",null,null,null,null,null,null,null,null,null,null,null,null,null,null,null,null,null,null,null,null,null,null,"","","",""]
["",null,null,null,null,null,null,null,null,null,null,null,null,null,null,null,null,null,null,null,null,null,null,"","","",""]
["",null,null,null,null,null,null,null,null,null,null,null,null,null,null,null,null,null,null,null,null,null,null,"","","",""]
["",null,null,null,null,null,null,null,null,null,null,null,null,null,null,null,null,null,null,null,null,null,null,"","","",""]
["",null,null,null,null,null,null,null,null,null,null,null,null,null,null,null,null,null,null,null,null,null,null,"","","",""]
["",null,null,null,null,null,null,null,null,null,null,null,null,null,null,null,null,null,null,null,null,null,null,"","","",""]
["",null,null,null,null,null,null,null,null,null,null,null,null,null,null,null,null,null,null,null,null,null,null,"","","",""]
["",null,null,null,null,null,null,null,null,null,null,null,null,null,null,null,null,null,null,null,null,null,null,"","","",""]
["",null,null,null,null,null,null,null,null,null,null,null,null,null,null,null,null,null,null,null,null,null,null,"","","",""]
["",null,null,null,null,null,null,null,null,null,null,null,null,null,null,null,null,null,null,null,null,null,null,"","","",""]
["",null,null,null,null,null,null,null,null,null,null,null,null,null,null,null,null,null,null,null,null,null,null,"","","",""]
["",null,null,null,null,null,null,null,null,null,null,null,null,null,null,null,null,null,null,null,null,null,null,"","","",""]
["",null,null,null,null,null,null,null,null,null,null,null,null,null,null,null,null,null,null,null,null,null,null,"","","",""]
["",null,null,null,null,null,null,null,null,null,null,null,null,null,null,null,null,null,null,null,null,null,null,"","","",""]
["",null,null,null,null,null,null,null,null,null,null,null,null,null,null,null,null,null,null,null,null,null,null,"","","",""]
["",null,null,null,null,null,null,null,null,null,null,null,null,null,null,null,null,null,null,null,null,null,null,"","","",""]
["",null,null,null,null,null,null,null,null,null,null,null,null,null,null,null,null,null,null,null,null,null,null,"","","",""]
["",null,null,null,null,null,null,null,null,null,null,null,null,null,null,null,null,null,null,null,null,null,null,"","","",""]
["",null,null,null,null,null,null,null,null,null,null,null,null,null,null,null,null,null,null,null,null,null,null,"","","",""]
["",null,null,null,null,null,null,null,null,null,null,null,null,null,null,null,null,null,null,null,null,null,null,"","","",""]
["",null,null,null,null,null,null,null,null,null,null,null,null,null,null,null,null,null,null,null,null,null,null,"","","",""]
["",null,null,null,null,null,null,null,null,null,null,null,null,null,null,null,null,null,null,null,null,null,null,"","","",""]
["",null,null,null,null,null,null,null,null,null,null,null,null,null,null,null,null,null,null,null,null,null,null,"","","",""]
["",null,null,null,null,null,null,null,null,null,null,null,null,null,null,null,null,null,null,null,null,null,null,"","","",""]
["",null,null,null,null,null,null,null,null,null,null,null,null,null,null,null,null,null,null,null,null,null,null,"","","",""]
["",null,null,null,null,null,null,null,null,null,null,null,null,null,null,null,null,null,null,null,null,null,null,"","","",""]
["",null,null,null,null,null,null,null,null,null,null,null,null,null,null,null,null,null,null,null,null,null,null,"","","",""]
["",null,null,null,null,null,null,null,null,null,null,null,null,null,null,null,null,null,null,null,null,null,null,"","","",""]
["",null,null,null,null,null,null,null,null,null,null,null,null,null,null,null,null,null,null,null,null,null,null,"","","",""]
["",null,null,null,null,null,null,null,null,null,null,null,null,null,null,null,null,null,null,null,null,null,null,"","","",""]
["",null,null,null,null,null,null,null,null,null,null,null,null,null,null,null,null,null,null,null,null,null,null,"","","",""]
["",null,null,null,null,null,null,null,null,null,null,null,null,null,null,null,null,null,null,null,null,null,null,"","","",""]
["",null,null,null,null,null,null,null,null,null,null,null,null,null,null,null,null,null,null,null,null,null,null,"","","",""]
["",null,null,null,null,null,null,null,null,null,null,null,null,null,null,null,null,null,null,null,null,null,null,"","","",""]
["",null,null,null,null,null,null,null,null,null,null,null,null,null,null,null,null,null,null,null,null,null,null,"","","",""]
["",null,null,null,null,null,null,null,null,null,null,null,null,null,null,null,null,null,null,null,null,null,null,"","","",""]
["",null,null,null,null,null,null,null,null,null,null,null,null,null,null,null,null,null,null,null,null,null,null,"","","",""]
["",null,null,null,null,null,null,null,null,null,null,null,null,null,null,null,null,null,null,null,null,null,null,"","","",""]
["",null,null,null,null,null,null,null,null,null,null,null,null,null,null,null,null,null,null,null,null,null,null,"","","",""]
["",null,null,null,null,null,null,null,null,null,null,null,null,null,null,null,null,null,null,null,null,null,null,"","","",""]
["",null,null,null,null,null,null,null,null,null,null,null,null,null,null,null,null,null,null,null,null,null,null,"","","",""]
["",null,null,null,null,null,null,null,null,null,null,null,null,null,null,null,null,null,null,null,null,null,null,"","","",""]
["",null,null,null,null,null,null,null,null,null,null,null,null,null,null,null,null,null,null,null,null,null,null,"","","",""]
["",null,null,null,null,null,null,null,null,null,null,null,null,null,null,null,null,null,null,null,null,null,null,"","","",""]
["",null,null,null,null,null,null,null,null,null,null,null,null,null,null,null,null,null,null,null,null,null,null,"","","",""]
["",null,null,null,null,null,null,null,null,null,null,null,null,null,null,null,null,null,null,null,null,null,null,"","","",""]
["",null,null,null,null,null,null,null,null,null,null,null,null,null,null,null,null,null,null,null,null,null,null,"","","",""]
["",null,null,null,null,null,null,null,null,null,null,null,null,null,null,null,null,null,null,null,null,null,null,"","","",""]
["",null,null,null,null,null,null,null,null,null,null,null,null,null,null,null,null,null,null,null,null,null,null,"","","",""]
["",null,null,null,null,null,null,null,null,null,null,null,null,null,null,null,null,null,null,null,null,null,null,"","","",""]
["",null,null,null,null,null,null,null,null,null,null,null,null,null,null,null,null,null,null,null,null,null,null,"","","",""]
["",null,null,null,null,null,null,null,null,null,null,null,null,null,null,null,null,null,null,null,null,null,null,"","","",""]
["",null,null,null,null,null,null,null,null,null,null,null,null,null,null,null,null,null,null,null,null,null,null,"","","",""]
["",null,null,null,null,null,null,null,null,null,null,null,null,null,null,null,null,null,null,null,null,null,null,"","","",""]
["",null,null,null,null,null,null,null,null,null,null,null,null,null,null,null,null,null,null,null,null,null,null,"","","",""]
["",null,null,null,null,null,null,null,null,null,null,null,null,null,null,null,null,null,null,null,null,null,null,"","","",""]
["",null,null,null,null,null,null,null,null,null,null,null,null,null,null,null,null,null,null,null,null,null,null,"","","",""]
["",null,null,null,null,null,null,null,null,null,null,null,null,null,null,null,null,null,null,null,null,null,null,"","","",""]
["",null,null,null,null,null,null,null,null,null,null,null,null,null,null,null,null,null,null,null,null,null,null,"","","",""]
["",null,null,null,null,null,null,null,null,null,null,null,null,null,null,null,null,null,null,null,null,null,null,"","","",""]
["",null,null,null,null,null,null,null,null,null,null,null,null,null,null,null,null,null,null,null,null,null,null,"","","",""]
["",null,null,null,null,null,null,null,null,null,null,null,null,null,null,null,null,null,null,null,null,null,null,"","","",""]
["",null,null,null,null,null,null,null,null,null,null,null,null,null,null,null,null,null,null,null,null,null,null,{"$f":"IF(N°_inscp1=\"\",\"\",SUMPRODUCT(Coeff1,K269:V269)+Bonus)","v":""},{"$f":"IF(N°_inscp1=\"\",\"\",IF(AND(Sport=\"Inapte\",EEE=\"\"),TOT_1/(SUM(Coeff1)-4),IF(OR(Sport=\"Inapte\",EEE=\"\"),TOT_1/(SUM(Coeff1)-2),TOT_1/SUM(Coeff1))))","v":""},{"$f":"IF(N°_inscp1=\"\",\"\",IF(ISNA(IF(RANK(Y269,MOY_1,0)=1,RANK(Y269,MOY_1,0)&\"er\",RANK(Y269,MOY_1,0)&\"ème\")),\"\",IF(RANK(Y269,MOY_1,0)=1,RANK(Y269,MOY_1,0)&\"er\",RANK(Y269,MOY_1,0)&\"ème\")))","v":""},{"$f":"IF(N°_inscp1=\"\",\"\",VLOOKUP(MOY_1,App_1,2,TRUE))","v":""}]
[{"$f":"IF(C270<>\"\",ROW()-12,\"\")","v":""},null,null,null,null,null,null,null,null,null,null,null,null,null,null,null,null,null,null,null,null,null,null,"","","",""]
["",null,null,null,null,null,null,null,null,null,null,null,null,null,null,null,null,null,null,null,null,null,null,"","","",""]
["",null,null,null,null,null,null,null,null,null,null,null,null,null,null,null,null,null,null,null,null,null,null,"","","",""]
["",null,null,null,null,null,null,null,null,null,null,null,null,null,null,null,null,null,null,null,null,null,null,"","","",""]
["",null,null,null,null,null,null,null,null,null,null,null,null,null,null,null,null,null,null,null,null,null,null,"","","",""]
["",null,null,null,null,null,null,null,null,null,null,null,null,null,null,null,null,null,null,null,null,null,null,"","","",""]
["",null,null,null,null,null,null,null,null,null,null,null,null,null,null,null,null,null,null,null,null,null,null,"","","",""]
["",null,null,null,null,null,null,null,null,null,null,null,null,null,null,null,null,null,null,null,null,null,null,"","","",""]
["",null,null,null,null,null,null,null,null,null,null,null,null,null,null,null,null,null,null,null,null,null,null,"","","",""]
["",null,null,null,null,null,null,null,null,null,null,null,null,null,null,null,null,null,null,null,null,null,null,"","","",""]
["",null,null,null,null,null,null,null,null,null,null,null,null,null,null,null,null,null,null,null,null,null,null,"","","",""]
["",null,null,null,null,null,null,null,null,null,null,null,null,null,null,null,null,null,null,null,null,null,null,"","","",""]
["",null,null,null,null,null,null,null,null,null,null,null,null,null,null,null,null,null,null,null,null,null,null,"","","",""]
["",null,null,null,null,null,null,null,null,null,null,null,null,null,null,null,null,null,null,null,null,null,null,"","","",""]
["",null,null,null,null,null,null,null,null,null,null,null,null,null,null,null,null,null,null,null,null,null,null,"","","",""]
["",null,null,null,null,null,null,null,null,null,null,null,null,null,null,null,null,null,null,null,null,null,null,"","","",""]
["",null,null,null,null,null,null,null,null,null,null,null,null,null,null,null,null,null,null,null,null,null,null,"","","",""]
["",null,null,null,null,null,null,null,null,null,null,null,null,null,null,null,null,null,null,null,null,null,null,"","","",""]
["",null,null,null,null,null,null,null,null,null,null,null,null,null,null,null,null,null,null,null,null,null,null,"","","",""]
["",null,null,null,null,null,null,null,null,null,null,null,null,null,null,null,null,null,null,null,null,null,null,"","","",""]
["",null,null,null,null,null,null,null,null,null,null,null,null,null,null,null,null,null,null,null,null,null,null,"","","",""]
["",null,null,null,null,null,null,null,null,null,null,null,null,null,null,null,null,null,null,null,null,null,null,"","","",""]
["",null,null,null,null,null,null,null,null,null,null,null,null,null,null,null,null,null,null,null,null,null,null,"","","",""]
["",null,null,null,null,null,null,null,null,null,null,null,null,null,null,null,null,null,null,null,null,null,null,"","","",""]
["",null,null,null,null,null,null,null,null,null,null,null,null,null,null,null,null,null,null,null,null,null,null,"","","",""]
["",null,null,null,null,null,null,null,null,null,null,null,null,null,null,null,null,null,null,null,null,null,null,"","","",""]
["",null,null,null,null,null,null,null,null,null,null,null,null,null,null,null,null,null,null,null,null,null,null,"","","",""]
["",null,null,null,null,null,null,null,null,null,null,null,null,null,null,null,null,null,null,null,null,null,null,"","","",""]
["",null,null,null,null,null,null,null,null,null,null,null,null,null,null,null,null,null,null,null,null,null,null,"","","",""]
["",null,null,null,null,null,null,null,null,null,null,null,null,null,null,null,null,null,null,null,null,null,null,"","","",""]
["",null,null,null,null,null,null,null,null,null,null,null,null,null,null,null,null,null,null,null,null,null,null,"","","",""]
["",null,null,null,null,null,null,null,null,null,null,null,null,null,null,null,null,null,null,null,null,null,null,"","","",""]
["",null,null,null,null,null,null,null,null,null,null,null,null,null,null,null,null,null,null,null,null,null,null,"","","",""]
["",null,null,null,null,null,null,null,null,null,null,null,null,null,null,null,null,null,null,null,null,null,null,"","","",""]
["",null,null,null,null,null,null,null,null,null,null,null,null,null,null,null,null,null,null,null,null,null,null,"","","",""]
["",null,null,null,null,null,null,null,null,null,null,null,null,null,null,null,null,null,null,null,null,null,null,"","","",""]
["",null,null,null,null,null,null,null,null,null,null,null,null,null,null,null,null,null,null,null,null,null,null,"","","",""]
["",null,null,null,null,null,null,null,null,null,null,null,null,null,null,null,null,null,null,null,null,null,null,"","","",""]
["",null,null,null,null,null,null,null,null,null,null,null,null,null,null,null,null,null,null,null,null,null,null,"","","",""]
["",null,null,null,null,null,null,null,null,null,null,null,null,null,null,null,null,null,null,null,null,null,null,"","","",""]
["",null,null,null,null,null,null,null,null,null,null,null,null,null,null,null,null,null,null,null,null,null,null,"","","",""]
["",null,null,null,null,null,null,null,null,null,null,null,null,null,null,null,null,null,null,null,null,null,null,"","","",""]
["",null,null,null,null,null,null,null,null,null,null,null,null,null,null,null,null,null,null,null,null,null,null,"","","",""]
["",null,null,null,null,null,null,null,null,null,null,null,null,null,null,null,null,null,null,null,null,null,null,"","","",""]
["",null,null,null,null,null,null,null,null,null,null,null,null,null,null,null,null,null,null,null,null,null,null,"","","",""]
["",null,null,null,null,null,null,null,null,null,null,null,null,null,null,null,null,null,null,null,null,null,null,"","","",""]
["",null,null,null,null,null,null,null,null,null,null,null,null,null,null,null,null,null,null,null,null,null,null,"","","",""]
["",null,null,null,null,null,null,null,null,null,null,null,null,null,null,null,null,null,null,null,null,null,null,"","","",""]
[{"$f":"IF(C318<>\"\",ROW()-12,\"\")","v":""},null,null,null,null,null,null,null,null,null,null,null,null,null,null,null,null,null,null,null,null,null,null,"","","",""]
["",null,null,null,null,null,null,null,null,null,null,null,null,null,null,null,null,null,null,null,null,null,null,"","","",""]
["",null,null,null,null,null,null,null,null,null,null,null,null,null,null,null,null,null,null,null,null,null,null,"","","",""]
["",null,null,null,null,null,null,null,null,null,null,null,null,null,null,null,null,null,null,null,null,null,null,"","","",""]
["",null,null,null,null,null,null,null,null,null,null,null,null,null,null,null,null,null,null,null,null,null,null,"","","",""]
["",null,null,null,null,null,null,null,null,null,null,null,null,null,null,null,null,null,null,null,null,null,null,"","","",""]
["",null,null,null,null,null,null,null,null,null,null,null,null,null,null,null,null,null,null,null,null,null,null,"","","",""]
["",null,null,null,null,null,null,null,null,null,null,null,null,null,null,null,null,null,null,null,null,null,null,"","","",""]
["",null,null,null,null,null,null,null,null,null,null,null,null,null,null,null,null,null,null,null,null,null,null,"","","",""]
["",null,null,null,null,null,null,null,null,null,null,null,null,null,null,null,null,null,null,null,null,null,null,"","","",""]
["",null,null,null,null,null,null,null,null,null,null,null,null,null,null,null,null,null,null,null,null,null,null,"","","",""]
["",null,null,null,null,null,null,null,null,null,null,null,null,null,null,null,null,null,null,null,null,null,null,"","","",""]
["",null,null,null,null,null,null,null,null,null,null,null,null,null,null,null,null,null,null,null,null,null,null,"","","",""]
["",null,null,null,null,null,null,null,null,null,null,null,null,null,null,null,null,null,null,null,null,null,null,"","","",""]
["",null,null,null,null,null,null,null,null,null,null,null,null,null,null,null,null,null,null,null,null,null,null,"","","",""]
["",null,null,null,null,null,null,null,null,null,null,null,null,null,null,null,null,null,null,null,null,null,null,{"$f":"IF(N°_inscp1=\"\",\"\",SUMPRODUCT(Coeff1,K333:V333)+Bonus)","v":""},{"$f":"IF(N°_inscp1=\"\",\"\",IF(AND(Sport=\"Inapte\",EEE=\"\"),TOT_1/(SUM(Coeff1)-4),IF(OR(Sport=\"Inapte\",EEE=\"\"),TOT_1/(SUM(Coeff1)-2),TOT_1/SUM(Coeff1))))","v":""},{"$f":"IF(N°_inscp1=\"\",\"\",IF(ISNA(IF(RANK(Y333,MOY_1,0)=1,RANK(Y333,MOY_1,0)&\"er\",RANK(Y333,MOY_1,0)&\"ème\")),\"\",IF(RANK(Y333,MOY_1,0)=1,RANK(Y333,MOY_1,0)&\"er\",RANK(Y333,MOY_1,0)&\"ème\")))","v":""},{"$f":"IF(N°_inscp1=\"\",\"\",VLOOKUP(MOY_1,App_1,2,TRUE))","v":""}]
["",null,null,null,null,null,null,null,null,null,null,null,null,null,null,null,null,null,null,null,null,null,null,"","","",""]
["",null,null,null,null,null,null,null,null,null,null,null,null,null,null,null,null,null,null,null,null,null,null,"","","",""]
["",null,null,null,null,null,null,null,null,null,null,null,null,null,null,null,null,null,null,null,null,null,null,"","","",""]
["",null,null,null,null,null,null,null,null,null,null,null,null,null,null,null,null,null,null,null,null,null,null,"","","",""]
["",null,null,null,null,null,null,null,null,null,null,null,null,null,null,null,null,null,null,null,null,null,null,"","","",""]
["",null,null,null,null,null,null,null,null,null,null,null,null,null,null,null,null,null,null,null,null,null,null,"","","",""]
["",null,null,null,null,null,null,null,null,null,null,null,null,null,null,null,null,null,null,null,null,null,null,"","","",""]
["",null,null,null,null,null,null,null,null,null,null,null,null,null,null,null,null,null,null,null,null,null,null,"","","",""]
["",null,null,null,null,null,null,null,null,null,null,null,null,null,null,null,null,null,null,null,null,null,null,"","","",""]
["",null,null,null,null,null,null,null,null,null,null,null,null,null,null,null,null,null,null,null,null,null,null,"","","",""]
["",null,null,null,null,null,null,null,null,null,null,null,null,null,null,null,null,null,null,null,null,null,null,"","","",""]
["",null,null,null,null,null,null,null,null,null,null,null,null,null,null,null,null,null,null,null,null,null,null,"","","",""]
["",null,null,null,null,null,null,null,null,null,null,null,null,null,null,null,null,null,null,null,null,null,null,"","","",""]
["",null,null,null,null,null,null,null,null,null,null,null,null,null,null,null,null,null,null,null,null,null,null,"","","",""]
["",null,null,null,null,null,null,null,null,null,null,null,null,null,null,null,null,null,null,null,null,null,null,"","","",""]
["",null,null,null,null,null,null,null,null,null,null,null,null,null,null,null,null,null,null,null,null,null,null,"","","",""]
["",null,null,null,null,null,null,null,null,null,null,null,null,null,null,null,null,null,null,null,null,null,null,"","","",""]
["",null,null,null,null,null,null,null,null,null,null,null,null,null,null,null,null,null,null,null,null,null,null,"","","",""]
["",null,null,null,null,null,null,null,null,null,null,null,null,null,null,null,null,null,null,null,null,null,null,"","","",""]
["",null,null,null,null,null,null,null,null,null,null,null,null,null,null,null,null,null,null,null,null,null,null,"","","",""]
["",null,null,null,null,null,null,null,null,null,null,null,null,null,null,null,null,null,null,null,null,null,null,"","","",""]
["",null,null,null,null,null,null,null,null,null,null,null,null,null,null,null,null,null,null,null,null,null,null,"","","",""]
["",null,null,null,null,null,null,null,null,null,null,null,null,null,null,null,null,null,null,null,null,null,null,"","","",""]
["",null,null,null,null,null,null,null,null,null,null,null,null,null,null,null,null,null,null,null,null,null,null,"","","",""]
["",null,null,null,null,null,null,null,null,null,null,null,null,null,null,null,null,null,null,null,null,null,null,"","","",""]
["",null,null,null,null,null,null,null,null,null,null,null,null,null,null,null,null,null,null,null,null,null,null,"","","",""]
["",null,null,null,null,null,null,null,null,null,null,null,null,null,null,null,null,null,null,null,null,null,null,"","","",""]
["",null,null,null,null,null,null,null,null,null,null,null,null,null,null,null,null,null,null,null,null,null,null,"","","",""]
["",null,null,null,null,null,null,null,null,null,null,null,null,null,null,null,null,null,null,null,null,null,null,"","","",""]
["",null,null,null,null,null,null,null,null,null,null,null,null,null,null,null,null,null,null,null,null,null,null,"","","",""]
["",null,null,null,null,null,null,null,null,null,null,null,null,null,null,null,null,null,null,null,null,null,null,"","","",""]
["",null,null,null,null,null,null,null,null,null,null,null,null,null,null,null,null,null,null,null,null,null,null,"","","",""]
["",null,null,null,null,null,null,null,null,null,null,null,null,null,null,null,null,null,null,null,null,null,null,"","","",""]
["",null,null,null,null,null,null,null,null,null,null,null,null,null,null,null,null,null,null,null,null,null,null,"","","",""]
["",null,null,null,null,null,null,null,null,null,null,null,null,null,null,null,null,null,null,null,null,null,null,"","","",""]
["",null,null,null,null,null,null,null,null,null,null,null,null,null,null,null,null,null,null,null,null,null,null,"","","",""]
["",null,null,null,null,null,null,null,null,null,null,null,null,null,null,null,null,null,null,null,null,null,null,"","","",""]
["",null,null,null,null,null,null,null,null,null,null,null,null,null,null,null,null,null,null,null,null,null,null,"","","",""]
["",null,null,null,null,null,null,null,null,null,null,null,null,null,null,null,null,null,null,null,null,null,null,"","","",""]
["",null,null,null,null,null,null,null,null,null,null,null,null,null,null,null,null,null,null,null,null,null,null,"","","",""]
["",null,null,null,null,null,null,null,null,null,null,null,null,null,null,null,null,null,null,null,null,null,null,"","","",""]
["",null,null,null,null,null,null,null,null,null,null,null,null,null,null,null,null,null,null,null,null,null,null,"","","",""]
["",null,null,null,null,null,null,null,null,null,null,null,null,null,null,null,null,null,null,null,null,null,null,"","","",""]
["",null,null,null,null,null,null,null,null,null,null,null,null,null,null,null,null,null,null,null,null,null,null,"","","",""]
["",null,null,null,null,null,null,null,null,null,null,null,null,null,null,null,null,null,null,null,null,null,null,"","","",""]
["",null,null,null,null,null,null,null,null,null,null,null,null,null,null,null,null,null,null,null,null,null,null,"","","",""]
["",null,null,null,null,null,null,null,null,null,null,null,null,null,null,null,null,null,null,null,null,null,null,"","","",""]
["",null,null,null,null,null,null,null,null,null,null,null,null,null,null,null,null,null,null,null,null,null,null,"","","",""]
[{"$f":"IF(C382<>\"\",ROW()-12,\"\")","v":""},null,null,null,null,null,null,null,null,null,null,null,null,null,null,null,null,null,null,null,null,null,null,"","","",""]
["",null,null,null,null,null,null,null,null,null,null,null,null,null,null,null,null,null,null,null,null,null,null,"","","",""]
["",null,null,null,null,null,null,null,null,null,null,null,null,null,null,null,null,null,null,null,null,null,null,"","","",""]
["",null,null,null,null,null,null,null,null,null,null,null,null,null,null,null,null,null,null,null,null,null,null,"","","",""]
["",null,null,null,null,null,null,null,null,null,null,null,null,null,null,null,null,null,null,null,null,null,null,"","","",""]
["",null,null,null,null,null,null,null,null,null,null,null,null,null,null,null,null,null,null,null,null,null,null,"","","",""]
["",null,null,null,null,null,null,null,null,null,null,null,null,null,null,null,null,null,null,null,null,null,null,"","","",""]
["",null,null,null,null,null,null,null,null,null,null,null,null,null,null,null,null,null,null,null,null,null,null,"","","",""]
["",null,null,null,null,null,null,null,null,null,null,null,null,null,null,null,null,null,null,null,null,null,null,"","","",""]
["",null,null,null,null,null,null,null,null,null,null,null,null,null,null,null,null,null,null,null,null,null,null,"","","",""]
["",null,null,null,null,null,null,null,null,null,null,null,null,null,null,null,null,null,null,null,null,null,null,"","","",""]
["",null,null,null,null,null,null,null,null,null,null,null,null,null,null,null,null,null,null,null,null,null,null,"","","",""]
["",null,null,null,null,null,null,null,null,null,null,null,null,null,null,null,null,null,null,null,null,null,null,"","","",""]
["",null,null,null,null,null,null,null,null,null,null,null,null,null,null,null,null,null,null,null,null,null,null,"","","",""]
["",null,null,null,null,null,null,null,null,null,null,null,null,null,null,null,null,null,null,null,null,null,null,"","","",""]
["",null,null,null,null,null,null,null,null,null,null,null,null,null,null,null,null,null,null,null,null,null,null,{"$f":"IF(N°_inscp1=\"\",\"\",SUMPRODUCT(Coeff1,K397:V397)+Bonus)","v":""},{"$f":"IF(N°_inscp1=\"\",\"\",IF(AND(Sport=\"Inapte\",EEE=\"\"),TOT_1/(SUM(Coeff1)-4),IF(OR(Sport=\"Inapte\",EEE=\"\"),TOT_1/(SUM(Coeff1)-2),TOT_1/SUM(Coeff1))))","v":""},{"$f":"IF(N°_inscp1=\"\",\"\",IF(ISNA(IF(RANK(Y397,MOY_1,0)=1,RANK(Y397,MOY_1,0)&\"er\",RANK(Y397,MOY_1,0)&\"ème\")),\"\",IF(RANK(Y397,MOY_1,0)=1,RANK(Y397,MOY_1,0)&\"er\",RANK(Y397,MOY_1,0)&\"ème\")))","v":""},{"$f":"IF(N°_inscp1=\"\",\"\",VLOOKUP(MOY_1,App_1,2,TRUE))","v":""}]
["",null,null,null,null,null,null,null,null,null,null,null,null,null,null,null,null,null,null,null,null,null,null,"","","",""]
["",null,null,null,null,null,null,null,null,null,null,null,null,null,null,null,null,null,null,null,null,null,null,"","","",""]
["",null,null,null,null,null,null,null,null,null,null,null,null,null,null,null,null,null,null,null,null,null,null,"","","",""]
["",null,null,null,null,null,null,null,null,null,null,null,null,null,null,null,null,null,null,null,null,null,null,"","","",""]
["",null,null,null,null,null,null,null,null,null,null,null,null,null,null,null,null,null,null,null,null,null,null,"","","",""]
["",null,null,null,null,null,null,null,null,null,null,null,null,null,null,null,null,null,null,null,null,null,null,"","","",""]
["",null,null,null,null,null,null,null,null,null,null,null,null,null,null,null,null,null,null,null,null,null,null,"","","",""]
["",null,null,null,null,null,null,null,null,null,null,null,null,null,null,null,null,null,null,null,null,null,null,"","","",""]
["",null,null,null,null,null,null,null,null,null,null,null,null,null,null,null,null,null,null,null,null,null,null,"","","",""]
["",null,null,null,null,null,null,null,null,null,null,null,null,null,null,null,null,null,null,null,null,null,null,"","","",""]
["",null,null,null,null,null,null,null,null,null,null,null,null,null,null,null,null,null,null,null,null,null,null,"","","",""]
["",null,null,null,null,null,null,null,null,null,null,null,null,null,null,null,null,null,null,null,null,null,null,"","","",""]
["",null,null,null,null,null,null,null,null,null,null,null,null,null,null,null,null,null,null,null,null,null,null,"","","",""]
["",null,null,null,null,null,null,null,null,null,null,null,null,null,null,null,null,null,null,null,null,null,null,"","","",""]
[{"$f":"IF(C412<>\"\",ROW()-12,\"\")","v":""},null,null,null,null,null,null,null,null,null,null,null,null,null,null,null,null,null,null,null,null,null,null,"","","",""]
["",null,null,null,null,null,null,null,null,null,null,null,null,null,null,null,null,null,null,null,null,null,null,"","","",""]
["",null,null,null,null,null,null,null,null,null,null,null,null,null,null,null,null,null,null,null,null,null,null,"","","",""]
["",null,null,null,null,null,null,null,null,null,null,null,null,null,null,null,null,null,null,null,null,null,null,"","","",""]
["",null,null,null,null,null,null,null,null,null,null,null,null,null,null,null,null,null,null,null,null,null,null,"","","",""]
["",null,null,null,null,null,null,null,null,null,null,null,null,null,null,null,null,null,null,null,null,null,null,"","","",""]
["",null,null,null,null,null,null,null,null,null,null,null,null,null,null,null,null,null,null,null,null,null,null,"","","",""]
["",null,null,null,null,null,null,null,null,null,null,null,null,null,null,null,null,null,null,null,null,null,null,"","","",""]
["",null,null,null,null,null,null,null,null,null,null,null,null,null,null,null,null,null,null,null,null,null,null,"","","",""]
["",null,null,null,null,null,null,null,null,null,null,null,null,null,null,null,null,null,null,null,null,null,null,"","","",""]
["",null,null,null,null,null,null,null,null,null,null,null,null,null,null,null,null,null,null,null,null,null,null,"","","",""]
["",null,null,null,null,null,null,null,null,null,null,null,null,null,null,null,null,null,null,null,null,null,null,"","","",""]

{"sheet":"Notes_2nd_Gr","index":2,"n_rows":423,"n_cols":17,"rows_kept":423,"cut":false,"hidden":false,"merged":[[3,0,4,6],[8,10,8,12],[7,8,7,9]]}
["REPUBLIQUE DU SENEGAL",null,null,null,"ACADEMIE DE"]
["MINISTERE DE L'EDUCATION NATIONALE"]
["DIRECTION DES EXAMENS ET CONCOURS"]
["EXAMEN DU B.F.E.M."]
[]
["CENTRE",null,null,null,null,"SESSION DE"]
["SECTION",null,null,null,null,"JURY"]
[null,null,null,null,null,null,null,null,"Coefficients",null,3,3,2]
[null,null,null,null,null,null,null,null,null,null,"EXAMEN DU 2nd GROUPE"]
["N° Ordre","N ano","N° Ins","Prénoms","Nom","Date De Naissance","Lieu_Nais","Sexe","Etablissement Fréquenté","Statut","Maths","Texte Suivi de Questions","Lv2/Sp/Latin/Arabe","Total","Moyenne","Rang","Décision"]
[{"$f":"IF(C11<>\"\",ROW()-10,\"\")","v":""},null,null,null,null,null,null,null,null,null,null,null,null,{"$f":"IF(N°_inscp2=\"\",\"\",SUMPRODUCT(Coeff2,K11:M11))","v":""},{"$f":"IF(N°_inscp2=\"\",\"\",TOT_2/SUM(Coeff2))","v":""},{"$f":"IF(N°_inscp2=\"\",\"\",IF(ISNA(IF(RANK(O11,MOY_2,0)=1,RANK(O11,MOY_2,0)&\"er\",RANK(O11,MOY_2,0)&\"ème\")),\"\",IF(RANK(O11,MOY_2,0)=1,RANK(O11,MOY_2,0)&\"er\",RANK(O11,MOY_2,0)&\"ème\")))","v":""},{"$f":"IF(N°_inscp2=\"\",\"\",VLOOKUP(MOY_2,App_2,2,TRUE))","v":""}]
[{"$f":"IF(C12<>\"\",ROW()-10,\"\")","v":""},null,null,null,null,null,null,null,null,null,null,null,null,"","","",""]
[""]
[""]
[""]
[""]
[""]
[""]
[""]
[""]
[""]
[""]
[""]
[""]
[""]
[""]
[""]
[""]
[""]
[""]
[""]
[""]
[""]
[""]
[""]
[""]
[""]
[""]
[""]
[""]
[""]
[""]
[""]
[""]
[""]
[""]
[""]
[""]
[""]
[""]
[""]
[""]
[""]
[""]
[""]
[""]
[""]
[""]
[""]
[""]
[""]
[""]
[""]
[""]
[""]
[""]
[""]
[""]
[""]
[""]
[""]
[""]
[""]
[""]
[""]
[{"$f":"IF(C76<>\"\",ROW()-10,\"\")","v":""}]
[""]
[""]
[""]
[""]
[""]
[""]
[""]
[""]
[""]
[""]
[""]
[""]
[""]
[""]
[""]
[""]
[""]
[""]
[""]
[""]
[""]
[""]
[""]
[""]
[""]
[""]
[""]
[""]
[""]
[""]
[""]
[""]
[""]
[""]
[""]
[""]
[""]
[""]
[""]
[""]
[""]
[""]
[""]
[""]
[""]
[""]
[""]
[""]
[""]
[""]
[""]
[""]
[""]
[""]
[""]
[""]
[""]
[""]
[""]
[""]
[""]
[""]
[""]
[{"$f":"IF(C140<>\"\",ROW()-10,\"\")","v":""}]
[""]
[""]
[""]
[""]
[""]
[""]
[""]
[""]
[""]
[""]
[""]
[""]
[""]
[""]
[""]
[""]
[""]
[""]
[""]
[""]
[""]
[""]
[""]
[""]
[""]
[""]
[""]
[{"$f":"IF(C168<>\"\",ROW()-10,\"\")","v":""}]
[""]
[""]
[""]
[""]
[""]
[""]
[""]
[""]
[""]
[""]
[""]
[""]
[""]
[""]
[""]
[""]
[""]
[""]
[""]
[""]
[""]
[""]
[""]
[""]
[""]
[""]
[""]
[""]
[""]
[""]
[""]
[""]
[""]
[""]
[""]
[""]
[""]
[""]
[""]
[""]
[""]
[""]
[""]
[{"$f":"IF(C212<>\"\",ROW()-10,\"\")","v":""}]
[""]
[""]
[""]
[""]
[""]
[""]
[""]
[""]
[""]
[""]
[""]
[""]
[""]
[""]
[""]
[""]
[""]
[""]
[""]
[""]
[""]
[""]
[""]
[""]
[""]
[""]
[""]
[""]
[""]
[""]
[""]
[""]
[""]
[""]
[""]
[""]
[""]
[""]
[""]
[""]
[""]
[""]
[""]
[""]
[""]
[""]
[""]
[""]
[""]
[""]
[""]
[""]
[""]
[""]
[""]
[""]
[""]
[""]
[""]
[""]
[""]
[""]
[""]
[{"$f":"IF(C276<>\"\",ROW()-10,\"\")","v":""}]
[""]
[""]
[""]
[""]
[""]
[""]
[""]
[""]
[""]
[""]
[""]
[""]
[""]
[""]
[""]
[""]
[""]
[""]
[""]
[""]
[""]
[""]
[""]
[""]
[""]
[""]
[""]
[""]
[""]
[""]
[""]
[""]
[""]
[""]
[""]
[""]
[""]
[""]
[""]
[{"$f":"IF(C316<>\"\",ROW()-10,\"\")","v":""}]
[""]
[""]
[""]
[""]
[""]
[""]
[""]
[""]
[""]
[""]
[""]
[""]
[""]
[""]
[""]
[""]
[""]
[""]
[""]
[""]
[""]
[""]
[""]
[""]
[""]
[""]
[""]
[""]
[""]
[""]
[""]
[""]
[""]
[""]
[""]
[""]
[""]
[""]
[""]
[""]
[""]
[""]
[""]
[""]
[""]
[""]
[""]
[""]
[""]
[""]
[""]
[""]
[""]
[""]
[""]
[""]
[""]
[""]
[""]
[""]
[""]
[""]
[""]
[{"$f":"IF(C380<>\"\",ROW()-10,\"\")","v":""}]
[""]
[""]
[""]
[""]
[""]
[""]
[""]
[""]
[""]
[""]
[""]
[""]
[""]
[""]
[""]
[""]
[""]
[""]
[""]
[""]
[""]
[""]
[""]
[""]
[""]
[""]
[""]
[""]
[""]
[""]
[""]
[""]
[""]
[""]
[""]
[""]
[""]
[""]
[""]
[""]
[""]
[""]
[""]